Workbook

Sheet po مرسي علم
A1: مـنـتـج تــام | B1: زيـوت خــام
A2: الايمان 737 | B2: أحمد ع القوى 2691
A3: محرم 1619 | B3: المستقبل 1317
A6: جمعية 1220 | B6: الامين 2546 | D6: 2019-11-01
A7: الاسراء 1630 | B7: المؤسسة 2631
C8: علي السستم الغردقه | H8: 1248 | I8: استكمال
C10: م | D10: القيمة + 14 % | E10: القيمة بالجنيه | F10: سعر الطن | G10: الكمية | H10: جهة الوصول | I10: رقم Shipment | J10: نوع السيارة | K10: الميزان
B11: 1 | G11: الاجمالى
C47: 1 | D47: =E47*1.14 -> 3823.47222 | E47: =F47*G47 -> 3353.923 | F47: 457 | G47: 7.339 | H47: الغردقه | I47: 153826 | J47: 5طن | K47: 80
C48: 2 | D48: =E48*1.14 -> 0 | E48: =F48*G48 -> 0 | J48: 5طن
C49: 3 | D49: =E49*1.14 -> 0 | E49: =F49*G49 -> 0 | J49: 5طن
C50: **** | D50: =SUM(D47:D49) -> 3823.47222 | E50: =SUM(E47:E49) -> 3353.923 | G50: =SUM(G47:G49) -> 7.339 | H50: الاجماليات | K50: =SUM(K47:K49) -> 80
D51: 16428.35 | F51: =E50*14% -> 469.54922 | G51: 14%ضريبة مبيعات
D52: =#REF!-D51 ->  | F52: =E50*3/100 -> 100.61769 | G52: 3%خصم واضافة
F53: =E50+F51-F52 -> 3722.85453 | G53: اجمالى المستحق
D54: مكان التعتيق الفعلي مرسي علم
C56: م | D56: القيمة + 14 % | E56: القيمة بالجنيه | F56: سعر الطن | G56: الكمية | H56: جهة الوصول | I56: رقم Shipment | J56: نوع السيارة | K56: الميزان
G57: الاجمالى
C58: 1 | D58: =E58*1.14 -> 6350.14314 | E58: =F58*G58 -> 5570.301 | F58: 759 | G58: 7.339 | H58: الغردقه | I58: 153826 | J58: 5طن
C59: 2 | D59: =E59*1.14 -> 0 | E59: =F59*G59 -> 0 | J59: 5طن
C60: 3 | D60: =E60*1.14 -> 0 | E60: =F60*G60 -> 0 | J60: 5طن
C61: **** | D61: =SUM(D58:D60) -> 6350.14314 | E61: =SUM(E58:E60) -> 5570.301 | G61: =SUM(G58:G60) -> 7.339 | H61: الاجماليات
D62: مطلوب استكمال فرق نولون بقيمه/ 2460 جنيه
F65: =E61*14% -> 779.84214 | G65: 14%ضريبة مبيعات
F66: =E61*3/100 -> 167.10903 | G66: 3%خصم واضافة
F67: =E61+F65-F66 -> 6183.03411 | G67: اجمالى المستحق

Sheet 1 (2)
E1: رقم 1
A4: قيمه شيكات تعتيق نقل بتاريخ 2019/12/06
A5: م | B5: اسم السائق | C5: العميل | D5: رقم المستند | E5: الفرع | F5: التاريخ | G5: الفاتوره | H5: المبلغ | I5: السياره
A6: 1 | B6: احمد عز الدين | C6: كارفور | D6: 4521 | E6: سوبر ماركت | F6: 2019-11-28 | G6: 80347525 | H6: 50 | I6: 5طن
A7: 2 | B7: احمد عز الدين | C7: كارفور | D7: 381 | E7: سوبر ماركت | F7: 2019-11-27 | G7: 80347068 | H7: 50 | I7: 5طن
A8: 3 | B8: احمد عز الدين | C8: كارفور | D8: 4568 | E8: سوبر ماركت | F8: 2019-11-26 | G8: 80347520 | H8: 50 | I8: 5طن
A9: 4 | B9: احمد عز الدين | C9: كارفور | D9: 1071 | E9: سوبر ماركت | F9: 2019-11-25 | G9: 80346099 | H9: 50 | I9: 5طن
A10: 5 | B10: احمد عز الدين | C10: كارفور | D10: 1564 | E10: سوبر ماركت | F10: 2019-11-24 | G10: 80345758 | H10: 50 | I10: 5طن
A11: 6 | B11: احمد عز الدين | C11: لولو | D11: 1802 | E11: سوبر ماركت | F11: 2019-11-23 | G11: 80345327 | H11: 50 | I11: 5طن
A12: 7 | B12: ابراهيم حسن | C12: جوميا | D12: 1694 | E12: سوبر ماركت | F12: 2019-11-23 | G12: 80345321 | H12: 50 | I12: 5طن
A13: 8 | B13: عيد محمد | C13: الشركة العامة | D13: 2943 | E13: سوبر ماركت | F13: 2019-05-15 | G13: 80277286 | H13: 35 | I13: 5طن
A14: 9 | B14: احمد علي | C14: الشركة العامة | D14: 102 | E14: سوبر ماركت | F14: 2019-10-06 | G14: 80327759 | H14: 35 | I14: 5طن
A15: 10 | B15: محمد حمدي | C15: الاهرام للمعادن | D15: 1297 | E15: سوبر ماركت | F15: 2019-09-19 | G15: 276899 | H15: 35 | I15: 5طن
A16: 11 | B16: عيد محمد | C16: الفرجاني | D16: 1952 | E16: سوبر ماركت | F16: 2019-11-23 | G16: 80345339 | H16: 50 | I16: 5طن
A17: 12 | B17: محمد احمد | C17: ايمدج | D17: 1957 | E17: سوبر ماركت | F17: 2019-11-28 | G17: 80347619 | H17: 50 | I17: 5طن
A18: 13 | B18: احمد محمد | C18: كارفور | D18: 493 | E18: سوبر ماركت | F18: 2019-11-23 | G18: 80345520 | H18: 50 | I18: 5طن
A19: 14 | B19: حسن حامد | C19: الرايه | D19: 3885 | E19: سوبر ماركت | F19: 2019-08-26 | G19: 80311354 | H19: 50 | I19: 5طن
A20: 15 | B20: احمد محمد | C20: الشركة العامة | D20: 1310 | E20: سوبر ماركت | F20: 2019-04-16 | G20: 80265489 | H20: 100 | I20: 5طن
A21: 16 | B21: محمد حمدي | C21: الرايه | D21: 3884 | E21: سوبر ماركت | F21: 2019-08-26 | G21: 80311348 | H21: 50 | I21: 5طن
A22: 17 | B22: عبدالعظيم محمد | C22: الفرجاني | D22: 1541 | E22: سوبر ماركت | F22: 2019-07-30 | G22: 80303133 | H22: 50 | I22: 5طن
A23: 18 | B23: احمد علي | C23: اللولو | D23: 885 | E23: سوبر ماركت | F23: 2019-10-12 | G23: 80329945 | H23: 50 | I23: 5طن
A24: 19 | B24: احمد علي | C24: الفرجاني | D24: 870 | E24: سوبر ماركت | F24: 2019-10-09 | G24: 80328645 | H24: 50 | I24: 5طن
A25: 20 | B25: عيد محمد | C25: اسواق بدر | D25: 1007 | E25: سوبر ماركت | F25: 2019-07-10 | G25: 80295517 | H25: 50 | I25: 5طن
A26: 21 | B26: حسن حامد | C26: كارفور | D26: 80 | E26: سوبر ماركت | F26: 2019-09-07 | G26: 80316282 | H26: 50 | I26: 5طن
A27: 22 | B27: عبدالمنعم حسني | C27: الشركة العامة | D27: 2749 | E27: سوبر ماركت | F27: 2019-05-31 | G27: 80283296 | H27: 200 | I27: 5طن
A28: 23 | B28: عبدالمنعم حسني | C28: الشركة العامة | D28: 2726 | E28: سوبر ماركت | F28: 2019-05-26 | G28: 80281249 | H28: 200 | I28: 5طن
A29: 24 | B29: السيد صادق | C29: الشركة العامة | D29: 3945 | E29: سوبر ماركت | F29: 2019-11-24 | G29: 80345626 | H29: 35 | I29: 5طن
A30: 25 | B30: محمد السيد | C30: الشركة العامة | D30: 3944 | E30: سوبر ماركت | F30: 2019-11-23 | G30: 80345607 | H30: 35 | I30: 5طن
A31: 26 | B31: هيثم سيف | C31: الشركة العامة | D31: 3943 | E31: سوبر ماركت | F31: 2019-11-20 | G31: 80344203 | H31: 35 | I31: 5طن
A32: 27 | B32: ابراهيم حسن | C32: الشركة العامة | D32: 3942 | E32: سوبر ماركت | F32: 2019-11-20 | G32: 80344160 | H32: 35 | I32: 5طن
A33: 28 | B33: رمضان حمدي | C33: الشركة العامة | D33: 3939 | E33: سوبر ماركت | F33: 2019-11-19 | G33: 80343701 | H33: 35 | I33: 5طن
A34: 29 | B34: محمد السيد | C34: الشركة العامة | D34: 3935 | E34: سوبر ماركت | F34: 2019-11-18 | G34: 80343447 | H34: 35 | I34: 5طن
A35: 30 | B35: احمد علي | C35: الشركة العامة | D35: 3932 | E35: سوبر ماركت | F35: 2019-11-18 | G35: 80343446 | H35: 35 | I35: 5طن
B36: الاجمالي | H36: =SUM(H6:H35) -> 1700 | I36: جنيه
G39: تنفيذى شحن وتوزيع

Sheet فاتوره
C7: 2019-12-06 | H7: 1310
C9: م | D9: القيمة + 14 % | E9: القيمة بالجنيه | F9: سعر الطن | G9: الكمية | H9: جهة الوصول | I9: رقم Shipment | J9: نوع السيارة | K9: الميزان
B10: 1 | G10: الاجمالى
C46: 1 | D46: =E46*1.14 -> 1157.9436 | E46: =F46*G46 -> 1015.74 | F46: 198 | G46: 5.13 | H46: البحيرة | I46: 156595 | J46: 5 طن | K46: 65
C47: 2 | D47: =E47*1.14 -> 1234.8765 | E47: 1083.225 | F47: 165 | G47: 6.565 | H47: كفر الشيخ | I47: 159528 | J47: 5 طن | K47: 80
C48: 3 | D48: 1615.92948 | E48: 1417.482 | F48: 198 | G48: 7.159 | H48: البحيرة | I48: 159440 | J48: 5 طن | K48: 80
C49: 4 | D49: 1036.21896 | E49: 908.964 | F49: 126 | G49: 7.214 | H49: القاهره | I49: 158713 | J49: 5 طن | K49: 65
C50: 5 | D50: 1164.79044 | E50: 1021.746 | F50: 137 | G50: 7.458 | H50: الجيزه | I50: 158991 | J50: 5 طن | K50: 0
C51: 6 | D51: 1901.1552 | E51: 1667.68 | F51: 280 | G51: 5.956 | H51: الاسكندريه | I51: 158820 | J51: 5 طن | K51: 80
C52: 7 | D52: 885.82788 | E52: 777.042 | F52: 126 | G52: 6.167 | H52: القاهره | I52: 159495 | J52: 5 طن | K52: 75
C53: 8 | D53: 3705.7296 | E53: 3250.64 | F53: 454 | G53: 7.16 | H53: مرسي مطروح | I53: 159195 | J53: 5 طن | K53: 80
C54: 9 | D54: 1201.8051 | E54: 1054.215 | F54: 137 | G54: 7.695 | H54: القليوبيه | I54: 159491 | J54: 5 طن | K54: 0
C55: 10 | D55: 885.82788 | E55: 777.042 | F55: 126 | G55: 6.167 | H55: القاهره | I55: 159496 | J55: 5 طن | K55: 65
C56: 11 | D56: 785.42352 | E56: 688.968 | F56: 126 | G56: 5.468 | H56: القاهره | I56: 159098 | J56: 5 طن | K56: 65
C57: 12 | D57: 293.55 | E57: 257.5 | F57: 50 | G57: 5.15 | H57: العاشر | I57: 159382 | J57: 5 طن | K57: 0
C58: 13 | D58: 931.93632 | E58: 817.488 | F58: 126 | G58: 6.488 | H58: القاهره | I58: 159076 | J58: 5 طن | K58: 65
C59: 14 | D59: 2154.6 | E59: 1890 | F59: 280 | G59: 6.75 | H59: الاسكندريه | I59: 158644 | J59: 5 طن | K59: 65
C60: 15 | D60: 1637.496 | E60: 1436.4 | F60: 280 | G60: 5.13 | H60: الاسكندريه | I60: 159073 | J60: 5 طن | K60: 80
C61: 16 | D61: 1534.0752 | E61: 1345.68 | F61: 280 | G61: 4.806 | H61: الاسكندريه | I61: 156138 | J61: 5 طن | K61: 80
C62: 17 | D62: 1491.55776 | E62: =F62*G62 -> 1308.384 | F62: 198 | G62: 6.608 | H62: البحيرة | I62: 159252 | J62: 5 طن | K62: 50
C63: 18 | D63: 1001.889 | E63: 878.85 | F63: 126 | G63: 6.975 | H63: القاهره | I63: 159674 | J63: 5 طن | K63: 75
D64: =SUM(D46:D63) -> 24620.63244 | E64: =SUM(E46:E63) -> 21597.046 | F64: ---------- | G64: =SUM(G46:G63) -> 114.046 | H64: الاجماليات | K64: =SUM(K46:K63) -> 1070
F65: =E64*14% -> 3023.58644 | G65: 14%ضريبة مبيعات
F67: =E64*3/100 -> 647.91138 | G67: 3%خصم واضافة
F69: =E64+F65-F67 -> 23972.72106 | G69: اجمالى المستحق
D70: 16428.35
D71: =D65-D70 -> -16428.35

Sheet فاتوره تكميليه
H1: P.O.
C7: 2019-12-06 | H7: 1319 | I7: استكمال
C8: م | D8: القيمة + 14 % | E8: القيمة بالجنيه | F8: سعر الطن | G8: الكمية | H8: جهة الوصول | I8: رقم Shipment | J8: نوع السيارة | K8: الميزان
G9: الاجمالى
C44: 1 | D44: =E44*1.14 -> 600.12792 | E44: =F44*G44 -> 526.428 | F44: 126 | G44: 4.178 | H44: القاهره | I44: 159429 | J44: 5 طن | K44: 75
C45: 2 | D45: 727.64262 | E45: 638.283 | F45: 137 | G45: 4.659 | H45: القليوبيه | I45: 159204 | J45: 5 طن | K45: 75
C46: 3 | D46: 576.77274 | E46: 505.941 | F46: 137 | G46: 3.693 | H46: الجيزه | I46: 159386 | J46: 5 طن | K46: 65
C47: 4 | D47: 687.60468 | E47: 603.162 | F47: 126 | G47: 4.787 | H47: القاهره | I47: 159433 | J47: 5 طن | K47: 65
C48: 5 | D48: 1372.8792 | E48: 1204.28 | F48: 280 | G48: 4.301 | H48: الاسكندريه | I48: 158894 | J48: 5 طن | K48: 100
C49: 6 | D49: =E49*1.14 -> 728.26734 | E49: =F49*G49 -> 638.831 | F49: 137 | G49: 4.663 | H49: القليوبيه | I49: 159203 | J49: 5 طن | K49: 75
C50: 7 | D50: 97.64328 | E50: 85.652 | F50: 161 | G50: 0.532 | H50: اكتوبر | I50: 159605 | J50: 5 طن | K50: 75
C51: 8 | D51: 165.00246 | E51: 144.739 | F51: 161 | G51: 0.899 | H51: اكتوبر | I51: 159609 | J51: 5 طن | K51: 0
C52: 9 | D52: 136.00314 | E52: 119.301 | F52: 161 | G52: 0.741 | H52: اكتوبر | I52: 159606 | J52: 5 طن | K52: 0
C53: 10 | D53: 477.45936 | E53: 418.824 | F53: 126 | G53: 3.324 | H53: القاهره | I53: 159482 | J53: 5 طن | K53: 75
C54: 11 | D54: =E54*1.14 -> 224.50932 | E54: =F54*G54 -> 196.938 | F54: 126 | G54: 1.563 | H54: القاهره | I54: 159483 | J54: 5 طن | K54: 0
C55: 12 | D55: =E55*1.14 -> 307.04988 | E55: =F55*G55 -> 269.342 | F55: 137 | G55: 1.966 | H55: القليوبيه | I55: 159587 | J55: 5 طن | K55: 80
C56: 13 | D56: =E56*1.14 -> 467.44674 | E56: =F56*G56 -> 410.041 | F56: 137 | G56: 2.993 | H56: القليوبيه | I56: 159588 | J56: 5 طن | K56: 0
D57: =SUM(D44:D56) -> 6568.40868 | E57: =SUM(E44:E56) -> 5761.762 | G57: =SUM(G44:G56) -> 38.299 | H57: الاجماليات | K57: =SUM(K44:K56) -> 685
D58: 16428.35 | F58: =E57*14% -> 806.64668 | G58: 14%ضريبة مبيعات | I58: استكمال
D59: =#REF!-D58 ->  | F59: =E57*3/100 -> 172.85286 | G59: 3%خصم واضافة
F60: =E57+F58-F59 -> 6395.55582 | G60: اجمالى المستحق
H61: P.O.
C67: =C7 -> 2019-12-06 | H67: =H7 -> 1319 | I67: استكمال
C68: م | D68: القيمة + 14 % | E68: القيمة بالجنيه | F68: سعر الطن | G68: الكمية | H68: جهة الوصول | I68: رقم Shipment | J68: نوع السيارة | K68: الميزان
G69: الاجمالى
C70: 1 | D70: =E70*1.14 -> 118.07208 | E70: =F70*G70 -> 103.572 | F70: =F44 -> 126 | G70: =5-G44 -> 0.822 | H70: =H44 -> القاهره | I70: 159429 | J70: 5 طن
C71: 2 | D71: 53.25738 | E71: 46.717 | F71: 137 | G71: 0.341 | H71: القليوبيه | I71: 159204 | J71: 5 طن
C72: 3 | D72: 204.12726 | E72: =F72*G72 -> 179.059 | F72: 137 | G72: 1.307 | H72: الجيزه | I72: 159386 | J72: 5 طن
C73: 4 | D73: 30.59532 | E73: =F73*G73 -> 26.838 | F73: 126 | G73: 0.213 | H73: القاهره | I73: 159433 | J73: 5 طن
C74: 5 | D74: 223.1208 | E74: =F74*G74 -> 195.72 | F74: 280 | G74: 0.699 | H74: الاسكندريه | I74: 158894 | J74: 5 طن
C75: 6 | D75: 52.63266 | E75: =F75*G75 -> 46.169 | F75: 137 | G75: 0.337 | H75: القليوبيه | I75: 159203 | J75: 5 طن
C76: 7 | D76: 519.05112 | E76: 455.308 | F76: 161 | G76: =5-(G50+G51+G52) -> 2.828 | H76: اكتوبر | I76: 159605 | J76: 5 طن
C77: 8 | D77: 0 | E77: 0 | F77: 161 | H77: اكتوبر | I77: 159609 | J77: 5 طن
C78: 9 | D78: 0 | E78: =F78*G78 -> 0 | F78: 161 | H78: اكتوبر | I78: 159606 | J78: 5 طن
C79: 10 | D79: =E79*1.14 -> 16.23132 | E79: =F79*G79 -> 14.238 | F79: 126 | G79: =5-(G53+G54) -> 0.113 | H79: القاهره | I79: 159482 | J79: 5 طن
C80: 11 | D80: =E80*1.14 -> 0 | E80: =F80*G80 -> 0 | F80: 126 | H80: القاهره | I80: 159483 | J80: 5 طن
C81: 12 | D81: =E81*1.14 -> 6.40338 | E81: =F81*G81 -> 5.617 | F81: 137 | G81: =5-(G55+G56) -> 0.041 | H81: القليوبيه | I81: 159587 | J81: 5 طن
C82: 13 | D82: 0 | E82: =F82*G82 -> 0 | F82: 137 | H82: القليوبيه | I82: 159588 | J82: 5 طن
D83: =SUM(D70:D82) -> 1223.49132 | E83: =SUM(E70:E82) -> 1073.238 | G83: =SUM(G70:G82) -> 6.701 | H83: الاجماليات | K83: =SUM(K70:K82) -> 0
F84: =E83*14% -> 150.25332 | G84: 14%ضريبة مبيعات
F85: =E83*3/100 -> 32.19714 | G85: 3%خصم واضافة
F86: =E83+F84-F85 -> 1191.29418 | G86: اجمالى المستحق

Sheet data
B1: =NOW() -> 2019-12-31T18:50:33.730 | E1: المستحق بالجنيه | G1: =(T2+L2+K2)-(J2+M2) -> 427840.85 | I1: =CurrText(G1,1,"جنيه","جنيهات",1,"قرش","قروش",2) -> أربعمائة وسبعة وعشرون ألفاً وثمانمائة وأربعون جنيه وخمس وثمانون قرش فقط لاغير
E2: اجماليات | G2: =SUBTOTAL(9,G4:G1029) -> 0 | H2: =SUBTOTAL(9,H4:H1029) -> 0 | I2: =SUBTOTAL(9,J4:J1029) -> 385745 | J2: =SUBTOTAL(9,J4:J1029) -> 385745 | K2: 1320 | L2: 47855 | M2: 0 | N2: 0 | O2: 0 | T2: =SUBTOTAL(9,T4:T1029) -> 764410.85
B3: رقم النقلة | C3: م | D3: التاريخ | E3: السائق | F3: السياره | G3: مكان التحميل | H3: مكان التعتيق | I3: المحافظة | J3: عهدة | K3: شيك | L3: ميزان | M3: خصم | N3: سولار | O3: كارتات | P3: نوع النقلة | Q3: ملاحظات | R3: نوع السيارة | S3: مقاول | T3: القيمة | U3: الكميه | V3: رصيد | W3: سعر الطن | X3: رقم Shipment | Y3: الوزن | Z3: الصافي | AA3: ت اخر محاسبة | AB3: رقم الفاتوره | AC3: مسلسل الفاتوره | AD3: تاريخ الفاتورة | AH3: =IFERROR(INDEX($E$4:$E$7000,MATCH(0,COUNTIF($AH$2:$AH2,$E$4:$E$7000),0)),"") -> وليد رمضان
A4: =IF(AE4=حساب_سائق!$L$2,COUNTIFS($AE$4:AE4,AE4),"") ->  | B4: =D4&C4 -> 437091 | C4: 1 | D4: 2019-09-01 | E4: وليد رمضان | H4: مطروح | I4: مطروح | J4: 1400 | L4: 80 | P4: N | R4: 5 طن | T4: 2449.26 | U4: 7.422 | W4: 330 | X4: 144104 | Y4: 7.422 | AE4: =AND(E4=حساب_سائق!$B$2,D4>=حساب_سائق!$G$2,D4<=حساب_سائق!$I$2) -> FALSE | AH4: =IFERROR(INDEX($E$4:$E$7000,MATCH(0,COUNTIF($AH$2:$AH3,$E$4:$E$7000),0)),"") -> نبيل رجب
A5: =IF(AE5=حساب_سائق!$L$2,COUNTIFS($AE$4:AE5,AE5),"") ->  | B5: =D5&C5 -> 437092 | C5: 2 | D5: 2019-09-01 | E5: نبيل رجب | H5: البدرشين | I5: الجيزه | J5: 400 | R5: 5 طن | T5: 679.7 | U5: 6.797 | W5: 100 | X5: 144120 | Y5: 6.797 | AE5: =AND(E5=حساب_سائق!$B$2,D5>=حساب_سائق!$G$2,D5<=حساب_سائق!$I$2) -> FALSE | AH5: =IFERROR(INDEX($E$4:$E$7000,MATCH(0,COUNTIF($AH$2:$AH4,$E$4:$E$7000),0)),"") -> مصطفي عزت
A6: =IF(AE6=حساب_سائق!$L$2,COUNTIFS($AE$4:AE6,AE6),"") ->  | B6: 437093 | C6: 3 | D6: 2019-09-01 | E6: مصطفي عزت | F6: 3751 | H6: اسكندريه | I6: الاسكندريه | J6: 150 | L6: 115 | R6: 5 طن | T6: 0 | U6: 6.782 | X6: 144190/201/2/3 | Y6: 6.782 | AE6: =AND(E6=حساب_سائق!$B$2,D6>=حساب_سائق!$G$2,D6<=حساب_سائق!$I$2) -> FALSE | AH6: =IFERROR(INDEX($E$4:$E$7000,MATCH(0,COUNTIF($AH$2:$AH5,$E$4:$E$7000),0)),"") -> محمود عفيفي
A7: =IF(AE7=حساب_سائق!$L$2,COUNTIFS($AE$4:AE7,AE7),"") ->  | B7: 437094 | C7: 4 | D7: 2019-09-01 | E7: محمود عفيفي | H7: القاهره | I7: القاهره | L7: 65 | P7: PO.Q | R7: 5 طن | T7: 500 | U7: 4.315 | W7: 100 | X7: 144037 | Y7: 4.315 | AE7: =AND(E7=حساب_سائق!$B$2,D7>=حساب_سائق!$G$2,D7<=حساب_سائق!$I$2) -> FALSE | AH7: =IFERROR(INDEX($E$4:$E$7000,MATCH(0,COUNTIF($AH$2:$AH6,$E$4:$E$7000),0)),"") -> محمود حسن
A8: =IF(AE8=حساب_سائق!$L$2,COUNTIFS($AE$4:AE8,AE8),"") ->  | B8: 437095 | C8: 5 | D8: 2019-09-01 | E8: محمود حسن | F8: 7918 | H8: بروفت | I8: القاهره | J8: 100 | L8: 65 | R8: 5 طن | T8: 0 | U8: 6.797 | X8: 144212 | Y8: 6.797 | AE8: =AND(E8=حساب_سائق!$B$2,D8>=حساب_سائق!$G$2,D8<=حساب_سائق!$I$2) -> FALSE | AH8: =IFERROR(INDEX($E$4:$E$7000,MATCH(0,COUNTIF($AH$2:$AH7,$E$4:$E$7000),0)),"") -> محمود احمد
A9: =IF(AE9=حساب_سائق!$L$2,COUNTIFS($AE$4:AE9,AE9),"") ->  | B9: 437096 | C9: 6 | D9: 2019-09-01 | E9: محمود احمد | H9: اسكندريه | I9: الاسكندريه | J9: 600 | L9: 80 | R9: 5 طن | T9: 1438.91 | U9: 7.379 | W9: 195 | X9: 144165 | Y9: 7.379 | AE9: =AND(E9=حساب_سائق!$B$2,D9>=حساب_سائق!$G$2,D9<=حساب_سائق!$I$2) -> FALSE | AH9: =IFERROR(INDEX($E$4:$E$7000,MATCH(0,COUNTIF($AH$2:$AH8,$E$4:$E$7000),0)),"") -> محمد مسعود
A10: =IF(AE10=حساب_سائق!$L$2,COUNTIFS($AE$4:AE10,AE10),"") ->  | B10: 437097 | C10: 7 | D10: 2019-09-01 | E10: محمد مسعود | H10: المعادي | I10: القاهره | J10: 300 | R10: 5 طن | T10: 653.85 | U10: 7.265 | W10: 90 | X10: 144131 | Y10: 7.265 | AE10: =AND(E10=حساب_سائق!$B$2,D10>=حساب_سائق!$G$2,D10<=حساب_سائق!$I$2) -> FALSE | AH10: =IFERROR(INDEX($E$4:$E$7000,MATCH(0,COUNTIF($AH$2:$AH9,$E$4:$E$7000),0)),"") -> محمد حماده
A11: =IF(AE11=حساب_سائق!$L$2,COUNTIFS($AE$4:AE11,AE11),"") ->  | B11: 437098 | C11: 8 | D11: 2019-09-01 | E11: محمد حماده | F11: 9562 | H11: كرداسه | I11: الجيزه | J11: 100 | R11: 5 طن | S11: الشركه | T11: 0 | U11: 6.783 | X11: 144182 | Y11: 6.783 | AE11: =AND(E11=حساب_سائق!$B$2,D11>=حساب_سائق!$G$2,D11<=حساب_سائق!$I$2) -> FALSE | AH11: =IFERROR(INDEX($E$4:$E$7000,MATCH(0,COUNTIF($AH$2:$AH10,$E$4:$E$7000),0)),"") -> علاء شحاته
A12: =IF(AE12=حساب_سائق!$L$2,COUNTIFS($AE$4:AE12,AE12),"") ->  | B12: 437099 | C12: 9 | D12: 2019-09-01 | E12: علاء شحاته | H12: اسكندريه | I12: الاسكندريه | J12: 600 | L12: 80 | R12: 5 طن | T12: 1518.12 | U12: 7.061 | W12: 215 | X12: 144161 | Y12: 7.061 | AE12: =AND(E12=حساب_سائق!$B$2,D12>=حساب_سائق!$G$2,D12<=حساب_سائق!$I$2) -> FALSE | AH12: =IFERROR(INDEX($E$4:$E$7000,MATCH(0,COUNTIF($AH$2:$AH11,$E$4:$E$7000),0)),"") -> عبد الله محمد
A13: =IF(AE13=حساب_سائق!$L$2,COUNTIFS($AE$4:AE13,AE13),"") ->  | B13: 4370910 | C13: 10 | D13: 2019-09-01 | E13: عبد الله محمد | H13: القاهره | I13: القاهره | J13: 300 | L13: 65 | R13: 5 طن | T13: 450 | U13: 4.018 | W13: 90 | X13: 144038 | Y13: 4.018 | AE13: =AND(E13=حساب_سائق!$B$2,D13>=حساب_سائق!$G$2,D13<=حساب_سائق!$I$2) -> FALSE | AH13: =IFERROR(INDEX($E$4:$E$7000,MATCH(0,COUNTIF($AH$2:$AH12,$E$4:$E$7000),0)),"") -> عبد العزيز محمد
A14: =IF(AE14=حساب_سائق!$L$2,COUNTIFS($AE$4:AE14,AE14),"") ->  | B14: 4370911 | C14: 11 | D14: 2019-09-01 | E14: عبد العزيز محمد | H14: كفر الدوار | I14: كفر الدوار | J14: 3600 | L14: 80 | R14: 5 طن | T14: 1002.3 | U14: 5.14 | W14: 195 | X14: 144136 | Y14: 5.14 | AE14: =AND(E14=حساب_سائق!$B$2,D14>=حساب_سائق!$G$2,D14<=حساب_سائق!$I$2) -> FALSE | AH14: =IFERROR(INDEX($E$4:$E$7000,MATCH(0,COUNTIF($AH$2:$AH13,$E$4:$E$7000),0)),"") -> عبد الجيد سعد
A15: =IF(AE15=حساب_سائق!$L$2,COUNTIFS($AE$4:AE15,AE15),"") ->  | B15: 4370912 | C15: 12 | D15: 2019-09-01 | E15: عبد الجيد سعد | H15: كرداسه | I15: شرقيه | J15: 300 | R15: 5 طن | T15: 649.9 | U15: 6.499 | W15: 100 | X15: 144111 | Y15: 6.499 | AE15: =AND(E15=حساب_سائق!$B$2,D15>=حساب_سائق!$G$2,D15<=حساب_سائق!$I$2) -> FALSE | AH15: =IFERROR(INDEX($E$4:$E$7000,MATCH(0,COUNTIF($AH$2:$AH14,$E$4:$E$7000),0)),"") -> سعد محمد سعد
A16: =IF(AE16=حساب_سائق!$L$2,COUNTIFS($AE$4:AE16,AE16),"") ->  | B16: 4370913 | C16: 13 | D16: 2019-09-01 | E16: سعد محمد سعد | H16: غمرة | I16: الغردقه | J16: 500 | R16: 5 طن | T16: 578.97 | U16: 6.433 | W16: 90 | X16: 144225/26 | Y16: 6.433 | AE16: =AND(E16=حساب_سائق!$B$2,D16>=حساب_سائق!$G$2,D16<=حساب_سائق!$I$2) -> FALSE | AH16: =IFERROR(INDEX($E$4:$E$7000,MATCH(0,COUNTIF($AH$2:$AH15,$E$4:$E$7000),0)),"") -> رمضان حمدي
A17: =IF(AE17=حساب_سائق!$L$2,COUNTIFS($AE$4:AE17,AE17),"") -> 1 | B17: 4370914 | C17: 14 | D17: 2019-09-01 | E17: رمضان حمدي | F17: 1328 | H17: مترو | I17: الغردقه | J17: 100 | R17: 5 طن | S17: الشركه | T17: 0 | U17: 4.464 | X17: 144153 | Y17: 4.464 | AE17: =AND(E17=حساب_سائق!$B$2,D17>=حساب_سائق!$G$2,D17<=حساب_سائق!$I$2) -> TRUE | AH17: =IFERROR(INDEX($E$4:$E$7000,MATCH(0,COUNTIF($AH$2:$AH16,$E$4:$E$7000),0)),"") -> رفعت مرسي
A18: =IF(AE18=حساب_سائق!$L$2,COUNTIFS($AE$4:AE18,AE18),"") ->  | B18: 4370915 | C18: 15 | D18: 2019-09-01 | E18: رفعت مرسي | F18: 4158 | H18: غمرة | I18: شرقيه | J18: 300 | K18: 35 | R18: 5 طن | T18: 701.7 | U18: 7.017 | W18: 100 | X18: 144196 | Y18: 7.017 | AE18: =AND(E18=حساب_سائق!$B$2,D18>=حساب_سائق!$G$2,D18<=حساب_سائق!$I$2) -> FALSE | AH18: =IFERROR(INDEX($E$4:$E$7000,MATCH(0,COUNTIF($AH$2:$AH17,$E$4:$E$7000),0)),"") -> رضا امين
A19: =IF(AE19=حساب_سائق!$L$2,COUNTIFS($AE$4:AE19,AE19),"") ->  | B19: 4370916 | C19: 16 | D19: 2019-09-01 | E19: رضا امين | H19: اسكندريه | I19: بحيره | J19: 200 | L19: 80 | R19: 5 طن | S19: ابو مازن | T19: 1075 | U19: 4.87 | W19: 215 | X19: 144155 | Y19: 4.87 | AE19: =AND(E19=حساب_سائق!$B$2,D19>=حساب_سائق!$G$2,D19<=حساب_سائق!$I$2) -> FALSE | AH19: =IFERROR(INDEX($E$4:$E$7000,MATCH(0,COUNTIF($AH$2:$AH18,$E$4:$E$7000),0)),"") -> حسن عبد الحليم
A20: =IF(AE20=حساب_سائق!$L$2,COUNTIFS($AE$4:AE20,AE20),"") ->  | B20: 4370917 | C20: 17 | D20: 2019-09-01 | E20: حسن عبد الحليم | F20: 4612 | H20: شرقيه | I20: شرقيه | R20: فرداني | T20: 771 | U20: 10.28 | W20: 75 | X20: 144145 | Y20: 10.28 | AE20: =AND(E20=حساب_سائق!$B$2,D20>=حساب_سائق!$G$2,D20<=حساب_سائق!$I$2) -> FALSE | AH20: =IFERROR(INDEX($E$4:$E$7000,MATCH(0,COUNTIF($AH$2:$AH19,$E$4:$E$7000),0)),"") -> ايهاب شحاته
A21: =IF(AE21=حساب_سائق!$L$2,COUNTIFS($AE$4:AE21,AE21),"") ->  | B21: 4370918 | C21: 18 | D21: 2019-09-01 | E21: ايهاب شحاته | F21: 2843 | H21: كرداسه | I21: بحيره | J21: 300 | R21: 5 طن | T21: 677.1 | U21: 6.771 | W21: 100 | X21: 144105 | Y21: 6.771 | AE21: =AND(E21=حساب_سائق!$B$2,D21>=حساب_سائق!$G$2,D21<=حساب_سائق!$I$2) -> FALSE | AH21: =IFERROR(INDEX($E$4:$E$7000,MATCH(0,COUNTIF($AH$2:$AH20,$E$4:$E$7000),0)),"") -> اسلام محمد
A22: =IF(AE22=حساب_سائق!$L$2,COUNTIFS($AE$4:AE22,AE22),"") ->  | B22: 4370919 | C22: 19 | D22: 2019-09-01 | E22: اسلام محمد | H22: غمرة | I22: السويس | J22: 300 | K22: 35 | R22: 5 طن | T22: 631.53 | U22: 7.017 | W22: 90 | X22: 144195 | Y22: 7.017 | AE22: =AND(E22=حساب_سائق!$B$2,D22>=حساب_سائق!$G$2,D22<=حساب_سائق!$I$2) -> FALSE | AH22: =IFERROR(INDEX($E$4:$E$7000,MATCH(0,COUNTIF($AH$2:$AH21,$E$4:$E$7000),0)),"") -> اسلام احمد امين
A23: =IF(AE23=حساب_سائق!$L$2,COUNTIFS($AE$4:AE23,AE23),"") ->  | B23: 4370920 | C23: 20 | D23: 2019-09-01 | E23: اسلام احمد امين | H23: الاشراف | I23: بور سعيد | J23: 400 | R23: 5 طن | T23: 616.8 | U23: 6.168 | W23: 100 | X23: 144074 | Y23: 6.168 | AE23: =AND(E23=حساب_سائق!$B$2,D23>=حساب_سائق!$G$2,D23<=حساب_سائق!$I$2) -> FALSE | AH23: =IFERROR(INDEX($E$4:$E$7000,MATCH(0,COUNTIF($AH$2:$AH22,$E$4:$E$7000),0)),"") -> اسامه عبد الحليم
A24: =IF(AE24=حساب_سائق!$L$2,COUNTIFS($AE$4:AE24,AE24),"") ->  | B24: 4370921 | C24: 21 | D24: 2019-09-01 | E24: اسامه عبد الحليم | H24: غمرة | I24: المنيا | J24: 300 | R24: 5 طن | T24: 701.7 | U24: 7.017 | W24: 100 | X24: 144142 | Y24: 7.017 | AE24: =AND(E24=حساب_سائق!$B$2,D24>=حساب_سائق!$G$2,D24<=حساب_سائق!$I$2) -> FALSE | AH24: =IFERROR(INDEX($E$4:$E$7000,MATCH(0,COUNTIF($AH$2:$AH23,$E$4:$E$7000),0)),"") -> ابراهيم حامد
A25: =IF(AE25=حساب_سائق!$L$2,COUNTIFS($AE$4:AE25,AE25),"") ->  | B25: 4370922 | C25: 22 | D25: 2019-09-01 | E25: ابراهيم حامد | H25: القاهره | I25: نوبار | J25: 400 | R25: 5 طن | T25: 631.53 | U25: 7.017 | W25: 90 | X25: 144036 | Y25: 7.017 | AE25: =AND(E25=حساب_سائق!$B$2,D25>=حساب_سائق!$G$2,D25<=حساب_سائق!$I$2) -> FALSE | AH25: =IFERROR(INDEX($E$4:$E$7000,MATCH(0,COUNTIF($AH$2:$AH24,$E$4:$E$7000),0)),"") -> ابراهيم ابراهيم
A26: =IF(AE26=حساب_سائق!$L$2,COUNTIFS($AE$4:AE26,AE26),"") ->  | B26: 4370923 | C26: 23 | D26: 2019-09-01 | E26: ابراهيم ابراهيم | F26: 7918 | H26: ترست | I26: الغردقه | J26: 150 | L26: 125 | R26: 5 طن | S26: الشركه | T26: 0 | U26: 6.492 | X26: 144207 | Y26: 6.492 | AE26: =AND(E26=حساب_سائق!$B$2,D26>=حساب_سائق!$G$2,D26<=حساب_سائق!$I$2) -> FALSE | AH26: =IFERROR(INDEX($E$4:$E$7000,MATCH(0,COUNTIF($AH$2:$AH25,$E$4:$E$7000),0)),"") -> هاني سامي
A27: =IF(AE27=حساب_سائق!$L$2,COUNTIFS($AE$4:AE27,AE27),"") ->  | B27: 437101 | C27: 1 | D27: 2019-09-02 | E27: هاني سامي | H27: الغردقه | I27: الغردقه | J27: 1400 | L27: 75 | R27: 5 طن | S27: هاني سامي | T27: 2037.75 | U27: 6.175 | W27: 330 | X27: 144395 | Y27: 6.175 | AE27: =AND(E27=حساب_سائق!$B$2,D27>=حساب_سائق!$G$2,D27<=حساب_سائق!$I$2) -> FALSE | AH27: =IFERROR(INDEX($E$4:$E$7000,MATCH(0,COUNTIF($AH$2:$AH26,$E$4:$E$7000),0)),"") -> محمد مسيل
A28: =IF(AE28=حساب_سائق!$L$2,COUNTIFS($AE$4:AE28,AE28),"") ->  | B28: 437102 | C28: 2 | D28: 2019-09-02 | E28: مصطفي عزت | F28: 3751 | H28: المحلاوي | I28: الغردقه | J28: 100 | R28: 5 طن | T28: 0 | U28: 7.418 | X28: 144449 | Y28: 7.418 | AE28: =AND(E28=حساب_سائق!$B$2,D28>=حساب_سائق!$G$2,D28<=حساب_سائق!$I$2) -> FALSE | AH28: =IFERROR(INDEX($E$4:$E$7000,MATCH(0,COUNTIF($AH$2:$AH27,$E$4:$E$7000),0)),"") -> محمد محمد فراماوي
A29: =IF(AE29=حساب_سائق!$L$2,COUNTIFS($AE$4:AE29,AE29),"") ->  | B29: 437103 | C29: 3 | D29: 2019-09-02 | E29: محمود عفيفي | H29: اسكندريه | I29: نوبار | J29: 1000 | L29: 80 | R29: 5 طن | T29: 1579.82 | U29: 7.348 | W29: 215 | X29: 144267/68 | Y29: 7.348 | AE29: =AND(E29=حساب_سائق!$B$2,D29>=حساب_سائق!$G$2,D29<=حساب_سائق!$I$2) -> FALSE | AH29: =IFERROR(INDEX($E$4:$E$7000,MATCH(0,COUNTIF($AH$2:$AH28,$E$4:$E$7000),0)),"") -> محمد فتحي
A30: =IF(AE30=حساب_سائق!$L$2,COUNTIFS($AE$4:AE30,AE30),"") ->  | B30: 437104 | C30: 4 | D30: 2019-09-02 | E30: محمود حسن | F30: 7918 | H30: اكتوبر | I30: بني سويف | J30: 100 | L30: 75 | R30: 5 طن | T30: 0 | U30: 4.305 | X30: 144390 | Y30: 4.305 | AE30: =AND(E30=حساب_سائق!$B$2,D30>=حساب_سائق!$G$2,D30<=حساب_سائق!$I$2) -> FALSE | AH30: =IFERROR(INDEX($E$4:$E$7000,MATCH(0,COUNTIF($AH$2:$AH29,$E$4:$E$7000),0)),"") -> محمد جوده
A31: =IF(AE31=حساب_سائق!$L$2,COUNTIFS($AE$4:AE31,AE31),"") ->  | B31: 437105 | C31: 5 | D31: 2019-09-02 | E31: محمود احمد | H31: الغردقه | I31: الغردقه | J31: 1500 | L31: 65 | R31: 5 طن | T31: 2469.72 | U31: 7.484 | W31: 330 | X31: 144348/50/52 | Y31: 7.484 | AE31: =AND(E31=حساب_سائق!$B$2,D31>=حساب_سائق!$G$2,D31<=حساب_سائق!$I$2) -> FALSE | AH31: =IFERROR(INDEX($E$4:$E$7000,MATCH(0,COUNTIF($AH$2:$AH30,$E$4:$E$7000),0)),"") -> فتح الله عطيه
A32: =IF(AE32=حساب_سائق!$L$2,COUNTIFS($AE$4:AE32,AE32),"") ->  | B32: 437106 | C32: 6 | D32: 2019-09-02 | E32: محمد مسيل | F32: 7918 | H32: كرداسه | I32: الغردقه | J32: 400 | L32: 75 | R32: 5 طن | T32: 698.7 | U32: 6.987 | W32: 100 | X32: 144294 | Y32: 6.987 | AE32: =AND(E32=حساب_سائق!$B$2,D32>=حساب_سائق!$G$2,D32<=حساب_سائق!$I$2) -> FALSE | AH32: =IFERROR(INDEX($E$4:$E$7000,MATCH(0,COUNTIF($AH$2:$AH31,$E$4:$E$7000),0)),"") -> عوض محمد
A33: =IF(AE33=حساب_سائق!$L$2,COUNTIFS($AE$4:AE33,AE33),"") ->  | B33: 437107 | C33: 7 | D33: 2019-09-02 | E33: محمد مسعود | H33: اسكندريه | I33: بني سويف | J33: 650 | L33: 80 | R33: 5 طن | T33: 1384.11 | U33: 7.098 | W33: 195 | X33: 144373 | Y33: 7.098 | AE33: =AND(E33=حساب_سائق!$B$2,D33>=حساب_سائق!$G$2,D33<=حساب_سائق!$I$2) -> FALSE | AH33: =IFERROR(INDEX($E$4:$E$7000,MATCH(0,COUNTIF($AH$2:$AH32,$E$4:$E$7000),0)),"") -> عصام عيد
A34: =IF(AE34=حساب_سائق!$L$2,COUNTIFS($AE$4:AE34,AE34),"") ->  | B34: 437108 | C34: 8 | D34: 2019-09-02 | E34: محمد محمد فراماوي | F34: 6518 | H34: الحرمين | I34: مرسي علم | R34: 5 طن | T34: 760.32 | U34: 6.912 | W34: 110 | X34: 144372 | Y34: 6.912 | AE34: =AND(E34=حساب_سائق!$B$2,D34>=حساب_سائق!$G$2,D34<=حساب_سائق!$I$2) -> FALSE | AH34: =IFERROR(INDEX($E$4:$E$7000,MATCH(0,COUNTIF($AH$2:$AH33,$E$4:$E$7000),0)),"") -> عبد الرحمن عبد العزيز
A35: =IF(AE35=حساب_سائق!$L$2,COUNTIFS($AE$4:AE35,AE35),"") ->  | B35: 437109 | C35: 9 | D35: 2019-09-02 | E35: محمد محمد فراماوي | F35: 6518 | H35: كرداسه | I35: مرغم | J35: 300 | R35: 5 طن | T35: 684.64 | U35: 6.224 | W35: 110 | X35: 144500 | Y35: 6.224 | AE35: =AND(E35=حساب_سائق!$B$2,D35>=حساب_سائق!$G$2,D35<=حساب_سائق!$I$2) -> FALSE | AH35: =IFERROR(INDEX($E$4:$E$7000,MATCH(0,COUNTIF($AH$2:$AH34,$E$4:$E$7000),0)),"") -> رمضان رمضان
A36: =IF(AE36=حساب_سائق!$L$2,COUNTIFS($AE$4:AE36,AE36),"") ->  | B36: 4371010 | C36: 10 | D36: 2019-09-02 | E36: محمد فتحي | H36: شرقيه | I36: شرقيه | J36: 300 | R36: 5 طن | T36: 647.43 | U36: 6.815 | W36: 95 | X36: 144404 | Y36: 6.815 | AE36: =AND(E36=حساب_سائق!$B$2,D36>=حساب_سائق!$G$2,D36<=حساب_سائق!$I$2) -> FALSE | AH36: =IFERROR(INDEX($E$4:$E$7000,MATCH(0,COUNTIF($AH$2:$AH35,$E$4:$E$7000),0)),"") -> حسام مصطفي
A37: =IF(AE37=حساب_سائق!$L$2,COUNTIFS($AE$4:AE37,AE37),"") ->  | B37: 4371011 | C37: 11 | D37: 2019-09-02 | E37: محمد جوده | F37: 7918 | H37: فوكس | I37: بحيره | J37: 400 | R37: 5 طن | T37: 0 | U37: 0 | AE37: =AND(E37=حساب_سائق!$B$2,D37>=حساب_سائق!$G$2,D37<=حساب_سائق!$I$2) -> FALSE | AH37: =IFERROR(INDEX($E$4:$E$7000,MATCH(0,COUNTIF($AH$2:$AH36,$E$4:$E$7000),0)),"") -> حسام خميس
A38: =IF(AE38=حساب_سائق!$L$2,COUNTIFS($AE$4:AE38,AE38),"") ->  | B38: 4371012 | C38: 12 | D38: 2019-09-02 | E38: فتح الله عطيه | H38: دمياط | I38: الطور | J38: 1000 | R38: فرداني | S38: فتح الله | T38: 1643.09 | U38: 12.171 | W38: 135 | X38: 144382 | Y38: 12.171 | AE38: =AND(E38=حساب_سائق!$B$2,D38>=حساب_سائق!$G$2,D38<=حساب_سائق!$I$2) -> FALSE | AH38: =IFERROR(INDEX($E$4:$E$7000,MATCH(0,COUNTIF($AH$2:$AH37,$E$4:$E$7000),0)),"") -> جمعه عوض
A39: =IF(AE39=حساب_سائق!$L$2,COUNTIFS($AE$4:AE39,AE39),"") ->  | B39: 4371013 | C39: 13 | D39: 2019-09-02 | E39: عوض محمد | H39: القاهره | I39: السويس | J39: 300 | R39: 5 طن | T39: 591.21 | U39: 6.569 | W39: 90 | X39: 144380 | Y39: 6.569 | AE39: =AND(E39=حساب_سائق!$B$2,D39>=حساب_سائق!$G$2,D39<=حساب_سائق!$I$2) -> FALSE | AH39: =IFERROR(INDEX($E$4:$E$7000,MATCH(0,COUNTIF($AH$2:$AH38,$E$4:$E$7000),0)),"") -> بكر عدلي
A40: =IF(AE40=حساب_سائق!$L$2,COUNTIFS($AE$4:AE40,AE40),"") ->  | B40: 4371014 | C40: 14 | D40: 2019-09-02 | E40: علاء شحاته | H40: الفرجاني | I40: الغردقه | R40: 5 طن | T40: 627.4 | U40: 6.274 | W40: 100 | X40: 144334 | Y40: 6.274 | AE40: =AND(E40=حساب_سائق!$B$2,D40>=حساب_سائق!$G$2,D40<=حساب_سائق!$I$2) -> FALSE | AH40: =IFERROR(INDEX($E$4:$E$7000,MATCH(0,COUNTIF($AH$2:$AH39,$E$4:$E$7000),0)),"") -> اسماعيل السيد
A41: =IF(AE41=حساب_سائق!$L$2,COUNTIFS($AE$4:AE41,AE41),"") ->  | B41: 4371015 | C41: 15 | D41: 2019-09-02 | E41: عصام عيد | F41: 7918 | H41: الاشراف | I41: السويس | J41: 300 | L41: 75 | R41: 5 طن | T41: 631.7 | U41: 6.317 | W41: 100 | X41: 144264 | Y41: 6.317 | AE41: =AND(E41=حساب_سائق!$B$2,D41>=حساب_سائق!$G$2,D41<=حساب_سائق!$I$2) -> FALSE | AH41: =IFERROR(INDEX($E$4:$E$7000,MATCH(0,COUNTIF($AH$2:$AH40,$E$4:$E$7000),0)),"") -> اسلام احمد امين
A42: =IF(AE42=حساب_سائق!$L$2,COUNTIFS($AE$4:AE42,AE42),"") ->  | B42: 4371016 | C42: 16 | D42: 2019-09-02 | E42: عصام عيد | F42: 7918 | H42: بحيره | I42: بحيره | L42: 75 | R42: 5 طن | T42: 907.41 | U42: 6.258 | W42: 145 | X42: 144410 | Y42: 6.258 | AE42: =AND(E42=حساب_سائق!$B$2,D42>=حساب_سائق!$G$2,D42<=حساب_سائق!$I$2) -> FALSE | AH42: =IFERROR(INDEX($E$4:$E$7000,MATCH(0,COUNTIF($AH$2:$AH41,$E$4:$E$7000),0)),"") -> ابراهيم رؤف
A43: =IF(AE43=حساب_سائق!$L$2,COUNTIFS($AE$4:AE43,AE43),"") ->  | B43: 4371017 | C43: 17 | D43: 2019-09-02 | E43: عبد الله محمد | F43: 4928 | H43: الحرمين | I43: السويس | J43: 300 | L43: 75 | R43: 5 طن | T43: 640 | U43: 6.4 | W43: 100 | Y43: 6.4 | AE43: =AND(E43=حساب_سائق!$B$2,D43>=حساب_سائق!$G$2,D43<=حساب_سائق!$I$2) -> FALSE | AH43: =IFERROR(INDEX($E$4:$E$7000,MATCH(0,COUNTIF($AH$2:$AH42,$E$4:$E$7000),0)),"") -> طلبه السعيد
A44: =IF(AE44=حساب_سائق!$L$2,COUNTIFS($AE$4:AE44,AE44),"") ->  | B44: 4371018 | C44: 18 | D44: 2019-09-02 | E44: عبد الله محمد | F44: 4928 | H44: المحلاوي | I44: طنطا | J44: 300 | L44: 75 | R44: 5 طن | T44: 609.12 | U44: 6.768 | W44: 90 | X44: 144240 | Y44: 6.768 | AE44: =AND(E44=حساب_سائق!$B$2,D44>=حساب_سائق!$G$2,D44<=حساب_سائق!$I$2) -> FALSE | AH44: =IFERROR(INDEX($E$4:$E$7000,MATCH(0,COUNTIF($AH$2:$AH43,$E$4:$E$7000),0)),"") -> وليد رمضان
A45: =IF(AE45=حساب_سائق!$L$2,COUNTIFS($AE$4:AE45,AE45),"") ->  | B45: 4371019 | C45: 19 | D45: 2019-09-02 | E45: عبد العزيز محمد | H45: ام زغو | I45: بور سعيد | J45: 600 | L45: 80 | R45: 5 طن | T45: 1613.82 | U45: 8.276 | W45: 195 | X45: 144415 | Y45: 8.276 | AE45: =AND(E45=حساب_سائق!$B$2,D45>=حساب_سائق!$G$2,D45<=حساب_سائق!$I$2) -> FALSE | AH45: =IFERROR(INDEX($E$4:$E$7000,MATCH(0,COUNTIF($AH$2:$AH44,$E$4:$E$7000),0)),"") -> علاء شحاته
A46: =IF(AE46=حساب_سائق!$L$2,COUNTIFS($AE$4:AE46,AE46),"") ->  | B46: 4371020 | C46: 20 | D46: 2019-09-02 | E46: عبد الرحمن عبد العزيز | H46: البدرشين | I46: الفيوم | J46: 600 | R46: 5 طن | T46: 656.5 | U46: 6.565 | W46: 100 | X46: 144461 | Y46: 6.565 | AE46: =AND(E46=حساب_سائق!$B$2,D46>=حساب_سائق!$G$2,D46<=حساب_سائق!$I$2) -> FALSE | AH46: =IFERROR(INDEX($E$4:$E$7000,MATCH(0,COUNTIF($AH$2:$AH45,$E$4:$E$7000),0)),"") -> عبده فهمي
A47: =IF(AE47=حساب_سائق!$L$2,COUNTIFS($AE$4:AE47,AE47),"") ->  | B47: 4371021 | C47: 21 | D47: 2019-09-02 | E47: عبد الجيد سعد | H47: ايمرج | I47: ايمرج | J47: 2300 | R47: 5 طن | T47: 491.31 | U47: 5.459 | W47: 90 | X47: 144383 | Y47: 5.459 | AE47: =AND(E47=حساب_سائق!$B$2,D47>=حساب_سائق!$G$2,D47<=حساب_سائق!$I$2) -> FALSE | AH47: =IFERROR(INDEX($E$4:$E$7000,MATCH(0,COUNTIF($AH$2:$AH46,$E$4:$E$7000),0)),"") -> عبدالعليم عبدالحليم
A48: =IF(AE48=حساب_سائق!$L$2,COUNTIFS($AE$4:AE48,AE48),"") ->  | B48: 4371022 | C48: 22 | D48: 2019-09-02 | E48: سعد محمد سعد | H48: اسكندريه | I48: الغردقه | J48: 700 | L48: 80 | R48: 5 طن | T48: 1333.8 | U48: 6.84 | W48: 195 | X48: 144303 | Y48: 6.84 | AE48: =AND(E48=حساب_سائق!$B$2,D48>=حساب_سائق!$G$2,D48<=حساب_سائق!$I$2) -> FALSE | AH48: =IFERROR(INDEX($E$4:$E$7000,MATCH(0,COUNTIF($AH$2:$AH47,$E$4:$E$7000),0)),"") -> عبد الحكيم مرزوق
A49: =IF(AE49=حساب_سائق!$L$2,COUNTIFS($AE$4:AE49,AE49),"") ->  | B49: 4371023 | C49: 23 | D49: 2019-09-02 | E49: رمضان رمضان | H49: البدرشين | I49: كفر الشيخ | J49: 300 | R49: 5 طن | T49: 614.7 | U49: 6.147 | W49: 100 | X49: 144403 | Y49: 6.147 | AE49: =AND(E49=حساب_سائق!$B$2,D49>=حساب_سائق!$G$2,D49<=حساب_سائق!$I$2) -> FALSE | AH49: =IFERROR(INDEX($E$4:$E$7000,MATCH(0,COUNTIF($AH$2:$AH48,$E$4:$E$7000),0)),"") -> عبدالباري محمد
A50: =IF(AE50=حساب_سائق!$L$2,COUNTIFS($AE$4:AE50,AE50),"") -> 2 | B50: 4371024 | C50: 24 | D50: 2019-09-02 | E50: رمضان حمدي | F50: 1328 | H50: العاشر | I50: بور سعيد | J50: 100 | R50: 5 طن | S50: الشركه | T50: 225.44 | U50: 5.636 | W50: 40 | X50: 144400 | Y50: 5.636 | AE50: =AND(E50=حساب_سائق!$B$2,D50>=حساب_سائق!$G$2,D50<=حساب_سائق!$I$2) -> TRUE | AH50: =IFERROR(INDEX($E$4:$E$7000,MATCH(0,COUNTIF($AH$2:$AH49,$E$4:$E$7000),0)),"") -> رمضان محمود
A51: =IF(AE51=حساب_سائق!$L$2,COUNTIFS($AE$4:AE51,AE51),"") -> 3 | B51: 4371025 | C51: 25 | D51: 2019-09-02 | E51: رمضان حمدي | F51: 1328 | H51: العاشر | I51: كفر الشيخ | L51: 50 | R51: 5 طن | S51: الشركه | T51: 225.04 | U51: 5.626 | W51: 40 | X51: 144296 | Y51: 5.626 | AE51: =AND(E51=حساب_سائق!$B$2,D51>=حساب_سائق!$G$2,D51<=حساب_سائق!$I$2) -> TRUE | AH51: =IFERROR(INDEX($E$4:$E$7000,MATCH(0,COUNTIF($AH$2:$AH50,$E$4:$E$7000),0)),"") -> السعيد احمد
A52: =IF(AE52=حساب_سائق!$L$2,COUNTIFS($AE$4:AE52,AE52),"") ->  | B52: 4371026 | C52: 26 | D52: 2019-09-02 | E52: رفعت مرسي | F52: 4158 | H52: اكتوبر | I52: الغردقه | J52: 100 | L52: 75 | R52: 5 طن | T52: 600 | U52: 4.89 | W52: 120 | X52: 144423 | Y52: 4.89 | AE52: =AND(E52=حساب_سائق!$B$2,D52>=حساب_سائق!$G$2,D52<=حساب_سائق!$I$2) -> FALSE | AH52: =IFERROR(INDEX($E$4:$E$7000,MATCH(0,COUNTIF($AH$2:$AH51,$E$4:$E$7000),0)),"") -> اسلام فارس
A53: =IF(AE53=حساب_سائق!$L$2,COUNTIFS($AE$4:AE53,AE53),"") ->  | B53: 4371027 | C53: 27 | D53: 2019-09-02 | E53: حسن عبد الحليم | F53: 4612 | H53: دمياط | I53: الفيوم | R53: فرداني | T53: 1475.01 | U53: 10.926 | W53: 135 | X53: 144364 | Y53: 10.926 | AE53: =AND(E53=حساب_سائق!$B$2,D53>=حساب_سائق!$G$2,D53<=حساب_سائق!$I$2) -> FALSE | AH53: =IFERROR(INDEX($E$4:$E$7000,MATCH(0,COUNTIF($AH$2:$AH52,$E$4:$E$7000),0)),"") -> مصطفي احمد
A54: =IF(AE54=حساب_سائق!$L$2,COUNTIFS($AE$4:AE54,AE54),"") ->  | B54: 4371028 | C54: 28 | D54: 2019-09-02 | E54: حسام مصطفي | H54: مترو | I54: بور سعيد | J54: 300 | L54: 75 | R54: 5 طن | T54: 889.68 | U54: 8.088 | W54: 110 | X54: 144439 | Y54: 8.088 | AE54: =AND(E54=حساب_سائق!$B$2,D54>=حساب_سائق!$G$2,D54<=حساب_سائق!$I$2) -> FALSE | AH54: =IFERROR(INDEX($E$4:$E$7000,MATCH(0,COUNTIF($AH$2:$AH53,$E$4:$E$7000),0)),"") -> محمد فوزي
A55: =IF(AE55=حساب_سائق!$L$2,COUNTIFS($AE$4:AE55,AE55),"") ->  | B55: 4371029 | C55: 29 | D55: 2019-09-02 | E55: حسام خميس | F55: 7918 | H55: اسكندريه | I55: الغردقه | J55: 200 | R55: 5 طن | S55: ابو مازن | T55: 1318.81 | U55: 6.134 | W55: 215 | X55: 144459 | Y55: 6.134 | AE55: =AND(E55=حساب_سائق!$B$2,D55>=حساب_سائق!$G$2,D55<=حساب_سائق!$I$2) -> FALSE | AH55: =IFERROR(INDEX($E$4:$E$7000,MATCH(0,COUNTIF($AH$2:$AH54,$E$4:$E$7000),0)),"") -> سعيد محمد
A56: =IF(AE56=حساب_سائق!$L$2,COUNTIFS($AE$4:AE56,AE56),"") ->  | B56: 4371030 | C56: 30 | D56: 2019-09-02 | E56: جمعه عوض | H56: ابيس | I56: الشرقيه | J56: 200 | L56: 80 | R56: 5 طن | S56: ابو مازن | T56: 1196.26 | U56: 5.564 | W56: 215 | X56: 144378 | Y56: 5.564 | AE56: =AND(E56=حساب_سائق!$B$2,D56>=حساب_سائق!$G$2,D56<=حساب_سائق!$I$2) -> FALSE | AH56: =IFERROR(INDEX($E$4:$E$7000,MATCH(0,COUNTIF($AH$2:$AH55,$E$4:$E$7000),0)),"") -> اسلام محمود
A57: =IF(AE57=حساب_سائق!$L$2,COUNTIFS($AE$4:AE57,AE57),"") ->  | B57: 4371031 | C57: 31 | D57: 2019-09-02 | E57: بكر عدلي | F57: 7918 | H57: الاشراف | I57: كفر الشيخ | J57: 300 | L57: 65 | R57: 5 طن | T57: 500 | U57: 4.464 | W57: 100 | X57: 144453 | Y57: 4.464 | AE57: =AND(E57=حساب_سائق!$B$2,D57>=حساب_سائق!$G$2,D57<=حساب_سائق!$I$2) -> FALSE | AH57: =IFERROR(INDEX($E$4:$E$7000,MATCH(0,COUNTIF($AH$2:$AH56,$E$4:$E$7000),0)),"") -> محمد علي
A58: =IF(AE58=حساب_سائق!$L$2,COUNTIFS($AE$4:AE58,AE58),"") ->  | B58: 4371032 | C58: 32 | D58: 2019-09-02 | E58: ايهاب شحاته | F58: 2843 | H58: الاشراف | I58: السويس | J58: 400 | R58: 5 طن | T58: 666.8 | U58: 6.668 | W58: 100 | X58: 144271 | Y58: 6.668 | AE58: =AND(E58=حساب_سائق!$B$2,D58>=حساب_سائق!$G$2,D58<=حساب_سائق!$I$2) -> FALSE | AH58: =IFERROR(INDEX($E$4:$E$7000,MATCH(0,COUNTIF($AH$2:$AH57,$E$4:$E$7000),0)),"") -> حمدي سيد
A59: =IF(AE59=حساب_سائق!$L$2,COUNTIFS($AE$4:AE59,AE59),"") ->  | B59: 4371033 | C59: 33 | D59: 2019-09-02 | E59: اسماعيل السيد | H59: ابيس | I59: بور سعيد | J59: 200 | L59: 80 | R59: 5 طن | S59: ابو مازن | T59: 1207.66 | U59: 5.617 | W59: 215 | X59: 144347 | Y59: 5.617 | AE59: =AND(E59=حساب_سائق!$B$2,D59>=حساب_سائق!$G$2,D59<=حساب_سائق!$I$2) -> FALSE | AH59: =IFERROR(INDEX($E$4:$E$7000,MATCH(0,COUNTIF($AH$2:$AH58,$E$4:$E$7000),0)),"") -> ناصر رئيس
A60: =IF(AE60=حساب_سائق!$L$2,COUNTIFS($AE$4:AE60,AE60),"") ->  | B60: 4371034 | C60: 34 | D60: 2019-09-02 | E60: اسلام احمد امين | H60: الساحل | I60: بور سعيد | J60: 300 | K60: 35 | R60: 5 طن | T60: 571.5 | U60: 6.35 | W60: 90 | X60: 144273/4 | Y60: 6.35 | AE60: =AND(E60=حساب_سائق!$B$2,D60>=حساب_سائق!$G$2,D60<=حساب_سائق!$I$2) -> FALSE | AH60: =IFERROR(INDEX($E$4:$E$7000,MATCH(0,COUNTIF($AH$2:$AH59,$E$4:$E$7000),0)),"") -> محمد عبدالله
A61: =IF(AE61=حساب_سائق!$L$2,COUNTIFS($AE$4:AE61,AE61),"") ->  | B61: 4371035 | C61: 35 | D61: 2019-09-02 | E61: اسامه عبد الحليم | H61: مصر الجديده | I61: بور سعيد | J61: 300 | R61: 5 طن | T61: 633.3 | U61: 6.333 | W61: 100 | X61: 144357 | Y61: 6.333 | AE61: =AND(E61=حساب_سائق!$B$2,D61>=حساب_سائق!$G$2,D61<=حساب_سائق!$I$2) -> FALSE | AH61: =IFERROR(INDEX($E$4:$E$7000,MATCH(0,COUNTIF($AH$2:$AH60,$E$4:$E$7000),0)),"") -> عبد الله محمد سليمان
A62: =IF(AE62=حساب_سائق!$L$2,COUNTIFS($AE$4:AE62,AE62),"") ->  | B62: 4371036 | C62: 36 | D62: 2019-09-02 | E62: ابراهيم رؤف | F62: 7918 | H62: اسكندريه | I62: دمياط | J62: 500 | L62: 80 | R62: 5 طن | T62: 1310.21 | U62: 6.719 | W62: 195 | X62: 144339 | Y62: 6.719 | AE62: =AND(E62=حساب_سائق!$B$2,D62>=حساب_سائق!$G$2,D62<=حساب_سائق!$I$2) -> FALSE | AH62: =IFERROR(INDEX($E$4:$E$7000,MATCH(0,COUNTIF($AH$2:$AH61,$E$4:$E$7000),0)),"") -> خالد محمد جمعه
A63: =IF(AE63=حساب_سائق!$L$2,COUNTIFS($AE$4:AE63,AE63),"") ->  | B63: 4371037 | C63: 37 | D63: 2019-09-02 | E63: ابراهيم حامد | H63: القاهره | I63: بدون شغل | J63: 300 | R63: 5 طن | T63: 577.8 | U63: 6.42 | W63: 90 | X63: 144250 | Y63: 6.42 | AE63: =AND(E63=حساب_سائق!$B$2,D63>=حساب_سائق!$G$2,D63<=حساب_سائق!$I$2) -> FALSE | AH63: =IFERROR(INDEX($E$4:$E$7000,MATCH(0,COUNTIF($AH$2:$AH62,$E$4:$E$7000),0)),"") -> حسام حسن
A64: =IF(AE64=حساب_سائق!$L$2,COUNTIFS($AE$4:AE64,AE64),"") ->  | B64: 4371038 | C64: 38 | D64: 2019-09-02 | E64: طلبه السعيد | H64: اسكندريه | I64: بدون شغل | R64: 5 طن | T64: 0 | U64: 6.206 | X64: 144346 | Y64: 6.206 | AE64: =AND(E64=حساب_سائق!$B$2,D64>=حساب_سائق!$G$2,D64<=حساب_سائق!$I$2) -> FALSE | AH64: =IFERROR(INDEX($E$4:$E$7000,MATCH(0,COUNTIF($AH$2:$AH63,$E$4:$E$7000),0)),"") -> السيد عثمان
A65: =IF(AE65=حساب_سائق!$L$2,COUNTIFS($AE$4:AE65,AE65),"") ->  | B65: 4371039 | C65: 39 | D65: 2019-09-02 | E65: ابراهيم حامد | H65: المحلاوي | I65: روز جاردنردن | J65: 300 | R65: 5 طن | T65: 544.68 | U65: 6.052 | W65: 90 | X65: 144370 | Y65: 6.052 | AE65: =AND(E65=حساب_سائق!$B$2,D65>=حساب_سائق!$G$2,D65<=حساب_سائق!$I$2) -> FALSE | AH65: =IFERROR(INDEX($E$4:$E$7000,MATCH(0,COUNTIF($AH$2:$AH64,$E$4:$E$7000),0)),"") -> ابراهيم محمد
A66: =IF(AE66=حساب_سائق!$L$2,COUNTIFS($AE$4:AE66,AE66),"") ->  | B66: 4371040 | C66: 40 | D66: 2019-09-02 | E66: ابراهيم ابراهيم | F66: 7918 | H66: ترست | I66: بحيره | J66: 150 | L66: 115 | R66: 5 طن | S66: الشركه | T66: 0 | U66: 7.71 | X66: 144381 | Y66: 7.71 | AE66: =AND(E66=حساب_سائق!$B$2,D66>=حساب_سائق!$G$2,D66<=حساب_سائق!$I$2) -> FALSE | AH66: =IFERROR(INDEX($E$4:$E$7000,MATCH(0,COUNTIF($AH$2:$AH65,$E$4:$E$7000),0)),"") -> هشام رئيس
A67: =IF(AE67=حساب_سائق!$L$2,COUNTIFS($AE$4:AE67,AE67),"") ->  | B67: 437111 | C67: 1 | D67: 2019-09-03 | E67: وليد رمضان | H67: بروفت | I67: الغردقه | J67: 300 | L67: 75 | R67: 5 طن | T67: 571.5 | U67: 6.35 | W67: 90 | X67: 144482 | Y67: 6.35 | AE67: =AND(E67=حساب_سائق!$B$2,D67>=حساب_سائق!$G$2,D67<=حساب_سائق!$I$2) -> FALSE | AH67: =IFERROR(INDEX($E$4:$E$7000,MATCH(0,COUNTIF($AH$2:$AH66,$E$4:$E$7000),0)),"") -> خميس زناتي
A68: =IF(AE68=حساب_سائق!$L$2,COUNTIFS($AE$4:AE68,AE68),"") ->  | B68: 437112 | C68: 2 | D68: 2019-09-03 | E68: وليد رمضان | H68: دمياط | I68: الفيوم | J68: 1000 | L68: 75 | R68: 5 طن | T68: 1141.08 | U68: 6.168 | W68: 185 | X68: 144619 | Y68: 6.168 | AE68: =AND(E68=حساب_سائق!$B$2,D68>=حساب_سائق!$G$2,D68<=حساب_سائق!$I$2) -> FALSE | AH68: =IFERROR(INDEX($E$4:$E$7000,MATCH(0,COUNTIF($AH$2:$AH67,$E$4:$E$7000),0)),"") -> حسام حسن
A69: =IF(AE69=حساب_سائق!$L$2,COUNTIFS($AE$4:AE69,AE69),"") ->  | B69: =D69&C69 -> 437113 | C69: 3 | D69: 2019-09-03 | E69: مصطفي عزت | F69: 3751 | H69: العاشر | I69: السويس | J69: 100 | R69: 5 طن | T69: 249.08 | U69: 6.227 | W69: 40 | X69: 144647 | Y69: 6.227 | AE69: =AND(E69=حساب_سائق!$B$2,D69>=حساب_سائق!$G$2,D69<=حساب_سائق!$I$2) -> FALSE | AH69: =IFERROR(INDEX($E$4:$E$7000,MATCH(0,COUNTIF($AH$2:$AH68,$E$4:$E$7000),0)),"") -> وليد عبدالغفار
A70: =IF(AE70=حساب_سائق!$L$2,COUNTIFS($AE$4:AE70,AE70),"") ->  | B70: 437114 | C70: 4 | D70: 2019-09-03 | E70: محمود حسن | F70: 7918 | H70: المعادي | I70: الفيوم | J70: 100 | L70: 75 | R70: 5 طن | T70: 0 | U70: 4.75 | X70: 144653 | Y70: 4.75 | AE70: =AND(E70=حساب_سائق!$B$2,D70>=حساب_سائق!$G$2,D70<=حساب_سائق!$I$2) -> FALSE | AH70: =IFERROR(INDEX($E$4:$E$7000,MATCH(0,COUNTIF($AH$2:$AH69,$E$4:$E$7000),0)),"") -> عبد الجيد سعد
A71: =IF(AE71=حساب_سائق!$L$2,COUNTIFS($AE$4:AE71,AE71),"") ->  | B71: 437115 | C71: 5 | D71: 2019-09-03 | E71: محمد مسيل | F71: 7918 | H71: شرم | I71: كفر الشيخ | J71: 1400 | L71: 75 | R71: 5 طن | T71: 1973.4 | U71: 5.98 | W71: 330 | X71: 144564 | Y71: 5.98 | AE71: =AND(E71=حساب_سائق!$B$2,D71>=حساب_سائق!$G$2,D71<=حساب_سائق!$I$2) -> FALSE | AH71: =IFERROR(INDEX($E$4:$E$7000,MATCH(0,COUNTIF($AH$2:$AH70,$E$4:$E$7000),0)),"") -> خالد مرزوق
A72: =IF(AE72=حساب_سائق!$L$2,COUNTIFS($AE$4:AE72,AE72),"") ->  | B72: 437116 | C72: 6 | D72: 2019-09-03 | E72: محمد مسعود | H72: المقطم | I72: روز جاردنردن | J72: 300 | R72: 5 طن | T72: 450 | U72: 2.947 | W72: 90 | X72: 144638 | Y72: 2.947 | AE72: =AND(E72=حساب_سائق!$B$2,D72>=حساب_سائق!$G$2,D72<=حساب_سائق!$I$2) -> FALSE | AH72: =IFERROR(INDEX($E$4:$E$7000,MATCH(0,COUNTIF($AH$2:$AH71,$E$4:$E$7000),0)),"") -> محمد عبده
A73: =IF(AE73=حساب_سائق!$L$2,COUNTIFS($AE$4:AE73,AE73),"") ->  | B73: 437117 | C73: 7 | D73: 2019-09-03 | E73: محمد فتحي | H73: شرم | I73: كفر الشيخ | J73: 1400 | L73: 75 | R73: 5 طن | T73: 2238.39 | U73: 6.783 | W73: 330 | X73: 144549 | Y73: 6.783 | AE73: =AND(E73=حساب_سائق!$B$2,D73>=حساب_سائق!$G$2,D73<=حساب_سائق!$I$2) -> FALSE | AH73: =IFERROR(INDEX($E$4:$E$7000,MATCH(0,COUNTIF($AH$2:$AH72,$E$4:$E$7000),0)),"") -> عوض محمد
A74: =IF(AE74=حساب_سائق!$L$2,COUNTIFS($AE$4:AE74,AE74),"") ->  | B74: 437118 | C74: 8 | D74: 2019-09-03 | E74: محمد حماده | F74: 9562 | H74: اكتوبر | I74: قليوب | J74: 100 | R74: 5 طن | S74: الشركه | T74: 0 | U74: 2.147 | X74: 144597 | Y74: 2.147 | AE74: =AND(E74=حساب_سائق!$B$2,D74>=حساب_سائق!$G$2,D74<=حساب_سائق!$I$2) -> FALSE | AH74: =IFERROR(INDEX($E$4:$E$7000,MATCH(0,COUNTIF($AH$2:$AH73,$E$4:$E$7000),0)),"") -> حامد رفعت
A75: =IF(AE75=حساب_سائق!$L$2,COUNTIFS($AE$4:AE75,AE75),"") ->  | B75: 437119 | C75: 9 | D75: 2019-09-03 | E75: محمد جوده | F75: 7918 | H75: بحيره | I75: بحيره | J75: 500 | R75: 5 طن | T75: 0 | U75: 0 | AE75: =AND(E75=حساب_سائق!$B$2,D75>=حساب_سائق!$G$2,D75<=حساب_سائق!$I$2) -> FALSE | AH75: =IFERROR(INDEX($E$4:$E$7000,MATCH(0,COUNTIF($AH$2:$AH74,$E$4:$E$7000),0)),"") -> اسلام فارس
A76: =IF(AE76=حساب_سائق!$L$2,COUNTIFS($AE$4:AE76,AE76),"") ->  | B76: 4371110 | C76: 10 | D76: 2019-09-03 | E76: عوض محمد | H76: السويس | I76: السويس | J76: 1000 | R76: 5 طن | T76: 708.95 | U76: 6.445 | W76: 110 | X76: 144655 | Y76: 6.445 | AE76: =AND(E76=حساب_سائق!$B$2,D76>=حساب_سائق!$G$2,D76<=حساب_سائق!$I$2) -> FALSE | AH76: =IFERROR(INDEX($E$4:$E$7000,MATCH(0,COUNTIF($AH$2:$AH75,$E$4:$E$7000),0)),"") -> اسماعيل عبد الرؤف
A77: =IF(AE77=حساب_سائق!$L$2,COUNTIFS($AE$4:AE77,AE77),"") ->  | B77: 4371111 | C77: 11 | D77: 2019-09-03 | E77: علاء شحاته | H77: بور سعيد | I77: بور سعيد | J77: 500 | L77: 75 | R77: 5 طن | T77: 919.62 | U77: 6.812 | W77: 135 | X77: 144637 | Y77: 6.812 | AE77: =AND(E77=حساب_سائق!$B$2,D77>=حساب_سائق!$G$2,D77<=حساب_سائق!$I$2) -> FALSE | AH77: =IFERROR(INDEX($E$4:$E$7000,MATCH(0,COUNTIF($AH$2:$AH76,$E$4:$E$7000),0)),"") -> محمد عبد الحليم
A78: =IF(AE78=حساب_سائق!$L$2,COUNTIFS($AE$4:AE78,AE78),"") ->  | B78: 4371112 | C78: 12 | D78: 2019-09-03 | E78: عبده فهمي | H78: المنيا | I78: المنيا | J78: 4000 | L78: 420 | R78: تريلا | S78: عبده فهمي | T78: 2323.62 | U78: 17.874 | W78: 130 | X78: 144576 | Y78: 17.874 | AE78: =AND(E78=حساب_سائق!$B$2,D78>=حساب_سائق!$G$2,D78<=حساب_سائق!$I$2) -> FALSE | AH78: =IFERROR(INDEX($E$4:$E$7000,MATCH(0,COUNTIF($AH$2:$AH77,$E$4:$E$7000),0)),"") -> محمد شعبان
A79: =IF(AE79=حساب_سائق!$L$2,COUNTIFS($AE$4:AE79,AE79),"") ->  | B79: 4371113 | C79: 13 | D79: 2019-09-03 | E79: عبد الله محمد | F79: 4928 | H79: حلوان | I79: السادات | J79: 400 | L79: 75 | R79: 5 طن | T79: 582.3 | U79: 6.47 | W79: 90 | X79: 144389 | Y79: 6.47 | AE79: =AND(E79=حساب_سائق!$B$2,D79>=حساب_سائق!$G$2,D79<=حساب_سائق!$I$2) -> FALSE | AH79: =IFERROR(INDEX($E$4:$E$7000,MATCH(0,COUNTIF($AH$2:$AH78,$E$4:$E$7000),0)),"") -> اسلام محمد رجب
A80: =IF(AE80=حساب_سائق!$L$2,COUNTIFS($AE$4:AE80,AE80),"") ->  | B80: 4371114 | C80: 14 | D80: 2019-09-03 | E80: عبدالعليم عبدالحليم | F80: 59162 | H80: اسكندريه | I80: فوه | J80: 300 | L80: 90 | R80: 5 طن | T80: 0 | U80: 6.747 | X80: 144541 | Y80: 6.747 | AE80: =AND(E80=حساب_سائق!$B$2,D80>=حساب_سائق!$G$2,D80<=حساب_سائق!$I$2) -> FALSE | AH80: =IFERROR(INDEX($E$4:$E$7000,MATCH(0,COUNTIF($AH$2:$AH79,$E$4:$E$7000),0)),"") -> خالد محمد عبدالسلام
A81: =IF(AE81=حساب_سائق!$L$2,COUNTIFS($AE$4:AE81,AE81),"") ->  | B81: 4371115 | C81: 15 | D81: 2019-09-03 | E81: عبد الرحمن عبد العزيز | H81: البدرشين | I81: الغردقه | J81: 400 | L81: 75 | R81: 5 طن | T81: 615.7 | U81: 6.157 | W81: 100 | X81: 144490 | Y81: 6.157 | AE81: =AND(E81=حساب_سائق!$B$2,D81>=حساب_سائق!$G$2,D81<=حساب_سائق!$I$2) -> FALSE | AH81: =IFERROR(INDEX($E$4:$E$7000,MATCH(0,COUNTIF($AH$2:$AH80,$E$4:$E$7000),0)),"") -> خالد محمد
A82: =IF(AE82=حساب_سائق!$L$2,COUNTIFS($AE$4:AE82,AE82),"") ->  | B82: 4371116 | C82: 16 | D82: 2019-09-03 | E82: عبد الرحمن عبد العزيز | H82: المعادي | I82: بحيره | J82: 400 | K82: 50 | R82: 5 طن | T82: 487.35 | U82: 5.415 | W82: 90 | X82: 144641 | Y82: 5.415 | AE82: =AND(E82=حساب_سائق!$B$2,D82>=حساب_سائق!$G$2,D82<=حساب_سائق!$I$2) -> FALSE | AH82: =IFERROR(INDEX($E$4:$E$7000,MATCH(0,COUNTIF($AH$2:$AH81,$E$4:$E$7000),0)),"") -> مصطفي محمود
A83: =IF(AE83=حساب_سائق!$L$2,COUNTIFS($AE$4:AE83,AE83),"") ->  | B83: 4371117 | C83: 17 | D83: 2019-09-03 | E83: عبد الحكيم مرزوق | F83: 7918 | H83: القاهره | I83: قليوب | J83: 300 | L83: 65 | R83: 5 طن | T83: 648.81 | U83: 7.209 | W83: 90 | X83: 144492 | Y83: 7.209 | AE83: =AND(E83=حساب_سائق!$B$2,D83>=حساب_سائق!$G$2,D83<=حساب_سائق!$I$2) -> FALSE | AH83: =IFERROR(INDEX($E$4:$E$7000,MATCH(0,COUNTIF($AH$2:$AH82,$E$4:$E$7000),0)),"") -> محمد محمد سالم
A84: =IF(AE84=حساب_سائق!$L$2,COUNTIFS($AE$4:AE84,AE84),"") ->  | B84: 4371118 | C84: 18 | D84: 2019-09-03 | E84: عبد الحكيم مرزوق | F84: 7918 | H84: اسكندريه | I84: المنوفيه | J84: 600 | L84: 80 | R84: 5 طن | T84: 975 | U84: 4.384 | W84: 195 | X84: 144607 | Y84: 4.384 | AE84: =AND(E84=حساب_سائق!$B$2,D84>=حساب_سائق!$G$2,D84<=حساب_سائق!$I$2) -> FALSE | AH84: =IFERROR(INDEX($E$4:$E$7000,MATCH(0,COUNTIF($AH$2:$AH83,$E$4:$E$7000),0)),"") -> امين محمد
A85: =IF(AE85=حساب_سائق!$L$2,COUNTIFS($AE$4:AE85,AE85),"") ->  | B85: 4371119 | C85: 19 | D85: 2019-09-03 | E85: عبدالباري محمد | H85: الجيزه | I85: القناطر | J85: 300 | R85: 5 طن | T85: 640.4 | U85: 6.404 | W85: 100 | X85: 144503 | Y85: 6.404 | AE85: =AND(E85=حساب_سائق!$B$2,D85>=حساب_سائق!$G$2,D85<=حساب_سائق!$I$2) -> FALSE | AH85: =IFERROR(INDEX($E$4:$E$7000,MATCH(0,COUNTIF($AH$2:$AH84,$E$4:$E$7000),0)),"") -> امين احمد
A86: =IF(AE86=حساب_سائق!$L$2,COUNTIFS($AE$4:AE86,AE86),"") ->  | B86: 4371120 | C86: 20 | D86: 2019-09-03 | E86: عبدالباري محمد | H86: ولي العهد | I86: السويس | J86: 300 | R86: 5 طن | T86: 460.62 | U86: 5.118 | W86: 90 | X86: 144601 | Y86: 5.118 | AE86: =AND(E86=حساب_سائق!$B$2,D86>=حساب_سائق!$G$2,D86<=حساب_سائق!$I$2) -> FALSE | AH86: =IFERROR(INDEX($E$4:$E$7000,MATCH(0,COUNTIF($AH$2:$AH85,$E$4:$E$7000),0)),"") -> محمد مسيل
A87: =IF(AE87=حساب_سائق!$L$2,COUNTIFS($AE$4:AE87,AE87),"") ->  | B87: 4371121 | C87: 21 | D87: 2019-09-03 | E87: سعد محمد سعد | H87: العاشر | I87: السويس | J87: 100 | L87: 75 | R87: 5 طن | T87: 200 | U87: 4.013 | W87: 40 | X87: 144657 | Y87: 4.013 | AE87: =AND(E87=حساب_سائق!$B$2,D87>=حساب_سائق!$G$2,D87<=حساب_سائق!$I$2) -> FALSE | AH87: =IFERROR(INDEX($E$4:$E$7000,MATCH(0,COUNTIF($AH$2:$AH86,$E$4:$E$7000),0)),"") -> رمضان حمدي
A88: =IF(AE88=حساب_سائق!$L$2,COUNTIFS($AE$4:AE88,AE88),"") ->  | B88: 4371122 | C88: 22 | D88: 2019-09-03 | E88: رمضان محمود | F88: 7293 | H88: شرم | I88: الفيوم | J88: 250 | L88: 75 | R88: 5 طن | S88: الشركه | T88: 0 | U88: 6.127 | X88: 144569 | Y88: 6.127 | AE88: =AND(E88=حساب_سائق!$B$2,D88>=حساب_سائق!$G$2,D88<=حساب_سائق!$I$2) -> FALSE | AH88: =IFERROR(INDEX($E$4:$E$7000,MATCH(0,COUNTIF($AH$2:$AH87,$E$4:$E$7000),0)),"") -> احمد عبدالفتاح
A89: =IF(AE89=حساب_سائق!$L$2,COUNTIFS($AE$4:AE89,AE89),"") -> 4 | B89: 4371123 | C89: 23 | D89: 2019-09-03 | E89: رمضان حمدي | F89: 1328 | H89: الفرجاني | I89: الغردقه | J89: 100 | R89: 5 طن | S89: الشركه | T89: 0 | U89: 5.032 | X89: 144528 | Y89: 5.032 | AE89: =AND(E89=حساب_سائق!$B$2,D89>=حساب_سائق!$G$2,D89<=حساب_سائق!$I$2) -> TRUE | AH89: =IFERROR(INDEX($E$4:$E$7000,MATCH(0,COUNTIF($AH$2:$AH88,$E$4:$E$7000),0)),"") -> رمضان عبد الله
A90: =IF(AE90=حساب_سائق!$L$2,COUNTIFS($AE$4:AE90,AE90),"") ->  | B90: 4371124 | C90: 24 | D90: 2019-09-03 | E90: بكر عدلي | F90: 7918 | H90: البدرشين | I90: كفر الشيخ | J90: 300 | L90: 75 | R90: 5 طن | T90: 531.6 | U90: 5.316 | W90: 100 | X90: 144645 | Y90: 5.316 | AE90: =AND(E90=حساب_سائق!$B$2,D90>=حساب_سائق!$G$2,D90<=حساب_سائق!$I$2) -> FALSE | AH90: =IFERROR(INDEX($E$4:$E$7000,MATCH(0,COUNTIF($AH$2:$AH89,$E$4:$E$7000),0)),"") -> محمد عبد الرؤف
A91: =IF(AE91=حساب_سائق!$L$2,COUNTIFS($AE$4:AE91,AE91),"") ->  | B91: 4371125 | C91: 25 | D91: 2019-09-03 | E91: ايهاب شحاته | F91: 2843 | H91: الحرمين | I91: بحيره | J91: 300 | R91: 5 طن | T91: 745.8 | U91: 7.458 | W91: 100 | X91: 144527 | Y91: 7.458 | AE91: =AND(E91=حساب_سائق!$B$2,D91>=حساب_سائق!$G$2,D91<=حساب_سائق!$I$2) -> FALSE | AH91: =IFERROR(INDEX($E$4:$E$7000,MATCH(0,COUNTIF($AH$2:$AH90,$E$4:$E$7000),0)),"") -> احمد عبد الحكيم
A92: =IF(AE92=حساب_سائق!$L$2,COUNTIFS($AE$4:AE92,AE92),"") ->  | B92: 4371126 | C92: 26 | D92: 2019-09-03 | E92: السعيد احمد | F92: 7918 | H92: القاهره | I92: شرقيه | J92: 100 | R92: 5 طن | S92: ابو مازن | T92: 679.7 | U92: 6.797 | W92: 100 | X92: 144496 | Y92: 6.797 | AE92: =AND(E92=حساب_سائق!$B$2,D92>=حساب_سائق!$G$2,D92<=حساب_سائق!$I$2) -> FALSE | AH92: =IFERROR(INDEX($E$4:$E$7000,MATCH(0,COUNTIF($AH$2:$AH91,$E$4:$E$7000),0)),"") -> محمد ابراهيم
A93: =IF(AE93=حساب_سائق!$L$2,COUNTIFS($AE$4:AE93,AE93),"") ->  | B93: 4371127 | C93: 27 | D93: 2019-09-03 | E93: اسلام محمد | F93: 7918 | H93: القاهره | I93: بور سعيد | J93: 500 | K93: 35 | R93: 5 طن | T93: 450 | U93: 4.787 | W93: 90 | X93: 144486 | Y93: 4.372 | AA93: 0.415 | AE93: =AND(E93=حساب_سائق!$B$2,D93>=حساب_سائق!$G$2,D93<=حساب_سائق!$I$2) -> FALSE | AH93: =IFERROR(INDEX($E$4:$E$7000,MATCH(0,COUNTIF($AH$2:$AH92,$E$4:$E$7000),0)),"") -> ياسر سماره
A94: =IF(AE94=حساب_سائق!$L$2,COUNTIFS($AE$4:AE94,AE94),"") ->  | B94: 4371128 | C94: 28 | D94: 2019-09-03 | E94: اسلام محمد | F94: 7918 | H94: ترست | I94: الفيوم | J94: 600 | L94: 80 | R94: 5 طن | T94: 1359.74 | U94: 6.973 | W94: 195 | X94: 144640 | Y94: 6.973 | AE94: =AND(E94=حساب_سائق!$B$2,D94>=حساب_سائق!$G$2,D94<=حساب_سائق!$I$2) -> FALSE | AH94: =IFERROR(INDEX($E$4:$E$7000,MATCH(0,COUNTIF($AH$2:$AH93,$E$4:$E$7000),0)),"") -> محمد عرفه
A95: =IF(AE95=حساب_سائق!$L$2,COUNTIFS($AE$4:AE95,AE95),"") ->  | B95: 4371129 | C95: 29 | D95: 2019-09-03 | E95: اسلام فارس | F95: 7918 | H95: الفيصل | I95: شرقيه | J95: 100 | L95: 70 | R95: 5 طن | S95: الشركه | T95: 0 | U95: 6.222 | X95: 144611 | Y95: 6.222 | AE95: =AND(E95=حساب_سائق!$B$2,D95>=حساب_سائق!$G$2,D95<=حساب_سائق!$I$2) -> FALSE | AH95: =IFERROR(INDEX($E$4:$E$7000,MATCH(0,COUNTIF($AH$2:$AH94,$E$4:$E$7000),0)),"") -> محمد فتحي
A96: =IF(AE96=حساب_سائق!$L$2,COUNTIFS($AE$4:AE96,AE96),"") ->  | B96: 4371130 | C96: 30 | D96: 2019-09-03 | E96: اسلام احمد امين | H96: نوبار | I96: نوبار | J96: 300 | K96: 35 | R96: 5 طن | T96: 550.26 | U96: 6.114 | W96: 90 | X96: 144604 | Y96: 6.114 | AE96: =AND(E96=حساب_سائق!$B$2,D96>=حساب_سائق!$G$2,D96<=حساب_سائق!$I$2) -> FALSE | AH96: =IFERROR(INDEX($E$4:$E$7000,MATCH(0,COUNTIF($AH$2:$AH95,$E$4:$E$7000),0)),"") -> محمود رمضان
A97: =IF(AE97=حساب_سائق!$L$2,COUNTIFS($AE$4:AE97,AE97),"") ->  | B97: 4371131 | C97: 31 | D97: 2019-09-03 | E97: ابراهيم حامد | H97: اكتوبر | I97: شرقيه | J97: 400 | R97: 5 طن | T97: 677.16 | U97: 6.156 | W97: 110 | X97: 144631 | Y97: 6.156 | AE97: =AND(E97=حساب_سائق!$B$2,D97>=حساب_سائق!$G$2,D97<=حساب_سائق!$I$2) -> FALSE | AH97: =IFERROR(INDEX($E$4:$E$7000,MATCH(0,COUNTIF($AH$2:$AH96,$E$4:$E$7000),0)),"") -> عادل عاطف
A98: =IF(AE98=حساب_سائق!$L$2,COUNTIFS($AE$4:AE98,AE98),"") ->  | B98: 437121 | C98: 1 | D98: 2019-09-04 | E98: هاني سامي | H98: الغردقه | I98: الغردقه | J98: 1500 | L98: 75 | R98: 5 طن | S98: هاني سامي | T98: 2450.58 | U98: 7.426 | W98: 330 | X98: 144698 | Y98: 7.426 | AE98: =AND(E98=حساب_سائق!$B$2,D98>=حساب_سائق!$G$2,D98<=حساب_سائق!$I$2) -> FALSE | AH98: =IFERROR(INDEX($E$4:$E$7000,MATCH(0,COUNTIF($AH$2:$AH97,$E$4:$E$7000),0)),"") -> حامد رمضان
A99: =IF(AE99=حساب_سائق!$L$2,COUNTIFS($AE$4:AE99,AE99),"") ->  | B99: 437122 | C99: 2 | D99: 2019-09-04 | E99: مصطفي عزت | F99: 3751 | H99: اسكندريه | I99: السويس | J99: 150 | L99: 80 | R99: 5 طن | T99: 0 | U99: 6.398 | X99: 144800 | Y99: 6.398 | AE99: =AND(E99=حساب_سائق!$B$2,D99>=حساب_سائق!$G$2,D99<=حساب_سائق!$I$2) -> FALSE | AH99: =IFERROR(INDEX($E$4:$E$7000,MATCH(0,COUNTIF($AH$2:$AH98,$E$4:$E$7000),0)),"") -> مصطفي محمد
A100: =IF(AE100=حساب_سائق!$L$2,COUNTIFS($AE$4:AE100,AE100),"") ->  | B100: 437123 | C100: 3 | D100: 2019-09-04 | E100: مصطفي احمد | H100: الغردقه | I100: الغردقه | J100: 1400 | L100: 75 | R100: 5 طن | T100: 1883.64 | U100: 5.708 | W100: 330 | X100: 144693 | Y100: 5.708 | AE100: =AND(E100=حساب_سائق!$B$2,D100>=حساب_سائق!$G$2,D100<=حساب_سائق!$I$2) -> FALSE | AH100: =IFERROR(INDEX($E$4:$E$7000,MATCH(0,COUNTIF($AH$2:$AH99,$E$4:$E$7000),0)),"") -> حلمي عبد الحليم
A101: =IF(AE101=حساب_سائق!$L$2,COUNTIFS($AE$4:AE101,AE101),"") ->  | B101: 437124 | C101: 4 | D101: 2019-09-04 | E101: محمود حسن | F101: 7918 | H101: صن ستي | I101: بور سعيد | J101: 100 | R101: 5 طن | T101: 0 | U101: 4.545 | X101: 144760/59 | Y101: 4.545 | AE101: =AND(E101=حساب_سائق!$B$2,D101>=حساب_سائق!$G$2,D101<=حساب_سائق!$I$2) -> FALSE | AH101: =IFERROR(INDEX($E$4:$E$7000,MATCH(0,COUNTIF($AH$2:$AH100,$E$4:$E$7000),0)),"") -> ابراهيم لطفي
A102: =IF(AE102=حساب_سائق!$L$2,COUNTIFS($AE$4:AE102,AE102),"") ->  | B102: 437125 | C102: 5 | D102: 2019-09-04 | E102: محمود احمد | H102: الغردقه | I102: الغردقه | J102: 1500 | L102: 75 | R102: 5 طن | T102: 2494.14 | U102: 7.558 | W102: 330 | X102: 144701 | Y102: 7.558 | AE102: =AND(E102=حساب_سائق!$B$2,D102>=حساب_سائق!$G$2,D102<=حساب_سائق!$I$2) -> FALSE | AH102: =IFERROR(INDEX($E$4:$E$7000,MATCH(0,COUNTIF($AH$2:$AH101,$E$4:$E$7000),0)),"") -> رمضان خليل
A103: =IF(AE103=حساب_سائق!$L$2,COUNTIFS($AE$4:AE103,AE103),"") ->  | B103: 437126 | C103: 6 | D103: 2019-09-04 | E103: محمد مسعود | H103: نوبار | I103: نوبار | J103: 200 | R103: 5 طن | T103: 595.35 | U103: 6.615 | W103: 90 | X103: 144819 | Y103: 6.615 | AE103: =AND(E103=حساب_سائق!$B$2,D103>=حساب_سائق!$G$2,D103<=حساب_سائق!$I$2) -> FALSE | AH103: =IFERROR(INDEX($E$4:$E$7000,MATCH(0,COUNTIF($AH$2:$AH102,$E$4:$E$7000),0)),"") -> خليل عبدالمعطي
A104: =IF(AE104=حساب_سائق!$L$2,COUNTIFS($AE$4:AE104,AE104),"") ->  | B104: 437127 | C104: 7 | D104: 2019-09-04 | E104: محمد فوزي | F104: 4139 | H104: بني سويف | I104: بني سويف | J104: 700 | L104: 75 | R104: 5 طن | S104: فوزي | T104: 1220.56 | U104: 5.677 | W104: 215 | X104: 144766 | Y104: 5.677 | AE104: =AND(E104=حساب_سائق!$B$2,D104>=حساب_سائق!$G$2,D104<=حساب_سائق!$I$2) -> FALSE | AH104: =IFERROR(INDEX($E$4:$E$7000,MATCH(0,COUNTIF($AH$2:$AH103,$E$4:$E$7000),0)),"") -> محمد حلمي
A105: =IF(AE105=حساب_سائق!$L$2,COUNTIFS($AE$4:AE105,AE105),"") ->  | B105: 437128 | C105: 8 | D105: 2019-09-04 | E105: محمد حماده | F105: 9562 | H105: القاهره | I105: منوفيه | J105: 100 | R105: 5 طن | S105: الشركه | T105: 0 | U105: 5.957 | X105: 144705 | Y105: 5.957 | AE105: =AND(E105=حساب_سائق!$B$2,D105>=حساب_سائق!$G$2,D105<=حساب_سائق!$I$2) -> FALSE | AH105: =IFERROR(INDEX($E$4:$E$7000,MATCH(0,COUNTIF($AH$2:$AH104,$E$4:$E$7000),0)),"") -> رضا سعد
A106: =IF(AE106=حساب_سائق!$L$2,COUNTIFS($AE$4:AE106,AE106),"") ->  | B106: 437129 | C106: 9 | D106: 2019-09-04 | E106: عبدالعليم عبدالحليم | F106: 59162 | H106: البدرشين | I106: كفر الشيخ | R106: 5 طن | T106: 0 | U106: 5.711 | X106: 144829 | Y106: 5.711 | AE106: =AND(E106=حساب_سائق!$B$2,D106>=حساب_سائق!$G$2,D106<=حساب_سائق!$I$2) -> FALSE | AH106: =IFERROR(INDEX($E$4:$E$7000,MATCH(0,COUNTIF($AH$2:$AH105,$E$4:$E$7000),0)),"") -> محمود حافظ
A107: =IF(AE107=حساب_سائق!$L$2,COUNTIFS($AE$4:AE107,AE107),"") ->  | B107: 4371210 | C107: 10 | D107: 2019-09-04 | E107: عبدالباري محمد | H107: طوخ | I107: بحيره | R107: 5 طن | T107: 0 | U107: 6.398 | X107: 144805 | Y107: 6.398 | AE107: =AND(E107=حساب_سائق!$B$2,D107>=حساب_سائق!$G$2,D107<=حساب_سائق!$I$2) -> FALSE | AH107: =IFERROR(INDEX($E$4:$E$7000,MATCH(0,COUNTIF($AH$2:$AH106,$E$4:$E$7000),0)),"") -> وليد جلال
A108: =IF(AE108=حساب_سائق!$L$2,COUNTIFS($AE$4:AE108,AE108),"") ->  | B108: 4371211 | C108: 11 | D108: 2019-09-04 | E108: سعيد محمد | H108: الزاويه | I108: مرغم | J108: 300 | K108: 35 | R108: 5 طن | S108: عوض | T108: 547.2 | U108: 6.08 | W108: 90 | X108: 144841 | Y108: 6.08 | AE108: =AND(E108=حساب_سائق!$B$2,D108>=حساب_سائق!$G$2,D108<=حساب_سائق!$I$2) -> FALSE | AH108: =IFERROR(INDEX($E$4:$E$7000,MATCH(0,COUNTIF($AH$2:$AH107,$E$4:$E$7000),0)),"") -> اسلام محمد
A109: =IF(AE109=حساب_سائق!$L$2,COUNTIFS($AE$4:AE109,AE109),"") ->  | B109: 4371212 | C109: 12 | D109: 2019-09-04 | E109: سعد محمد سعد | H109: اسكندريه | I109: مرغم | J109: 700 | L109: 80 | R109: 5 طن | T109: 1136.46 | U109: 5.828 | W109: 195 | X109: 144727/4 | Y109: 5.828 | AE109: =AND(E109=حساب_سائق!$B$2,D109>=حساب_سائق!$G$2,D109<=حساب_سائق!$I$2) -> FALSE | AH109: =IFERROR(INDEX($E$4:$E$7000,MATCH(0,COUNTIF($AH$2:$AH108,$E$4:$E$7000),0)),"") -> حامد رفعت
A110: =IF(AE110=حساب_سائق!$L$2,COUNTIFS($AE$4:AE110,AE110),"") ->  | B110: 4371213 | C110: 13 | D110: 2019-09-04 | E110: رمضان رمضان | H110: الروان | I110: بحيره | J110: 1600 | L110: 80 | R110: 5 طن | T110: 1013.84 | U110: 6.992 | W110: 145 | X110: 194636 | Y110: 6.992 | AE110: =AND(E110=حساب_سائق!$B$2,D110>=حساب_سائق!$G$2,D110<=حساب_سائق!$I$2) -> FALSE | AH110: =IFERROR(INDEX($E$4:$E$7000,MATCH(0,COUNTIF($AH$2:$AH109,$E$4:$E$7000),0)),"") -> محمد عادل
A111: =IF(AE111=حساب_سائق!$L$2,COUNTIFS($AE$4:AE111,AE111),"") ->  | B111: 4371214 | C111: 14 | D111: 2019-09-04 | E111: حسن عبد الحليم | F111: 4612 | H111: دمياط | I111: شرقيه | R111: فرداني | T111: 1387.8 | U111: 10.28 | W111: 135 | X111: 144808 | Y111: 10.28 | AE111: =AND(E111=حساب_سائق!$B$2,D111>=حساب_سائق!$G$2,D111<=حساب_سائق!$I$2) -> FALSE | AH111: =IFERROR(INDEX($E$4:$E$7000,MATCH(0,COUNTIF($AH$2:$AH110,$E$4:$E$7000),0)),"") -> محمد مسيل
A112: =IF(AE112=حساب_سائق!$L$2,COUNTIFS($AE$4:AE112,AE112),"") ->  | B112: 4371215 | C112: 15 | D112: 2019-09-04 | E112: ايهاب شحاته | F112: 2843 | H112: بور سعيد | I112: بور سعيد | J112: 400 | L112: 75 | R112: 5 طن | T112: 728.41 | U112: 6.334 | W112: 115 | X112: 144712 | Y112: 6.334 | AE112: =AND(E112=حساب_سائق!$B$2,D112>=حساب_سائق!$G$2,D112<=حساب_سائق!$I$2) -> FALSE | AH112: =IFERROR(INDEX($E$4:$E$7000,MATCH(0,COUNTIF($AH$2:$AH111,$E$4:$E$7000),0)),"") -> محمد رمضان
A113: =IF(AE113=حساب_سائق!$L$2,COUNTIFS($AE$4:AE113,AE113),"") ->  | B113: 4371216 | C113: 16 | D113: 2019-09-04 | E113: اسلام محمود | F113: 9685 | H113: الغردقه | I113: الغردقه | J113: 1300 | L113: 75 | R113: 5 طن | T113: 2092.32 | U113: 5.812 | W113: 360 | X113: 144714 | Y113: 5.812 | AE113: =AND(E113=حساب_سائق!$B$2,D113>=حساب_سائق!$G$2,D113<=حساب_سائق!$I$2) -> FALSE | AH113: =IFERROR(INDEX($E$4:$E$7000,MATCH(0,COUNTIF($AH$2:$AH112,$E$4:$E$7000),0)),"") -> عربي خالد
A114: =IF(AE114=حساب_سائق!$L$2,COUNTIFS($AE$4:AE114,AE114),"") ->  | B114: 4371217 | C114: 17 | D114: 2019-09-04 | E114: اسلام محمود | F114: 9685 | H114: العبور | I114: بور سعيد | J114: 300 | R114: 5 طن | T114: 0 | U114: 0 | AE114: =AND(E114=حساب_سائق!$B$2,D114>=حساب_سائق!$G$2,D114<=حساب_سائق!$I$2) -> FALSE | AH114: =IFERROR(INDEX($E$4:$E$7000,MATCH(0,COUNTIF($AH$2:$AH113,$E$4:$E$7000),0)),"") -> محمود رمضان بنداري
A115: =IF(AE115=حساب_سائق!$L$2,COUNTIFS($AE$4:AE115,AE115),"") ->  | B115: 4371218 | C115: 18 | D115: 2019-09-04 | E115: اسامه عبد الحليم | H115: العبور | I115: بور سعيد | J115: 300 | R115: 5 طن | T115: 665 | U115: 6.65 | W115: 100 | X115: 144700 | Y115: 6.65 | AE115: =AND(E115=حساب_سائق!$B$2,D115>=حساب_سائق!$G$2,D115<=حساب_سائق!$I$2) -> FALSE | AH115: =IFERROR(INDEX($E$4:$E$7000,MATCH(0,COUNTIF($AH$2:$AH114,$E$4:$E$7000),0)),"") -> هاني سعيد
A116: =IF(AE116=حساب_سائق!$L$2,COUNTIFS($AE$4:AE116,AE116),"") ->  | B116: 4371219 | C116: 19 | D116: 2019-09-04 | E116: ابراهيم ابراهيم | H116: بني سويف | I116: بني سويف | J116: 150 | L116: 75 | R116: 5 طن | T116: 0 | U116: 5.585 | X116: 144821 | Y116: 5.585 | AE116: =AND(E116=حساب_سائق!$B$2,D116>=حساب_سائق!$G$2,D116<=حساب_سائق!$I$2) -> FALSE | AH116: =IFERROR(INDEX($E$4:$E$7000,MATCH(0,COUNTIF($AH$2:$AH115,$E$4:$E$7000),0)),"") -> محمد الشبراوي
A117: =IF(AE117=حساب_سائق!$L$2,COUNTIFS($AE$4:AE117,AE117),"") ->  | B117: 4371220 | C117: 20 | D117: 2019-09-04 | E117: رمضان رمضان | H117: الروان | I117: غردقه | R117: 5 طن | T117: 1013.84 | U117: 6.992 | W117: 145 | X117: 80315549 | Y117: 6.992 | AE117: =AND(E117=حساب_سائق!$B$2,D117>=حساب_سائق!$G$2,D117<=حساب_سائق!$I$2) -> FALSE | AH117: =IFERROR(INDEX($E$4:$E$7000,MATCH(0,COUNTIF($AH$2:$AH116,$E$4:$E$7000),0)),"") -> امين متولي
A118: =IF(AE118=حساب_سائق!$L$2,COUNTIFS($AE$4:AE118,AE118),"") ->  | B118: 437131 | C118: 1 | D118: 2019-09-05 | E118: وليد رمضان | H118: الجيزه | I118: الفيوم | R118: 5 طن | T118: 689.5 | U118: 6.895 | W118: 100 | X118: 144854 | Y118: 6.895 | AE118: =AND(E118=حساب_سائق!$B$2,D118>=حساب_سائق!$G$2,D118<=حساب_سائق!$I$2) -> FALSE | AH118: =IFERROR(INDEX($E$4:$E$7000,MATCH(0,COUNTIF($AH$2:$AH117,$E$4:$E$7000),0)),"") -> حسن مصطفي
A119: =IF(AE119=حساب_سائق!$L$2,COUNTIFS($AE$4:AE119,AE119),"") ->  | B119: 437132 | C119: 2 | D119: 2019-09-05 | E119: محمد محمد فراماوي | F119: 6518 | H119: الاشراف | I119: العامر | J119: 500 | R119: 5 طن | T119: 550 | U119: 4.315 | W119: 110 | X119: 144855 | Y119: 4.315 | AE119: =AND(E119=حساب_سائق!$B$2,D119>=حساب_سائق!$G$2,D119<=حساب_سائق!$I$2) -> FALSE | AH119: =IFERROR(INDEX($E$4:$E$7000,MATCH(0,COUNTIF($AH$2:$AH118,$E$4:$E$7000),0)),"") -> هيثم سيف
A120: =IF(AE120=حساب_سائق!$L$2,COUNTIFS($AE$4:AE120,AE120),"") ->  | B120: 437133 | C120: 3 | D120: 2019-09-05 | E120: محمد علي | F120: 3269 | H120: مرسي علم | I120: مرسي علم | J120: 1400 | L120: 160 | R120: 5 طن | T120: 3831.45 | U120: 7.298 | W120: 525 | X120: 144873 | Y120: 7.298 | AE120: =AND(E120=حساب_سائق!$B$2,D120>=حساب_سائق!$G$2,D120<=حساب_سائق!$I$2) -> FALSE | AH120: =IFERROR(INDEX($E$4:$E$7000,MATCH(0,COUNTIF($AH$2:$AH119,$E$4:$E$7000),0)),"") -> جمعه ابراهيم
A121: =IF(AE121=حساب_سائق!$L$2,COUNTIFS($AE$4:AE121,AE121),"") ->  | B121: 437134 | C121: 4 | D121: 2019-09-05 | E121: محمد جوده | H121: مرغم | I121: مرغم | L121: 80 | R121: 5 طن | T121: 0 | U121: 7.784 | W121: 0 | X121: 144866 | Y121: 7.784 | AE121: =AND(E121=حساب_سائق!$B$2,D121>=حساب_سائق!$G$2,D121<=حساب_سائق!$I$2) -> FALSE | AH121: =IFERROR(INDEX($E$4:$E$7000,MATCH(0,COUNTIF($AH$2:$AH120,$E$4:$E$7000),0)),"") -> البيلي محمد
A122: =IF(AE122=حساب_سائق!$L$2,COUNTIFS($AE$4:AE122,AE122),"") ->  | B122: 437135 | C122: 5 | D122: 2019-09-05 | E122: فتح الله عطيه | H122: دمياط | I122: كفر الشيخ | R122: فرداني | S122: فتح الله | T122: 1685.88 | U122: 12.488 | W122: 135 | X122: 144906 | Y122: 12.488 | AE122: =AND(E122=حساب_سائق!$B$2,D122>=حساب_سائق!$G$2,D122<=حساب_سائق!$I$2) -> FALSE | AH122: =IFERROR(INDEX($E$4:$E$7000,MATCH(0,COUNTIF($AH$2:$AH121,$E$4:$E$7000),0)),"") -> سيد مصطفي
A123: =IF(AE123=حساب_سائق!$L$2,COUNTIFS($AE$4:AE123,AE123),"") ->  | B123: 437136 | C123: 6 | D123: 2019-09-05 | E123: علاء شحاته | H123: البدرشين | I123: بنها | J123: 300 | R123: 5 طن | T123: 778.8 | U123: 7.08 | W123: 110 | X123: 144851 | Y123: 7.08 | AE123: =AND(E123=حساب_سائق!$B$2,D123>=حساب_سائق!$G$2,D123<=حساب_سائق!$I$2) -> FALSE | AH123: =IFERROR(INDEX($E$4:$E$7000,MATCH(0,COUNTIF($AH$2:$AH122,$E$4:$E$7000),0)),"") -> محمد فؤاد
A124: =IF(AE124=حساب_سائق!$L$2,COUNTIFS($AE$4:AE124,AE124),"") ->  | B124: 437137 | C124: 7 | D124: 2019-09-05 | E124: علاء شحاته | H124: بحيره | I124: بحيره | J124: 500 | L124: 80 | R124: 5 طن | T124: 1246.08 | U124: 7.552 | W124: 165 | X124: 144900 | Y124: 7.552 | AE124: =AND(E124=حساب_سائق!$B$2,D124>=حساب_سائق!$G$2,D124<=حساب_سائق!$I$2) -> FALSE | AH124: =IFERROR(INDEX($E$4:$E$7000,MATCH(0,COUNTIF($AH$2:$AH123,$E$4:$E$7000),0)),"") -> هاني بدوي
A125: =IF(AE125=حساب_سائق!$L$2,COUNTIFS($AE$4:AE125,AE125),"") ->  | B125: 437138 | C125: 8 | D125: 2019-09-05 | E125: عبد الله محمد | F125: 4928 | H125: بروفت | I125: بحيره | L125: 65 | R125: 5 طن | T125: 611.73 | U125: 6.797 | W125: 90 | X125: 144847 | Y125: 6.797 | AE125: =AND(E125=حساب_سائق!$B$2,D125>=حساب_سائق!$G$2,D125<=حساب_سائق!$I$2) -> FALSE | AH125: =IFERROR(INDEX($E$4:$E$7000,MATCH(0,COUNTIF($AH$2:$AH124,$E$4:$E$7000),0)),"") -> حسين عبدالفتاح
A126: =IF(AE126=حساب_سائق!$L$2,COUNTIFS($AE$4:AE126,AE126),"") ->  | B126: 437139 | C126: 9 | D126: 2019-09-05 | E126: اسلام محمد | H126: اسكندريه | I126: ميت غمر | L126: 75 | R126: 5 طن | T126: 1324.83 | U126: 6.794 | W126: 195 | X126: 144908 | Y126: 6.794 | AE126: =AND(E126=حساب_سائق!$B$2,D126>=حساب_سائق!$G$2,D126<=حساب_سائق!$I$2) -> FALSE | AH126: =IFERROR(INDEX($E$4:$E$7000,MATCH(0,COUNTIF($AH$2:$AH125,$E$4:$E$7000),0)),"") -> احمد محرم
A127: =IF(AE127=حساب_سائق!$L$2,COUNTIFS($AE$4:AE127,AE127),"") ->  | B127: 4371310 | C127: 10 | D127: 2019-09-05 | E127: عبد العزيز محمد | H127: بحيره | I127: بحيره | J127: 600 | L127: 80 | R127: 5 طن | T127: 1121.01 | U127: 6.794 | W127: 165 | X127: 144907 | Y127: 6.794 | AE127: =AND(E127=حساب_سائق!$B$2,D127>=حساب_سائق!$G$2,D127<=حساب_سائق!$I$2) -> FALSE | AH127: =IFERROR(INDEX($E$4:$E$7000,MATCH(0,COUNTIF($AH$2:$AH126,$E$4:$E$7000),0)),"") -> محمود رمضان عكاشه
A128: =IF(AE128=حساب_سائق!$L$2,COUNTIFS($AE$4:AE128,AE128),"") ->  | B128: 4371311 | C128: 11 | D128: 2019-09-05 | E128: عبد الحكيم مرزوق | H128: اسكندريه | I128: غردقه | L128: 80 | R128: 5 طن | T128: 1200.03 | U128: 6.154 | W128: 195 | X128: 144910 | Y128: 1.241 | AA128: 4.913 | AE128: =AND(E128=حساب_سائق!$B$2,D128>=حساب_سائق!$G$2,D128<=حساب_سائق!$I$2) -> FALSE | AH128: =IFERROR(INDEX($E$4:$E$7000,MATCH(0,COUNTIF($AH$2:$AH127,$E$4:$E$7000),0)),"") -> جمال عبدالحكيم
A129: =IF(AE129=حساب_سائق!$L$2,COUNTIFS($AE$4:AE129,AE129),"") ->  | B129: 4371312 | C129: 12 | D129: 2019-09-05 | E129: عبد الجيد سعد | H129: ام زغو | I129: بحيره | J129: 600 | R129: 5 طن | T129: 1642.39 | U129: 7.639 | W129: 215 | X129: 144871 | Y129: 7.639 | AE129: =AND(E129=حساب_سائق!$B$2,D129>=حساب_سائق!$G$2,D129<=حساب_سائق!$I$2) -> FALSE | AH129: =IFERROR(INDEX($E$4:$E$7000,MATCH(0,COUNTIF($AH$2:$AH128,$E$4:$E$7000),0)),"") -> ابراهيم حسن
A130: =IF(AE130=حساب_سائق!$L$2,COUNTIFS($AE$4:AE130,AE130),"") ->  | B130: 4371313 | C130: 13 | D130: 2019-09-05 | E130: حمدي سيد | F130: 9837 | H130: الروان | I130: الطور | L130: 80 | R130: 5 طن | T130: 1121.01 | U130: 6.794 | W130: 165 | X130: 144882 | Y130: 6.794 | AE130: =AND(E130=حساب_سائق!$B$2,D130>=حساب_سائق!$G$2,D130<=حساب_سائق!$I$2) -> FALSE | AH130: =IFERROR(INDEX($E$4:$E$7000,MATCH(0,COUNTIF($AH$2:$AH129,$E$4:$E$7000),0)),"") -> السيد سعيد
A131: =IF(AE131=حساب_سائق!$L$2,COUNTIFS($AE$4:AE131,AE131),"") ->  | B131: 4371314 | C131: 14 | D131: 2019-09-05 | E131: اسلام محمد | H131: العبور | I131: بيم | J131: 300 | R131: 5 طن | T131: 715.5 | U131: 7.95 | W131: 90 | X131: 144747 | Y131: 7.95 | AE131: =AND(E131=حساب_سائق!$B$2,D131>=حساب_سائق!$G$2,D131<=حساب_سائق!$I$2) -> FALSE | AH131: =IFERROR(INDEX($E$4:$E$7000,MATCH(0,COUNTIF($AH$2:$AH130,$E$4:$E$7000),0)),"") -> عبدالعزيز محمد
A132: =IF(AE132=حساب_سائق!$L$2,COUNTIFS($AE$4:AE132,AE132),"") ->  | B132: 4371315 | C132: 15 | D132: 2019-09-05 | E132: اسلام احمد امين | F132: 7342 | H132: العاشر | I132: بيم | R132: 5 طن | T132: 205.2 | U132: 5.13 | W132: 40 | X132: 144822 | Y132: 5.13 | AE132: =AND(E132=حساب_سائق!$B$2,D132>=حساب_سائق!$G$2,D132<=حساب_سائق!$I$2) -> FALSE | AH132: =IFERROR(INDEX($E$4:$E$7000,MATCH(0,COUNTIF($AH$2:$AH131,$E$4:$E$7000),0)),"") -> محمود يوسف
A133: =IF(AE133=حساب_سائق!$L$2,COUNTIFS($AE$4:AE133,AE133),"") ->  | B133: =D133&C133 -> 4371316 | C133: 16 | D133: 2019-09-05 | E133: اسلام احمد امين | F133: 7342 | H133: بروفت | I133: مطروح | R133: 5 طن | T133: 644.04 | U133: 7.156 | W133: 90 | X133: 144845 | Y133: 7.156 | AE133: =AND(E133=حساب_سائق!$B$2,D133>=حساب_سائق!$G$2,D133<=حساب_سائق!$I$2) -> FALSE | AH133: =IFERROR(INDEX($E$4:$E$7000,MATCH(0,COUNTIF($AH$2:$AH132,$E$4:$E$7000),0)),"") -> محمد حسن
A134: =IF(AE134=حساب_سائق!$L$2,COUNTIFS($AE$4:AE134,AE134),"") ->  | B134: 4371517 | C134: 17 | D134: 2019-09-07 | E134: هاني سامي | H134: الطور | I134: الطور | J134: 1300 | L134: 65 | R134: 5 طن | S134: هاني سامي | T134: 2573.25 | U134: 6.862 | W134: 375 | X134: 145198 | Y134: 4.469 | AA134: 2.393 | AE134: =AND(E134=حساب_سائق!$B$2,D134>=حساب_سائق!$G$2,D134<=حساب_سائق!$I$2) -> FALSE | AH134: =IFERROR(INDEX($E$4:$E$7000,MATCH(0,COUNTIF($AH$2:$AH133,$E$4:$E$7000),0)),"") -> محمد السيد
A135: =IF(AE135=حساب_سائق!$L$2,COUNTIFS($AE$4:AE135,AE135),"") ->  | B135: 4371518 | C135: 18 | D135: 2019-09-07 | E135: ناصر رئيس | H135: السويس | I135: السويس | J135: 400 | R135: 5 طن | T135: 0 | U135: 6.111 | X135: 144971 | Y135: 6.111 | AE135: =AND(E135=حساب_سائق!$B$2,D135>=حساب_سائق!$G$2,D135<=حساب_سائق!$I$2) -> FALSE | AH135: =IFERROR(INDEX($E$4:$E$7000,MATCH(0,COUNTIF($AH$2:$AH134,$E$4:$E$7000),0)),"") -> محمود رضا
A136: =IF(AE136=حساب_سائق!$L$2,COUNTIFS($AE$4:AE136,AE136),"") ->  | B136: 4371519 | C136: 19 | D136: 2019-09-07 | E136: محمود حسن | F136: 4217 | H136: المعادي | I136: السويس | L136: 65 | R136: 5 طن | T136: 0 | U136: 7.105 | X136: 144990 | Y136: 7.105 | AE136: =AND(E136=حساب_سائق!$B$2,D136>=حساب_سائق!$G$2,D136<=حساب_سائق!$I$2) -> FALSE | AH136: =IFERROR(INDEX($E$4:$E$7000,MATCH(0,COUNTIF($AH$2:$AH135,$E$4:$E$7000),0)),"") -> حسن عبدالحليم
A137: =IF(AE137=حساب_سائق!$L$2,COUNTIFS($AE$4:AE137,AE137),"") ->  | B137: 4371520 | C137: 20 | D137: 2019-09-07 | E137: محمد مسعود | F137: 5689 | H137: الغردقه | I137: الغردقه | J137: 1400 | L137: 80 | R137: 5 طن | T137: 2427.25 | U137: 6.65 | W137: 365 | X137: 145096 | Y137: 6.65 | AE137: =AND(E137=حساب_سائق!$B$2,D137>=حساب_سائق!$G$2,D137<=حساب_سائق!$I$2) -> FALSE | AH137: =IFERROR(INDEX($E$4:$E$7000,MATCH(0,COUNTIF($AH$2:$AH136,$E$4:$E$7000),0)),"") -> يوسف علي
A138: =IF(AE138=حساب_سائق!$L$2,COUNTIFS($AE$4:AE138,AE138),"") ->  | B138: 4371521 | C138: 21 | D138: 2019-09-07 | E138: محمد فوزي | F138: 4139 | H138: القاهره | I138: بحيره | J138: 300 | L138: 65 | R138: 5 طن | S138: فوزي | T138: 629 | U138: 6.29 | W138: 100 | X138: 145118 | Y138: 6.29 | AE138: =AND(E138=حساب_سائق!$B$2,D138>=حساب_سائق!$G$2,D138<=حساب_سائق!$I$2) -> FALSE | AH138: =IFERROR(INDEX($E$4:$E$7000,MATCH(0,COUNTIF($AH$2:$AH137,$E$4:$E$7000),0)),"") -> محب صلاح
A139: =IF(AE139=حساب_سائق!$L$2,COUNTIFS($AE$4:AE139,AE139),"") ->  | B139: 4371522 | C139: 22 | D139: 2019-09-07 | E139: محمد فوزي | F139: 4139 | H139: الحرمين | I139: بنها | J139: 300 | L139: 75 | R139: 5 طن | S139: فوزي | T139: 668.91 | U139: 6.081 | W139: 110 | X139: 144968 | Y139: 6.081 | AE139: =AND(E139=حساب_سائق!$B$2,D139>=حساب_سائق!$G$2,D139<=حساب_سائق!$I$2) -> FALSE | AH139: =IFERROR(INDEX($E$4:$E$7000,MATCH(0,COUNTIF($AH$2:$AH138,$E$4:$E$7000),0)),"") -> محمود عبدالعظيم
A140: =IF(AE140=حساب_سائق!$L$2,COUNTIFS($AE$4:AE140,AE140),"") ->  | B140: 4371523 | C140: 23 | D140: 2019-09-07 | E140: محمد حماده | F140: 9562 | H140: فستيفال | I140: بنها | J140: 100 | R140: 5 طن | S140: الشركه | T140: 0 | U140: 2.747 | X140: 144963/64 | Y140: 1.946 | AA140: 0.801 | AE140: =AND(E140=حساب_سائق!$B$2,D140>=حساب_سائق!$G$2,D140<=حساب_سائق!$I$2) -> FALSE | AH140: =IFERROR(INDEX($E$4:$E$7000,MATCH(0,COUNTIF($AH$2:$AH139,$E$4:$E$7000),0)),"") -> محمد علي
A141: =IF(AE141=حساب_سائق!$L$2,COUNTIFS($AE$4:AE141,AE141),"") ->  | B141: 4371524 | C141: 24 | D141: 2019-09-07 | E141: محمد حماده | F141: 9562 | H141: بدر | I141: بور سعيد | J141: 150 | L141: 75 | R141: 5 طن | S141: الشركه | T141: 0 | U141: 7.531 | X141: 145110 | Y141: 7.531 | AE141: =AND(E141=حساب_سائق!$B$2,D141>=حساب_سائق!$G$2,D141<=حساب_سائق!$I$2) -> FALSE | AH141: =IFERROR(INDEX($E$4:$E$7000,MATCH(0,COUNTIF($AH$2:$AH140,$E$4:$E$7000),0)),"") -> محمد عبده محمد
A142: =IF(AE142=حساب_سائق!$L$2,COUNTIFS($AE$4:AE142,AE142),"") ->  | B142: 4371525 | C142: 25 | D142: 2019-09-07 | E142: محمد عبدالله | F142: 1429 | H142: دمياط | I142: بحيره | J142: 600 | L142: 55 | R142: 5 طن | T142: 1264.44 | U142: 6.168 | W142: 205 | X142: 145068 | Y142: 6.168 | AE142: =AND(E142=حساب_سائق!$B$2,D142>=حساب_سائق!$G$2,D142<=حساب_سائق!$I$2) -> FALSE | AH142: =IFERROR(INDEX($E$4:$E$7000,MATCH(0,COUNTIF($AH$2:$AH141,$E$4:$E$7000),0)),"") -> حلمي عبدالحليم
A143: =IF(AE143=حساب_سائق!$L$2,COUNTIFS($AE$4:AE143,AE143),"") ->  | B143: 4371526 | C143: 26 | D143: 2019-09-07 | E143: عوض محمد | H143: السويس | I143: السويس | J143: 400 | L143: 80 | R143: 5 طن | T143: 698.5 | U143: 6.35 | W143: 110 | X143: 145125 | Y143: 6.35 | AE143: =AND(E143=حساب_سائق!$B$2,D143>=حساب_سائق!$G$2,D143<=حساب_سائق!$I$2) -> FALSE | AH143: =IFERROR(INDEX($E$4:$E$7000,MATCH(0,COUNTIF($AH$2:$AH142,$E$4:$E$7000),0)),"") -> عبده محمد عبده
A144: =IF(AE144=حساب_سائق!$L$2,COUNTIFS($AE$4:AE144,AE144),"") ->  | B144: 4371527 | C144: 27 | D144: 2019-09-07 | E144: عبد الله محمد سليمان | F144: 4158 | H144: الاشراف | I144: بحيره | J144: 300 | R144: 5 طن | T144: 550 | U144: 5 | W144: 110 | Y144: 5 | AE144: =AND(E144=حساب_سائق!$B$2,D144>=حساب_سائق!$G$2,D144<=حساب_سائق!$I$2) -> FALSE | AH144: =IFERROR(INDEX($E$4:$E$7000,MATCH(0,COUNTIF($AH$2:$AH143,$E$4:$E$7000),0)),"") -> نادر ظريف
A145: =IF(AE145=حساب_سائق!$L$2,COUNTIFS($AE$4:AE145,AE145),"") ->  | B145: 4371528 | C145: 28 | D145: 2019-09-07 | E145: عبدالعليم عبدالحليم | F145: 59162 | H145: الندي | I145: كفر الشيخ | J145: 100 | L145: 85 | R145: 5 طن | T145: 0 | U145: 12.376 | X145: 145356 | Y145: 6.568 | AA145: 5.808 | AE145: =AND(E145=حساب_سائق!$B$2,D145>=حساب_سائق!$G$2,D145<=حساب_سائق!$I$2) -> FALSE | AH145: =IFERROR(INDEX($E$4:$E$7000,MATCH(0,COUNTIF($AH$2:$AH144,$E$4:$E$7000),0)),"") -> سامح مبروك
A146: =IF(AE146=حساب_سائق!$L$2,COUNTIFS($AE$4:AE146,AE146),"") ->  | B146: 4371529 | C146: 29 | D146: 2019-09-07 | E146: عبدالعليم عبدالحليم | F146: 59162 | H146: اسكندريه | I146: مكرونه | J146: 150 | L146: 90 | R146: 5 طن | T146: 0 | U146: 7.196 | X146: 145088 | Y146: 7.196 | AE146: =AND(E146=حساب_سائق!$B$2,D146>=حساب_سائق!$G$2,D146<=حساب_سائق!$I$2) -> FALSE | AH146: =IFERROR(INDEX($E$4:$E$7000,MATCH(0,COUNTIF($AH$2:$AH145,$E$4:$E$7000),0)),"") -> مصطفي السيد
A147: =IF(AE147=حساب_سائق!$L$2,COUNTIFS($AE$4:AE147,AE147),"") ->  | B147: 4371530 | C147: 30 | D147: 2019-09-07 | E147: سعد محمد سعد | H147: اسكندريه | I147: السويس | J147: 700 | L147: 80 | R147: 5 طن | T147: 1221.09 | U147: 6.262 | W147: 195 | X147: 145025 | Y147: 6.262 | AE147: =AND(E147=حساب_سائق!$B$2,D147>=حساب_سائق!$G$2,D147<=حساب_سائق!$I$2) -> FALSE | AH147: =IFERROR(INDEX($E$4:$E$7000,MATCH(0,COUNTIF($AH$2:$AH146,$E$4:$E$7000),0)),"") -> احمد الصافي
A148: =IF(AE148=حساب_سائق!$L$2,COUNTIFS($AE$4:AE148,AE148),"") ->  | B148: 4371531 | C148: 31 | D148: 2019-09-07 | E148: رمضان محمود | F148: 7293 | H148: بور سعيد | I148: بور سعيد | J148: 120 | L148: 75 | R148: 5 طن | S148: الشركه | T148: 0 | U148: 6.605 | X148: 144952 | Y148: 6.605 | AE148: =AND(E148=حساب_سائق!$B$2,D148>=حساب_سائق!$G$2,D148<=حساب_سائق!$I$2) -> FALSE | AH148: =IFERROR(INDEX($E$4:$E$7000,MATCH(0,COUNTIF($AH$2:$AH147,$E$4:$E$7000),0)),"") -> احمد زيدان
A149: =IF(AE149=حساب_سائق!$L$2,COUNTIFS($AE$4:AE149,AE149),"") ->  | B149: 4371532 | C149: 32 | D149: 2019-09-07 | E149: رمضان محمود | F149: 7293 | H149: اسكندريه | I149: مكرونه | L149: 80 | R149: 5 طن | S149: الشركه | T149: 0 | U149: 4.212 | X149: 145140/37/4/3/6/5 | Y149: 4.212 | AE149: =AND(E149=حساب_سائق!$B$2,D149>=حساب_سائق!$G$2,D149<=حساب_سائق!$I$2) -> FALSE | AH149: =IFERROR(INDEX($E$4:$E$7000,MATCH(0,COUNTIF($AH$2:$AH148,$E$4:$E$7000),0)),"") -> السيد صديق
A150: =IF(AE150=حساب_سائق!$L$2,COUNTIFS($AE$4:AE150,AE150),"") -> 5 | B150: 4371533 | C150: 33 | D150: 2019-09-07 | E150: رمضان حمدي | F150: 1328 | H150: الفرجاني | I150: شبين | J150: 100 | R150: 5 طن | S150: الشركه | T150: 0 | U150: 5.641 | X150: 144996 | Y150: 5.641 | AE150: =AND(E150=حساب_سائق!$B$2,D150>=حساب_سائق!$G$2,D150<=حساب_سائق!$I$2) -> TRUE | AH150: =IFERROR(INDEX($E$4:$E$7000,MATCH(0,COUNTIF($AH$2:$AH149,$E$4:$E$7000),0)),"") -> حسن حسين
A151: =IF(AE151=حساب_سائق!$L$2,COUNTIFS($AE$4:AE151,AE151),"") ->  | B151: 4371534 | C151: 34 | D151: 2019-09-07 | E151: خالد محمد جمعه | H151: السويس | I151: السويس | J151: 400 | R151: 5 طن | T151: 765.12 | U151: 6.376 | W151: 120 | X151: 144987 | Y151: 4.379 | AA151: 1.997 | AE151: =AND(E151=حساب_سائق!$B$2,D151>=حساب_سائق!$G$2,D151<=حساب_سائق!$I$2) -> FALSE | AH151: =IFERROR(INDEX($E$4:$E$7000,MATCH(0,COUNTIF($AH$2:$AH150,$E$4:$E$7000),0)),"") -> احمد عزالدين
A152: =IF(AE152=حساب_سائق!$L$2,COUNTIFS($AE$4:AE152,AE152),"") ->  | B152: 4371535 | C152: 35 | D152: 2019-09-07 | E152: حسن عبد الحليم | F152: 4612 | H152: طنطا | I152: طنطا | J152: 600 | R152: فرداني | T152: 1278.4 | U152: 11.837 | W152: 108 | X152: 144995 | Y152: 11.837 | AE152: =AND(E152=حساب_سائق!$B$2,D152>=حساب_سائق!$G$2,D152<=حساب_سائق!$I$2) -> FALSE | AH152: =IFERROR(INDEX($E$4:$E$7000,MATCH(0,COUNTIF($AH$2:$AH151,$E$4:$E$7000),0)),"") -> محمد عبدالحليم
A153: =IF(AE153=حساب_سائق!$L$2,COUNTIFS($AE$4:AE153,AE153),"") ->  | B153: 4371536 | C153: 36 | D153: 2019-09-07 | E153: حسام حسن | H153: الندي | I153: بحيره | J153: 300 | R153: 5 طن | T153: 0 | U153: 5.368 | X153: 144978 | Y153: 5.368 | AE153: =AND(E153=حساب_سائق!$B$2,D153>=حساب_سائق!$G$2,D153<=حساب_سائق!$I$2) -> FALSE | AH153: =IFERROR(INDEX($E$4:$E$7000,MATCH(0,COUNTIF($AH$2:$AH152,$E$4:$E$7000),0)),"") -> احمد علي
A154: =IF(AE154=حساب_سائق!$L$2,COUNTIFS($AE$4:AE154,AE154),"") ->  | B154: 4371537 | C154: 37 | D154: 2019-09-07 | E154: السيد عثمان | H154: البدرشين | I154: مكرونه | J154: 300 | L154: 65 | R154: 5 طن | T154: 550 | U154: 4.881 | W154: 110 | X154: 144957 | Y154: 4.881 | AE154: =AND(E154=حساب_سائق!$B$2,D154>=حساب_سائق!$G$2,D154<=حساب_سائق!$I$2) -> FALSE | AH154: =IFERROR(INDEX($E$4:$E$7000,MATCH(0,COUNTIF($AH$2:$AH153,$E$4:$E$7000),0)),"") -> حاتم رشاد
A155: =IF(AE155=حساب_سائق!$L$2,COUNTIFS($AE$4:AE155,AE155),"") ->  | B155: 4371538 | C155: 38 | D155: 2019-09-07 | E155: السيد عثمان | H155: اسكندريه | I155: مكرونه | J155: 600 | L155: 65 | R155: 5 طن | T155: 1572.08 | U155: 7.312 | W155: 215 | X155: 145074/6 | Y155: 4.295 | AA155: 3.017 | AE155: =AND(E155=حساب_سائق!$B$2,D155>=حساب_سائق!$G$2,D155<=حساب_سائق!$I$2) -> FALSE | AH155: =IFERROR(INDEX($E$4:$E$7000,MATCH(0,COUNTIF($AH$2:$AH154,$E$4:$E$7000),0)),"") -> نزيه مصطفي
A156: =IF(AE156=حساب_سائق!$L$2,COUNTIFS($AE$4:AE156,AE156),"") ->  | B156: 4371539 | C156: 39 | D156: 2019-09-07 | E156: اسلام محمود | F156: 9685 | H156: شرم | I156: مكرونه | J156: 1300 | L156: 65 | P156: PO.P | R156: 5 طن | T156: 2802.38 | U156: 7.473 | W156: 375 | X156: 145019 | Y156: 7.473 | AE156: =AND(E156=حساب_سائق!$B$2,D156>=حساب_سائق!$G$2,D156<=حساب_سائق!$I$2) -> FALSE | AH156: =IFERROR(INDEX($E$4:$E$7000,MATCH(0,COUNTIF($AH$2:$AH155,$E$4:$E$7000),0)),"") -> محمد عبدالحميد
A157: =IF(AE157=حساب_سائق!$L$2,COUNTIFS($AE$4:AE157,AE157),"") ->  | B157: 4371540 | C157: 40 | D157: 2019-09-07 | E157: اسلام احمد امين | F157: 7342 | H157: القاهره | I157: السراج | J157: 300 | R157: 5 طن | T157: 666.9 | U157: 6.669 | W157: 100 | X157: 145063 | Y157: 6.669 | AE157: =AND(E157=حساب_سائق!$B$2,D157>=حساب_سائق!$G$2,D157<=حساب_سائق!$I$2) -> FALSE | AH157: =IFERROR(INDEX($E$4:$E$7000,MATCH(0,COUNTIF($AH$2:$AH156,$E$4:$E$7000),0)),"") -> جمعة ابراهيم
A158: =IF(AE158=حساب_سائق!$L$2,COUNTIFS($AE$4:AE158,AE158),"") ->  | B158: 4371541 | C158: 41 | D158: 2019-09-07 | E158: اسلام احمد امين | F158: 7342 | H158: الندي | I158: بنها | R158: 5 طن | T158: 581.02 | U158: 5.282 | W158: 110 | X158: 144969 | Y158: 5.282 | AE158: =AND(E158=حساب_سائق!$B$2,D158>=حساب_سائق!$G$2,D158<=حساب_سائق!$I$2) -> FALSE | AH158: =IFERROR(INDEX($E$4:$E$7000,MATCH(0,COUNTIF($AH$2:$AH157,$E$4:$E$7000),0)),"") -> سامح ابراهيم
A159: =IF(AE159=حساب_سائق!$L$2,COUNTIFS($AE$4:AE159,AE159),"") ->  | B159: 4371542 | C159: 42 | D159: 2019-09-07 | E159: اسامه عبد الحليم | H159: مسطرد | I159: دمنهور | J159: 300 | R159: 5 طن | T159: 555.17 | U159: 5.047 | W159: 110 | X159: 144950 | Y159: 5.047 | AE159: =AND(E159=حساب_سائق!$B$2,D159>=حساب_سائق!$G$2,D159<=حساب_سائق!$I$2) -> FALSE | AH159: =IFERROR(INDEX($E$4:$E$7000,MATCH(0,COUNTIF($AH$2:$AH158,$E$4:$E$7000),0)),"") -> السيد عبدالعظيم
A160: =IF(AE160=حساب_سائق!$L$2,COUNTIFS($AE$4:AE160,AE160),"") ->  | B160: 4371543 | C160: 43 | D160: 2019-09-07 | E160: اسامه عبد الحليم | H160: العبور | I160: اسكندريه | J160: 200 | R160: 5 طن | T160: 631.7 | U160: 6.317 | W160: 100 | X160: 145009 | Y160: 3.576 | AA160: 2.741 | AE160: =AND(E160=حساب_سائق!$B$2,D160>=حساب_سائق!$G$2,D160<=حساب_سائق!$I$2) -> FALSE | AH160: =IFERROR(INDEX($E$4:$E$7000,MATCH(0,COUNTIF($AH$2:$AH159,$E$4:$E$7000),0)),"") -> احمد عز الدين
A161: =IF(AE161=حساب_سائق!$L$2,COUNTIFS($AE$4:AE161,AE161),"") ->  | B161: 4371544 | C161: 44 | D161: 2019-09-07 | E161: ابراهيم محمد | H161: الحرمين | I161: نوبار | J161: 100 | R161: 5 طن | T161: 0 | U161: 6.261 | X161: 144982 | Y161: 6.261 | AE161: =AND(E161=حساب_سائق!$B$2,D161>=حساب_سائق!$G$2,D161<=حساب_سائق!$I$2) -> FALSE | AH161: =IFERROR(INDEX($E$4:$E$7000,MATCH(0,COUNTIF($AH$2:$AH160,$E$4:$E$7000),0)),"") -> لطفي شعراوي
A162: =IF(AE162=حساب_سائق!$L$2,COUNTIFS($AE$4:AE162,AE162),"") ->  | B162: 4371545 | C162: 45 | D162: 2019-09-07 | E162: ابراهيم محمد | H162: اسماعليه | I162: السويس | J162: 100 | L162: 80 | R162: 5 طن | T162: 0 | U162: 2.004 | X162: 145132 | Y162: 2.004 | AE162: =AND(E162=حساب_سائق!$B$2,D162>=حساب_سائق!$G$2,D162<=حساب_سائق!$I$2) -> FALSE | AH162: =IFERROR(INDEX($E$4:$E$7000,MATCH(0,COUNTIF($AH$2:$AH161,$E$4:$E$7000),0)),"") -> رضا عبدالمحسن
A163: =IF(AE163=حساب_سائق!$L$2,COUNTIFS($AE$4:AE163,AE163),"") ->  | B163: 4371646 | C163: 46 | D163: 2019-09-08 | E163: وليد رمضان | H163: بور سعيد | I163: بور سعيد | J163: 400 | L163: 75 | R163: 5 طن | T163: 1004.13 | U163: 7.438 | W163: 135 | X163: 145175 | Y163: 7.438 | AE163: =AND(E163=حساب_سائق!$B$2,D163>=حساب_سائق!$G$2,D163<=حساب_سائق!$I$2) -> FALSE | AH163: =IFERROR(INDEX($E$4:$E$7000,MATCH(0,COUNTIF($AH$2:$AH162,$E$4:$E$7000),0)),"") -> ابوالقاسم احمد
A164: =IF(AE164=حساب_سائق!$L$2,COUNTIFS($AE$4:AE164,AE164),"") ->  | B164: 4371647 | C164: 47 | D164: 2019-09-08 | E164: هشام رئيس | H164: النهضه | I164: طنطا | J164: 800 | L164: 80 | R164: 5 طن | T164: 1375.57 | U164: 6.398 | W164: 215 | X164: 145303 | Y164: 6.398 | AE164: =AND(E164=حساب_سائق!$B$2,D164>=حساب_سائق!$G$2,D164<=حساب_سائق!$I$2) -> FALSE | AH164: =IFERROR(INDEX($E$4:$E$7000,MATCH(0,COUNTIF($AH$2:$AH163,$E$4:$E$7000),0)),"") -> محمد محفوظ
A165: =IF(AE165=حساب_سائق!$L$2,COUNTIFS($AE$4:AE165,AE165),"") ->  | B165: 4371648 | C165: 48 | D165: 2019-09-08 | E165: محمود حسن | F165: 4217 | H165: اسكندريه | I165: المنوفيه | L165: 115 | R165: 5 طن | T165: 0 | U165: 6.058 | X165: 145301/02 | Y165: 6.058 | AE165: =AND(E165=حساب_سائق!$B$2,D165>=حساب_سائق!$G$2,D165<=حساب_سائق!$I$2) -> FALSE | AH165: =IFERROR(INDEX($E$4:$E$7000,MATCH(0,COUNTIF($AH$2:$AH164,$E$4:$E$7000),0)),"") -> ابوالنصر احمد
A166: =IF(AE166=حساب_سائق!$L$2,COUNTIFS($AE$4:AE166,AE166),"") ->  | B166: 4371649 | C166: 49 | D166: 2019-09-08 | E166: محمود احمد | H166: اسكندريه | I166: بور سعيد | J166: 600 | L166: 80 | R166: 5 طن | T166: 1540.91 | U166: 7.167 | W166: 215 | X166: 80316537 | Y166: 7.167 | AE166: =AND(E166=حساب_سائق!$B$2,D166>=حساب_سائق!$G$2,D166<=حساب_سائق!$I$2) -> FALSE | AH166: =IFERROR(INDEX($E$4:$E$7000,MATCH(0,COUNTIF($AH$2:$AH165,$E$4:$E$7000),0)),"") -> محمد محمود
A167: =IF(AE167=حساب_سائق!$L$2,COUNTIFS($AE$4:AE167,AE167),"") ->  | B167: 4371650 | C167: 50 | D167: 2019-09-08 | E167: محمود احمد | H167: الهواري | I167: بنها | J167: 300 | R167: 5 طن | T167: 550 | U167: 3.079 | W167: 110 | X167: 145278 | Y167: 3.079 | AE167: =AND(E167=حساب_سائق!$B$2,D167>=حساب_سائق!$G$2,D167<=حساب_سائق!$I$2) -> FALSE | AH167: =IFERROR(INDEX($E$4:$E$7000,MATCH(0,COUNTIF($AH$2:$AH166,$E$4:$E$7000),0)),"") -> سعيد جمال
A168: =IF(AE168=حساب_سائق!$L$2,COUNTIFS($AE$4:AE168,AE168),"") ->  | B168: 4371651 | C168: 51 | D168: 2019-09-08 | E168: محمد مسعود | F168: 5689 | H168: مول مصر | I168: الغردقه | J168: 300 | R168: 5 طن | T168: 600 | U168: 3.211 | W168: 120 | X168: 145351/52 | Y168: 3.211 | AE168: =AND(E168=حساب_سائق!$B$2,D168>=حساب_سائق!$G$2,D168<=حساب_سائق!$I$2) -> FALSE | AH168: =IFERROR(INDEX($E$4:$E$7000,MATCH(0,COUNTIF($AH$2:$AH167,$E$4:$E$7000),0)),"") -> السيد ظريف
A169: =IF(AE169=حساب_سائق!$L$2,COUNTIFS($AE$4:AE169,AE169),"") ->  | B169: 4371652 | C169: 52 | D169: 2019-09-08 | E169: محمد محمد فراماوي | F169: 6518 | H169: العامر | I169: المنيا | R169: 5 طن | T169: 678.48 | U169: 6.168 | W169: 110 | X169: 145220 | Y169: 6.168 | AE169: =AND(E169=حساب_سائق!$B$2,D169>=حساب_سائق!$G$2,D169<=حساب_سائق!$I$2) -> FALSE | AH169: =IFERROR(INDEX($E$4:$E$7000,MATCH(0,COUNTIF($AH$2:$AH168,$E$4:$E$7000),0)),"") -> سعيد سامي
A170: =IF(AE170=حساب_سائق!$L$2,COUNTIFS($AE$4:AE170,AE170),"") ->  | B170: 4371653 | C170: 53 | D170: 2019-09-08 | E170: محمد فتحي | H170: الحرمين | I170: بدون | J170: 300 | R170: 5 طن | T170: 711.81 | U170: 6.471 | W170: 110 | X170: 80316689 | Y170: 6.471 | AE170: =AND(E170=حساب_سائق!$B$2,D170>=حساب_سائق!$G$2,D170<=حساب_سائق!$I$2) -> FALSE | AH170: =IFERROR(INDEX($E$4:$E$7000,MATCH(0,COUNTIF($AH$2:$AH169,$E$4:$E$7000),0)),"") -> اسامة عبدالحليم
A171: =IF(AE171=حساب_سائق!$L$2,COUNTIFS($AE$4:AE171,AE171),"") ->  | B171: 4371654 | C171: 54 | D171: 2019-09-08 | E171: محمد فتحي | H171: العبور | I171: بدون شغل | J171: 200 | R171: 5 طن | T171: 500 | U171: 3.129 | W171: 100 | X171: 145310 | Y171: 3.129 | AE171: =AND(E171=حساب_سائق!$B$2,D171>=حساب_سائق!$G$2,D171<=حساب_سائق!$I$2) -> FALSE | AH171: =IFERROR(INDEX($E$4:$E$7000,MATCH(0,COUNTIF($AH$2:$AH170,$E$4:$E$7000),0)),"") -> احمد كامل البنا
A172: =IF(AE172=حساب_سائق!$L$2,COUNTIFS($AE$4:AE172,AE172),"") ->  | B172: 4371655 | C172: 55 | D172: 2019-09-08 | E172: علاء شحاته | H172: الجيزه | I172: الفيوم | J172: 300 | R172: 5 طن | T172: 778.8 | U172: 7.08 | W172: 110 | X172: 145163 | Y172: 7.08 | AE172: =AND(E172=حساب_سائق!$B$2,D172>=حساب_سائق!$G$2,D172<=حساب_سائق!$I$2) -> FALSE | AH172: =IFERROR(INDEX($E$4:$E$7000,MATCH(0,COUNTIF($AH$2:$AH171,$E$4:$E$7000),0)),"") -> ناصر عبدالمحسن
A173: =IF(AE173=حساب_سائق!$L$2,COUNTIFS($AE$4:AE173,AE173),"") ->  | B173: 4371656 | C173: 56 | D173: 2019-09-08 | E173: علاء شحاته | H173: الفيوم | I173: الفيوم | J173: 600 | L173: 65 | R173: 5 طن | T173: 1644.97 | U173: 7.651 | W173: 215 | X173: 145250 | Y173: 7.651 | AE173: =AND(E173=حساب_سائق!$B$2,D173>=حساب_سائق!$G$2,D173<=حساب_سائق!$I$2) -> FALSE | AH173: =IFERROR(INDEX($E$4:$E$7000,MATCH(0,COUNTIF($AH$2:$AH172,$E$4:$E$7000),0)),"") -> رضا مصطفي
A174: =IF(AE174=حساب_سائق!$L$2,COUNTIFS($AE$4:AE174,AE174),"") ->  | B174: 4371657 | C174: 57 | D174: 2019-09-08 | E174: عبده فهمي | H174: المنيا | I174: الاقصر | J174: 2500 | L174: 400 | R174: تريلا | T174: 3857.73 | U174: 26.605 | W174: 145 | X174: 145213 | Y174: 26.605 | AE174: =AND(E174=حساب_سائق!$B$2,D174>=حساب_سائق!$G$2,D174<=حساب_سائق!$I$2) -> FALSE | AH174: =IFERROR(INDEX($E$4:$E$7000,MATCH(0,COUNTIF($AH$2:$AH173,$E$4:$E$7000),0)),"") -> محمود
A175: =IF(AE175=حساب_سائق!$L$2,COUNTIFS($AE$4:AE175,AE175),"") ->  | B175: 4371658 | C175: 58 | D175: 2019-09-08 | E175: عبد الرحمن عبد العزيز | H175: بنده العبور | I175: حلوان | J175: 300 | R175: 5 طن | T175: 500 | U175: 2.701 | W175: 100 | X175: 145339 | Y175: 2.701 | AE175: =AND(E175=حساب_سائق!$B$2,D175>=حساب_سائق!$G$2,D175<=حساب_سائق!$I$2) -> FALSE | AH175: =IFERROR(INDEX($E$4:$E$7000,MATCH(0,COUNTIF($AH$2:$AH174,$E$4:$E$7000),0)),"") -> عبدالحكيم مرزوق
A176: =IF(AE176=حساب_سائق!$L$2,COUNTIFS($AE$4:AE176,AE176),"") ->  | B176: 4371659 | C176: 59 | D176: 2019-09-08 | E176: رمضان رمضان | H176: اوسكار | I176: دمنهور | J176: 500 | R176: 5 طن | T176: 662.31 | U176: 7.359 | W176: 90 | X176: 80317104 | Y176: 7.359 | AE176: =AND(E176=حساب_سائق!$B$2,D176>=حساب_سائق!$G$2,D176<=حساب_سائق!$I$2) -> FALSE | AH176: =IFERROR(INDEX($E$4:$E$7000,MATCH(0,COUNTIF($AH$2:$AH175,$E$4:$E$7000),0)),"") -> رمضان فاضل
A177: =IF(AE177=حساب_سائق!$L$2,COUNTIFS($AE$4:AE177,AE177),"") -> 6 | B177: 4371660 | C177: 60 | D177: 2019-09-08 | E177: رمضان حمدي | F177: 1328 | H177: كفر الشيخ | I177: كفر الشيخ | J177: 150 | L177: 90 | R177: 5 طن | S177: الشركه | T177: 0 | U177: 5.13 | X177: 145173 | Y177: 5.13 | AE177: =AND(E177=حساب_سائق!$B$2,D177>=حساب_سائق!$G$2,D177<=حساب_سائق!$I$2) -> TRUE | AH177: =IFERROR(INDEX($E$4:$E$7000,MATCH(0,COUNTIF($AH$2:$AH176,$E$4:$E$7000),0)),"") -> محمد بسيوني
A178: =IF(AE178=حساب_سائق!$L$2,COUNTIFS($AE$4:AE178,AE178),"") ->  | B178: 4371661 | C178: 61 | D178: 2019-09-08 | E178: خميس زناتي | H178: الغردقه | I178: الغردقه | J178: 1300 | R178: 5 طن | T178: 2331.72 | U178: 6.477 | W178: 360 | Y178: 6.477 | AE178: =AND(E178=حساب_سائق!$B$2,D178>=حساب_سائق!$G$2,D178<=حساب_سائق!$I$2) -> FALSE | AH178: =IFERROR(INDEX($E$4:$E$7000,MATCH(0,COUNTIF($AH$2:$AH177,$E$4:$E$7000),0)),"") -> علاء عبدالجواد
A179: =IF(AE179=حساب_سائق!$L$2,COUNTIFS($AE$4:AE179,AE179),"") ->  | B179: 4371662 | C179: 62 | D179: 2019-09-08 | E179: خالد محمد جمعه | H179: مسطرد | I179: شبين القناطر | J179: 300 | R179: 5 طن | T179: 500 | U179: 4.943 | W179: 100 | X179: 145167 | Y179: 4.943 | AE179: =AND(E179=حساب_سائق!$B$2,D179>=حساب_سائق!$G$2,D179<=حساب_سائق!$I$2) -> FALSE | AH179: =IFERROR(INDEX($E$4:$E$7000,MATCH(0,COUNTIF($AH$2:$AH178,$E$4:$E$7000),0)),"") -> رمضلن محمود
A180: =IF(AE180=حساب_سائق!$L$2,COUNTIFS($AE$4:AE180,AE180),"") ->  | B180: 4371663 | C180: 63 | D180: 2019-09-08 | E180: حسام مصطفي | H180: يثرب | I180: الاشراف | J180: 300 | R180: 5 طن | T180: 760.54 | U180: 6.914 | W180: 110 | X180: 145202 | Y180: 6.914 | AE180: =AND(E180=حساب_سائق!$B$2,D180>=حساب_سائق!$G$2,D180<=حساب_سائق!$I$2) -> FALSE | AH180: =IFERROR(INDEX($E$4:$E$7000,MATCH(0,COUNTIF($AH$2:$AH179,$E$4:$E$7000),0)),"") -> 0
A181: =IF(AE181=حساب_سائق!$L$2,COUNTIFS($AE$4:AE181,AE181),"") ->  | B181: 4371664 | C181: 64 | D181: 2019-09-08 | E181: حسام حسن | H181: الفرجاني | I181: الفيوم | K181: 50 | R181: 5 طن | T181: 0 | U181: 4.65 | X181: 145197 | Y181: 4.65 | AE181: =AND(E181=حساب_سائق!$B$2,D181>=حساب_سائق!$G$2,D181<=حساب_سائق!$I$2) -> FALSE | AH181: =IFERROR(INDEX($E$4:$E$7000,MATCH(0,COUNTIF($AH$2:$AH180,$E$4:$E$7000),0)),"") -> 
A182: =IF(AE182=حساب_سائق!$L$2,COUNTIFS($AE$4:AE182,AE182),"") ->  | B182: 4371665 | C182: 65 | D182: 2019-09-08 | E182: جمعه عوض | H182: كفر الشيخ | I182: كفر الشيخ | J182: 200 | R182: 5 طن | S182: ابو مازن | T182: 743.85 | U182: 5.13 | W182: 145 | X182: 145168 | Y182: 5.13 | AE182: =AND(E182=حساب_سائق!$B$2,D182>=حساب_سائق!$G$2,D182<=حساب_سائق!$I$2) -> FALSE | AH182: =IFERROR(INDEX($E$4:$E$7000,MATCH(0,COUNTIF($AH$2:$AH181,$E$4:$E$7000),0)),"") -> 
A183: =IF(AE183=حساب_سائق!$L$2,COUNTIFS($AE$4:AE183,AE183),"") ->  | B183: 4371666 | C183: 66 | D183: 2019-09-08 | E183: ايهاب شحاته | F183: 2843 | H183: البدرشين | I183: حلوان | J183: 300 | R183: 5 طن | T183: 781.77 | U183: 7.107 | W183: 110 | X183: 145172 | Y183: 7.107 | AE183: =AND(E183=حساب_سائق!$B$2,D183>=حساب_سائق!$G$2,D183<=حساب_سائق!$I$2) -> FALSE | AH183: =IFERROR(INDEX($E$4:$E$7000,MATCH(0,COUNTIF($AH$2:$AH182,$E$4:$E$7000),0)),"") -> 
A184: =IF(AE184=حساب_سائق!$L$2,COUNTIFS($AE$4:AE184,AE184),"") ->  | B184: 4371667 | C184: 67 | D184: 2019-09-08 | E184: ابراهيم رؤف | H184: النهضه | I184: شرم | J184: 500 | L184: 80 | R184: 5 طن | T184: 1084.25 | U184: 5.043 | W184: 215 | X184: 145305 | Y184: 5.043 | AE184: =AND(E184=حساب_سائق!$B$2,D184>=حساب_سائق!$G$2,D184<=حساب_سائق!$I$2) -> FALSE | AH184: =IFERROR(INDEX($E$4:$E$7000,MATCH(0,COUNTIF($AH$2:$AH183,$E$4:$E$7000),0)),"") -> 
A185: =IF(AE185=حساب_سائق!$L$2,COUNTIFS($AE$4:AE185,AE185),"") ->  | B185: 4371668 | C185: 68 | D185: 2019-09-08 | E185: محمد فتحي | H185: الحرمين | I185: قاهره | J185: 300 | R185: 5 طن | T185: 0 | U185: 6.471 | X185: 145188 | Y185: 6.471 | AE185: =AND(E185=حساب_سائق!$B$2,D185>=حساب_سائق!$G$2,D185<=حساب_سائق!$I$2) -> FALSE | AH185: =IFERROR(INDEX($E$4:$E$7000,MATCH(0,COUNTIF($AH$2:$AH184,$E$4:$E$7000),0)),"") -> 
A186: =IF(AE186=حساب_سائق!$L$2,COUNTIFS($AE$4:AE186,AE186),"") ->  | B186: 4371669 | C186: 69 | D186: 2019-09-08 | E186: علاء شحاته | H186: الاشراف | I186: الحرمين | J186: 300 | R186: 5 طن | T186: 0 | U186: 7.08 | X186: 145163 | Y186: 7.08 | AE186: =AND(E186=حساب_سائق!$B$2,D186>=حساب_سائق!$G$2,D186<=حساب_سائق!$I$2) -> FALSE | AH186: =IFERROR(INDEX($E$4:$E$7000,MATCH(0,COUNTIF($AH$2:$AH185,$E$4:$E$7000),0)),"") -> 
A187: =IF(AE187=حساب_سائق!$L$2,COUNTIFS($AE$4:AE187,AE187),"") ->  | B187: 4371670 | C187: 70 | D187: 2019-09-08 | E187: وليد رمضان | H187: بور سعيد | I187: بور سعيد | J187: 400 | L187: 75 | R187: 5 طن | T187: 0 | U187: 7.438 | X187: 145175 | Y187: 7.438 | AE187: =AND(E187=حساب_سائق!$B$2,D187>=حساب_سائق!$G$2,D187<=حساب_سائق!$I$2) -> FALSE | AH187: =IFERROR(INDEX($E$4:$E$7000,MATCH(0,COUNTIF($AH$2:$AH186,$E$4:$E$7000),0)),"") -> 
A188: =IF(AE188=حساب_سائق!$L$2,COUNTIFS($AE$4:AE188,AE188),"") ->  | B188: 4371671 | C188: 71 | D188: 2019-09-08 | E188: محمود حسن | H188: القاهره | I188: سوهاد | J188: 100 | L188: 75 | R188: 5 طن | T188: 0 | U188: 6.741 | X188: 145185 | Y188: 6.741 | AE188: =AND(E188=حساب_سائق!$B$2,D188>=حساب_سائق!$G$2,D188<=حساب_سائق!$I$2) -> FALSE | AH188: =IFERROR(INDEX($E$4:$E$7000,MATCH(0,COUNTIF($AH$2:$AH187,$E$4:$E$7000),0)),"") -> 
A189: =IF(AE189=حساب_سائق!$L$2,COUNTIFS($AE$4:AE189,AE189),"") -> 7 | B189: 4371672 | C189: 72 | D189: 2019-09-08 | E189: رمضان حمدي | H189: كفر الشيخ | I189: كفر الشيخ | J189: 150 | R189: 5 طن | T189: 0 | U189: 0 | AE189: =AND(E189=حساب_سائق!$B$2,D189>=حساب_سائق!$G$2,D189<=حساب_سائق!$I$2) -> TRUE | AH189: =IFERROR(INDEX($E$4:$E$7000,MATCH(0,COUNTIF($AH$2:$AH188,$E$4:$E$7000),0)),"") -> 
A190: =IF(AE190=حساب_سائق!$L$2,COUNTIFS($AE$4:AE190,AE190),"") ->  | B190: 4371673 | C190: 73 | D190: 2019-09-08 | E190: خميس زناتي | H190: الغردقه | I190: الغردقه | J190: 1300 | L190: 75 | R190: 5 طن | T190: 0 | U190: 6.477 | X190: 145203 | Y190: 6.477 | AE190: =AND(E190=حساب_سائق!$B$2,D190>=حساب_سائق!$G$2,D190<=حساب_سائق!$I$2) -> FALSE | AH190: =IFERROR(INDEX($E$4:$E$7000,MATCH(0,COUNTIF($AH$2:$AH189,$E$4:$E$7000),0)),"") -> 
A191: =IF(AE191=حساب_سائق!$L$2,COUNTIFS($AE$4:AE191,AE191),"") ->  | B191: 4371674 | C191: 74 | D191: 2019-09-08 | E191: علاء شحاته | H191: الفيوم | I191: الفيوم | J191: 600 | R191: 5 طن | T191: 0 | U191: 0 | AE191: =AND(E191=حساب_سائق!$B$2,D191>=حساب_سائق!$G$2,D191<=حساب_سائق!$I$2) -> FALSE | AH191: =IFERROR(INDEX($E$4:$E$7000,MATCH(0,COUNTIF($AH$2:$AH190,$E$4:$E$7000),0)),"") -> 
A192: =IF(AE192=حساب_سائق!$L$2,COUNTIFS($AE$4:AE192,AE192),"") ->  | B192: 4371675 | C192: 75 | D192: 2019-09-08 | E192: محمود حسن | H192: اسكندريه | I192: اسيوط | R192: 5 طن | T192: 0 | U192: 0 | AE192: =AND(E192=حساب_سائق!$B$2,D192>=حساب_سائق!$G$2,D192<=حساب_سائق!$I$2) -> FALSE | AH192: =IFERROR(INDEX($E$4:$E$7000,MATCH(0,COUNTIF($AH$2:$AH191,$E$4:$E$7000),0)),"") -> 
A193: =IF(AE193=حساب_سائق!$L$2,COUNTIFS($AE$4:AE193,AE193),"") ->  | B193: 4371676 | C193: 76 | D193: 2019-09-08 | E193: محمد فتحي | H193: العبور | I193: المنيا | J193: 200 | R193: 5 طن | T193: 0 | U193: 0 | AE193: =AND(E193=حساب_سائق!$B$2,D193>=حساب_سائق!$G$2,D193<=حساب_سائق!$I$2) -> FALSE | AH193: =IFERROR(INDEX($E$4:$E$7000,MATCH(0,COUNTIF($AH$2:$AH192,$E$4:$E$7000),0)),"") -> 
A194: =IF(AE194=حساب_سائق!$L$2,COUNTIFS($AE$4:AE194,AE194),"") ->  | B194: 4371677 | C194: 77 | D194: 2019-09-08 | E194: رمضان رمضان | H194: اوسكار | I194: بدون | J194: 500 | R194: 5 طن | T194: 147.18 | U194: 7.359 | W194: 20 | X194: 145350 | Y194: 7.359 | AE194: =AND(E194=حساب_سائق!$B$2,D194>=حساب_سائق!$G$2,D194<=حساب_سائق!$I$2) -> FALSE | AH194: =IFERROR(INDEX($E$4:$E$7000,MATCH(0,COUNTIF($AH$2:$AH193,$E$4:$E$7000),0)),"") -> 
A195: =IF(AE195=حساب_سائق!$L$2,COUNTIFS($AE$4:AE195,AE195),"") ->  | B195: 4371778 | C195: 78 | D195: 2019-09-09 | E195: وليد عبدالغفار | F195: 37853 | H195: بور سعيد | I195: بور سعيد | J195: 400 | L195: 75 | R195: 5 طن | T195: 686.34 | U195: 5.084 | W195: 135 | X195: 145399 | Y195: 5.084 | AE195: =AND(E195=حساب_سائق!$B$2,D195>=حساب_سائق!$G$2,D195<=حساب_سائق!$I$2) -> FALSE | AH195: =IFERROR(INDEX($E$4:$E$7000,MATCH(0,COUNTIF($AH$2:$AH194,$E$4:$E$7000),0)),"") -> 
A196: =IF(AE196=حساب_سائق!$L$2,COUNTIFS($AE$4:AE196,AE196),"") ->  | B196: 4371779 | C196: 79 | D196: 2019-09-09 | E196: وليد رمضان | H196: اسكندريه | I196: دمياط | J196: 600 | L196: 80 | R196: 5 طن | T196: 1492.96 | U196: 6.944 | W196: 215 | X196: 145430 | Y196: 6.944 | AE196: =AND(E196=حساب_سائق!$B$2,D196>=حساب_سائق!$G$2,D196<=حساب_سائق!$I$2) -> FALSE | AH196: =IFERROR(INDEX($E$4:$E$7000,MATCH(0,COUNTIF($AH$2:$AH195,$E$4:$E$7000),0)),"") -> 
A197: =IF(AE197=حساب_سائق!$L$2,COUNTIFS($AE$4:AE197,AE197),"") ->  | B197: =D197&C197 -> 4371780 | C197: 80 | D197: 2019-09-09 | E197: هشام رئيس | H197: ام زغو | I197: بدون شغل | J197: 700 | L197: 80 | R197: 5 طن | T197: 1291.94 | U197: 6.009 | W197: 215 | X197: 145511 | Y197: 6.009 | AE197: =AND(E197=حساب_سائق!$B$2,D197>=حساب_سائق!$G$2,D197<=حساب_سائق!$I$2) -> FALSE | AH197: =IFERROR(INDEX($E$4:$E$7000,MATCH(0,COUNTIF($AH$2:$AH196,$E$4:$E$7000),0)),"") -> 
A198: =IF(AE198=حساب_سائق!$L$2,COUNTIFS($AE$4:AE198,AE198),"") ->  | B198: 4371781 | C198: 81 | D198: 2019-09-09 | E198: هاني سامي | H198: المنصوره | I198: اسكندريه | J198: 600 | R198: 5 طن | S198: هاني سامي | T198: 899.5 | U198: 7.196 | W198: 125 | X198: 145533 | Y198: 7.196 | AE198: =AND(E198=حساب_سائق!$B$2,D198>=حساب_سائق!$G$2,D198<=حساب_سائق!$I$2) -> FALSE | AH198: =IFERROR(INDEX($E$4:$E$7000,MATCH(0,COUNTIF($AH$2:$AH197,$E$4:$E$7000),0)),"") -> 
A199: =IF(AE199=حساب_سائق!$L$2,COUNTIFS($AE$4:AE199,AE199),"") ->  | B199: 4371782 | C199: 82 | D199: 2019-09-09 | E199: نبيل رجب | H199: الاشراف | I199: شرقيه | J199: 300 | L199: 65 | R199: 5 طن | T199: 629.64 | U199: 5.724 | W199: 110 | X199: 144837 | Y199: 5.724 | AE199: =AND(E199=حساب_سائق!$B$2,D199>=حساب_سائق!$G$2,D199<=حساب_سائق!$I$2) -> FALSE | AH199: =IFERROR(INDEX($E$4:$E$7000,MATCH(0,COUNTIF($AH$2:$AH198,$E$4:$E$7000),0)),"") -> 
A200: =IF(AE200=حساب_سائق!$L$2,COUNTIFS($AE$4:AE200,AE200),"") ->  | B200: 4371783 | C200: 83 | D200: 2019-09-09 | E200: مصطفي عزت | F200: 3751 | H200: هايبر اكتوبر | I200: طنطا | J200: 100 | L200: 75 | R200: 5 طن | T200: 0 | U200: 7.765 | X200: 145412 | Y200: 7.765 | AE200: =AND(E200=حساب_سائق!$B$2,D200>=حساب_سائق!$G$2,D200<=حساب_سائق!$I$2) -> FALSE | AH200: =IFERROR(INDEX($E$4:$E$7000,MATCH(0,COUNTIF($AH$2:$AH199,$E$4:$E$7000),0)),"") -> 
... 2363 more rows

Sheet nnn
A1: سعر السائق | F1: سعر المصنع | N1: العناوين | P1: كود التفقيط
B2: 5 طن | C2: فرداني | D2: تريلا | F2: المحافظة | G2: 5 طن | H2: فرداني | I2: تريلا | K2: 5 طن
B3: 2 | C3: 3 | D3: 4 | G3: 2 | H3: 3 | I3: 4 | K3: فرداني
A4: القاهره | B4: 100 | C4: 95 | D4: 80 | E4: 1 | F4: القاهره | G4: 126 | H4: 105 | I4: 92 | K4: تريلا
A5: الجيزه | B5: 110 | C5: 95 | D5: 80 | E5: 2 | F5: الجيزه | G5: 137 | H5: 105 | I5: 92
A6: القليوبيه | B6: 110 | C6: 95 | D6: 80 | E6: 3 | F6: القليوبيه | G6: 137 | H6: 105 | I6: 92
A7: الشرقيه | B7: 100 | C7: 85 | D7: 80 | E7: 4 | F7: الشرقيه | G7: 114 | H7: 97 | I7: 92
A8: الاسماعيليه | B8: 105 | C8: 95 | D8: 80 | E8: 5 | F8: الاسماعيليه | G8: 161 | H8: 105 | I8: 92 | K8: القيمه | L8: =#REF! ->  | N8: عهده | O8: =P7 -> 0 | P8: صافي المبلغ المستحق
A9: السويس | B9: 120 | C9: 95 | D9: 80 | E9: 6 | F9: السويس | G9: 183 | H9: 119 | I9: 105 | K9: الميزان | L9: =R7 -> 0 | N9: خصم | O9: =S7 -> 0
A10: اكتوبر | B10: 120 | C10: 100 | D10: 90 | E10: 7 | F10: اكتوبر | G10: 161 | H10: 108 | I10: 102 | K10: شيكات | L10: =Q7 -> 0 | N10: أخري
A11: العريش | B11: 0 | C11: 170 | D11: 175 | E11: 8 | F11: العريش | G11: 334 | H11: 255 | I11: 212 | K11: أخري | T11: =L12-O12 -> 
A12: شرم الشيخ | B12: 375 | C12: 280 | D12: 240 | E12: 9 | F12: شرم الشيخ | G12: 468 | H12: 375 | I12: 375 | K12: اجمالي | L12: =SUM(L8:L11) ->  | N12: اجمالي | O12: =SUM(O8:O11) -> 0 | R12: =NoToTxt(T11,"جنية","قرش") -> 
A13: مرسي مطروح | B13: 365 | C13: 280 | D13: 195 | E13: 10 | F13: مطروح | G13: 454 | H13: 362 | I13: 255
A14: بور سعيد | B14: 135 | C14: 115 | D14: 100 | E14: 11 | F14: بور سعيد | G14: 174 | H14: 160 | I14: 130
A15: كفر الشيخ | B15: 145 | C15: 120 | D15: 120 | E15: 12 | F15: كفر الشيخ | G15: 165 | H15: 134 | I15: 137
A16: المنوفيه | B16: 120 | C16: 110 | D16: 80 | E16: 13 | F16: المنوفيه | G16: 138 | H16: 118 | I16: 114
A17: طنطا | B17: 130 | C17: 117 | D17: 95 | E17: 14 | F17: طنطا | G17: 151 | H17: 140 | I17: 136
A18: المنصورة | B18: 125 | C18: 117 | D18: 105 | E18: 15 | F18: المنصوره | G18: 138 | H18: 143 | I18: 137
A19: المحلة | B19: 135 | C19: 117 | D19: 95 | E19: 16 | F19: المحله | G19: 161 | H19: 129 | I19: 124
A20: البحيرة | B20: 165 | C20: 125 | D20: 120 | E20: 17 | F20: البحيره | G20: 198 | H20: 149 | I20: 143
A21: الاسكندريه | B21: 215 | C21: 150 | D21: 140 | E21: 18 | F21: الاسكندريه | G21: 280 | H21: 171 | I21: 164
A22: الفيوم | B22: 215 | C22: 150 | D22: 135 | E22: 19 | F22: الفيوم | G22: 278 | H22: 180 | I22: 170
A23: بني سويف | B23: 215 | C23: 150 | D23: 135 | E23: 20 | F23: بني سويف | G23: 291 | H23: 188 | I23: 177
A24: دمياط | B24: 205 | C24: 150 | D24: 135 | E24: 21 | F24: دمياط | G24: 267 | H24: 170 | I24: 163
A25: الغردقه | B25: 360 | C25: 310 | D25: 245 | E25: 22 | F25: الغردقه | G25: 457 | H25: 361 | I25: 323
A26: الوادي الجديد | B26: 550 | C26: 660 | D26: 240 | E26: 23 | F26: الوادي الجديد | G26: 727 | H26: 760 | I26: 342
A27: المنيا | B27: 235 | C27: 0 | D27: 140 | E27: 24 | F27: المنيا | G27: 290 | H27: 287 | I27: 291
A28: اسيوط | B28: 275 | C28: 0 | D28: 180 | E28: 25 | F28: اسيوط | G28: 325 | H28: 258 | I28: 222
A29: سوهاج | B29: 380 | C29: 0 | D29: 220 | E29: 26 | F29: سوهاج | G29: 425 | H29: 448 | I29: 256
A30: قنا | B30: 440 | C30: 0 | D30: 245 | E30: 27 | F30: قنا | G30: 559 | H30: 583 | I30: 295
A31: ارمنت | B31: 0 | C31: 0 | D31: 275 | E31: 28 | F31: ارمنت | G31: 727 | H31: 677 | I31: 365
A32: مرسي علم | B32: 525 | C32: 0 | D32: 0 | E32: 29 | F32: مرسي علم | G32: 759 | H32: 700 | I32: 342
A33: اسوان | B33: 0 | C33: 600 | D33: 250 | E33: 30 | F33: اسوان | G33: 727 | H33: 670 | I33: 374
A34: الاقصر | B34: 0 | C34: 660 | D34: 250 | E34: 31 | F34: الاقصر | G34: 727 | H34: 677 | I34: 366
A35: العاشر | B35: 40 | C35: 35 | D35: 30 | E35: 32 | F35: العاشر | G35: 50 | H35: 45 | I35: 35
A36: سيدي براني | E36: 33 | F36: سيدي براني | G36: 752 | H36: 700 | I36: 336
A37: داخلي المصنع | E37: 34 | F37: داخلي المصنع | G37: 183 | H37: 353 | I37: 1501
A42: Function NoToTxt(TheNo As Double, MyCur As String, MySubCur As String) As String Dim MyArry1(0 To 9) As String Dim MyArry2(0 To 9) As String Dim MyArry3(0 To 9) As String Dim Myno As String Dim GetNo As String Dim RdNo As String Dim My100 As String Dim My10 As String Dim My1 As String Dim My11 As String Dim My12 As String Dim GetTxt As String Dim Mybillion As String Dim MyMillion As String Dim MyThou As String Dim MyHun As String Dim MyFraction As String Dim MyAnd As String Dim I As Integer Dim ReMark As String If TheNo > 999999999999.99 Then Exit Function If TheNo < 0 Then TheNo = TheNo * -1 ReMark = "يتبقى لكم " Else ReMark = "فقط " End If If TheNo = 0 Then NoToTxt = "صفر" Exit Function End If MyAnd = " و" MyArry1(0) = "" MyArry1(1) = "مائة" MyArry1(2) = "مائتان" MyArry1(3) = "ثلاثمائة" MyArry1(4) = "أربعمائة" MyArry1(5) = "خمسمائة" MyArry1(6) = "ستمائة" MyArry1(7) = "سبعمائة" MyArry1(8) = "ثمانمائة" MyArry1(9) = "تسعمائة" MyArry2(0) = "" MyArry2(1) = " عشر" MyArry2(2) = "عشرون" MyArry2(3) = "ثلاثون" MyArry2(4) = "أربعون" MyArry2(5) = "خمسون" MyArry2(6) = "ستون" MyArry2(7) = "سبعون" MyArry2(8) = "ثمانون" MyArry2(9) = "تسعون" MyArry3(0) = "" MyArry3(1) = "واحد" MyArry3(2) = "اثنان" MyArry3(3) = "ثلاثة" MyArry3(4) = "أربعة" MyArry3(5) = "خمسة" MyArry3(6) = "ستة" MyArry3(7) = "سبعة" MyArry3(8) = "ثمانية" MyArry3(9) = "تسعة" '====================== GetNo = Format(TheNo, "000000000000.00") I = 0 Do While I < 15 If I < 12 Then Myno = Mid$(GetNo, I + 1, 3) Else Myno = "0" + Mid$(GetNo, I + 2, 2) End If If (Mid$(Myno, 1, 3)) > 0 Then RdNo = Mid$(Myno, 1, 1) My100 = MyArry1(RdNo) RdNo = Mid$(Myno, 3, 1) My1 = MyArry3(RdNo) RdNo = Mid$(Myno, 2, 1) My10 = MyArry2(RdNo) If Mid$(Myno, 2, 2) = 11 Then My11 = "إحدى عشر" If Mid$(Myno, 2, 2) = 12 Then My12 = "إثنى عشر" If Mid$(Myno, 2, 2) = 10 Then My10 = "عشرة" If ((Mid$(Myno, 1, 1)) > 0) And ((Mid$(Myno, 2, 2)) > 0) Then My100 = My100 + MyAnd If ((Mid$(Myno, 3, 1)) > 0) And ((Mid$(Myno, 2, 1)) > 1) Then My1 = My1 + MyAnd GetTxt = My100 + My1 + My10 If ((Mid$(Myno, 3, 1)) = 1) And ((Mid$(Myno, 2, 1)) = 1) Then GetTxt = My100 + My11 If ((Mid$(Myno, 1, 1)) = 0) Then GetTxt = My11 End If If ((Mid$(Myno, 3, 1)) = 2) And ((Mid$(Myno, 2, 1)) = 1) Then GetTxt = My100 + My12 If ((Mid$(Myno, 1, 1)) = 0) Then GetTxt = My12 End If If (I = 0) And (GetTxt <> "") Then If ((Mid$(Myno, 1, 3)) > 10) Then Mybillion = GetTxt + " مليار" Else Mybillion = GetTxt + " مليارات" If ((Mid$(Myno, 1, 3)) = 2) Then Mybillion = " مليار" If ((Mid$(Myno, 1, 3)) = 2) Then Mybillion = " ملياران" End If End If If (I = 3) And (GetTxt <> "") Then If ((Mid$(Myno, 1, 3)) > 10) Then MyMillion = GetTxt + " مليون" Else MyMillion = GetTxt + " ملايين" If ((Mid$(Myno, 1, 3)) = 1) Then MyMillion = " مليون" If ((Mid$(Myno, 1, 3)) = 2) Then MyMillion = " مليونان" End If End If If (I = 6) And (GetTxt <> "") Then If ((Mid$(Myno, 1, 3)) > 10) Then MyThou = GetTxt + " ألف" Else MyThou = GetTxt + " آلاف" If ((Mid$(Myno, 3, 1)) = 1) Then MyThou = " ألف" If ((Mid$(Myno, 3, 1)) = 2) Then MyThou = " ألفان" End If End If If (I = 9) And (GetTxt <> "") Then MyHun = GetTxt If (I = 12) And (GetTxt <> "") Then MyFraction = GetTxt End If I = I + 3 Loop If (Mybillion <> "") Then If (MyMillion <> "") Or (MyThou <> "") Or (MyHun <> "") Then Mybillion = Mybillion + MyAnd End If If (MyMillion <> "") Then If (MyThou <> "") Or (MyHun <> "") Then MyMillion = MyMillion + MyAnd End If If (MyThou <> "") Then If (MyHun <> "") Then MyThou = MyThou + MyAnd End If If MyFraction <> "" Then If (Mybillion <> "") Or (MyMillion <> "") Or (MyThou <> "") Or (MyHun <> "") Then NoToTxt = ReMark + Mybillion + MyMillion + MyThou + MyHun + " " + MyCur + MyAnd + MyFraction + " " + MySubCur Else NoToTxt = ReMark + MyFraction + " " + MySubCur End If Else NoToTxt = ReMark + Mybillion + MyMillion + MyThou + MyHun + " " + MyCur End If End Function

Sheet حساب_سائق
A1: التاريخ | B1: =NOW() -> 2019-12-31T18:50:33.730 | F1: فترة الحساب
A2: اسم السائق | B2: رمضان حمدي | F2: من | G2: 2019-09-01 | H2: الي | I2: 2019-10-15 | L2: TRUE
A3: رقم السياره | F3: مج مستحقات | G3: =SUBTOTAL(9,$C$7:$C$500)+SUBTOTAL(9,$F$7:$F$500) -> 3250 | H3: مج مصروفات | I3: =SUBTOTAL(9,$D$7:$D$500)+SUBTOTAL(9,$E$7:$E$500)+SUBTOTAL(9,$J$7:$J$500) -> 7659.89
A4: نوع السياره | F4: صافي المستحق | G4: =I3-G3 -> 4409.89 | H4: =CurrText($G$4,1,"جنيه","جنيهات",1,"قرش","قروش",2) -> أربعة آلاف وأربعمائة وتسع جنيهات وتسع وثمانون قرش فقط لاغير
A5: 4 | B5: 9 | C5: 10 | D5: 11 | E5: 12 | F5: 13 | G5: 14 | H5: 15 | I5: 17 | J5: 20 | K5: 21
A6: التاريخ | B6: المحافظة | C6: عهدة | D6: شيك | E6: ميزان | F6: خصم | G6: سولار | H6: كارتات | I6: ملاحظات | J6: القيمة | K6: الكميه
A7: =IFERROR(VLOOKUP(ROW()-6,data!$A$4:$U$5000,4,0),"") -> 2019-09-01 | B7: =IFERROR(VLOOKUP(ROW()-6,data!$A$4:$U$5000,9,0),"") -> الغردقه | C7: =IFERROR(VLOOKUP(ROW()-6,data!$A$4:$U$5000,10,0),"") -> 100 | D7: =IFERROR(VLOOKUP(ROW()-6,data!$A$4:$U$5000,11,0),"") -> 0 | E7: =IFERROR(VLOOKUP(ROW()-6,data!$A$4:$U$5000,12,0),"") -> 0 | F7: =IFERROR(VLOOKUP(ROW()-6,data!$A$4:$U$5000,13,0),"") -> 0 | G7: =IFERROR(VLOOKUP(ROW()-6,data!$A$4:$U$5000,14,0),"") -> 0 | H7: =IFERROR(VLOOKUP(ROW()-6,data!$A$4:$U$5000,15,0),"") -> 0 | I7: =IFERROR(VLOOKUP(ROW()-6,data!$A$4:$U$5000,17,0),"") -> 0 | J7: =IFERROR(VLOOKUP(ROW()-6,data!$A$4:$U$5000,20,0),"") -> 0 | K7: =IFERROR(VLOOKUP(ROW()-6,data!$A$4:$U$5000,21,0),"") -> 4.464
A8: =IFERROR(VLOOKUP(ROW()-6,data!$A$4:$U$5000,4,0),"") -> 2019-09-02 | B8: =IFERROR(VLOOKUP(ROW()-6,data!$A$4:$U$5000,9,0),"") -> بور سعيد | C8: =IFERROR(VLOOKUP(ROW()-6,data!$A$4:$U$5000,10,0),"") -> 100 | D8: =IFERROR(VLOOKUP(ROW()-6,data!$A$4:$U$5000,11,0),"") -> 0 | E8: =IFERROR(VLOOKUP(ROW()-6,data!$A$4:$U$5000,12,0),"") -> 0 | F8: =IFERROR(VLOOKUP(ROW()-6,data!$A$4:$U$5000,13,0),"") -> 0 | G8: =IFERROR(VLOOKUP(ROW()-6,data!$A$4:$U$5000,14,0),"") -> 0 | H8: =IFERROR(VLOOKUP(ROW()-6,data!$A$4:$U$5000,15,0),"") -> 0 | I8: =IFERROR(VLOOKUP(ROW()-6,data!$A$4:$U$5000,17,0),"") -> 0 | J8: =IFERROR(VLOOKUP(ROW()-6,data!$A$4:$U$5000,20,0),"") -> 225.44 | K8: =IFERROR(VLOOKUP(ROW()-6,data!$A$4:$U$5000,21,0),"") -> 5.636
A9: =IFERROR(VLOOKUP(ROW()-6,data!$A$4:$U$5000,4,0),"") -> 2019-09-02 | B9: =IFERROR(VLOOKUP(ROW()-6,data!$A$4:$U$5000,9,0),"") -> كفر الشيخ | C9: =IFERROR(VLOOKUP(ROW()-6,data!$A$4:$U$5000,10,0),"") -> 0 | D9: =IFERROR(VLOOKUP(ROW()-6,data!$A$4:$U$5000,11,0),"") -> 0 | E9: =IFERROR(VLOOKUP(ROW()-6,data!$A$4:$U$5000,12,0),"") -> 50 | F9: =IFERROR(VLOOKUP(ROW()-6,data!$A$4:$U$5000,13,0),"") -> 0 | G9: =IFERROR(VLOOKUP(ROW()-6,data!$A$4:$U$5000,14,0),"") -> 0 | H9: =IFERROR(VLOOKUP(ROW()-6,data!$A$4:$U$5000,15,0),"") -> 0 | I9: =IFERROR(VLOOKUP(ROW()-6,data!$A$4:$U$5000,17,0),"") -> 0 | J9: =IFERROR(VLOOKUP(ROW()-6,data!$A$4:$U$5000,20,0),"") -> 225.04 | K9: =IFERROR(VLOOKUP(ROW()-6,data!$A$4:$U$5000,21,0),"") -> 5.626
A10: =IFERROR(VLOOKUP(ROW()-6,data!$A$4:$U$5000,4,0),"") -> 2019-09-03 | B10: =IFERROR(VLOOKUP(ROW()-6,data!$A$4:$U$5000,9,0),"") -> الغردقه | C10: =IFERROR(VLOOKUP(ROW()-6,data!$A$4:$U$5000,10,0),"") -> 100 | D10: =IFERROR(VLOOKUP(ROW()-6,data!$A$4:$U$5000,11,0),"") -> 0 | E10: =IFERROR(VLOOKUP(ROW()-6,data!$A$4:$U$5000,12,0),"") -> 0 | F10: =IFERROR(VLOOKUP(ROW()-6,data!$A$4:$U$5000,13,0),"") -> 0 | G10: =IFERROR(VLOOKUP(ROW()-6,data!$A$4:$U$5000,14,0),"") -> 0 | H10: =IFERROR(VLOOKUP(ROW()-6,data!$A$4:$U$5000,15,0),"") -> 0 | I10: =IFERROR(VLOOKUP(ROW()-6,data!$A$4:$U$5000,17,0),"") -> 0 | J10: =IFERROR(VLOOKUP(ROW()-6,data!$A$4:$U$5000,20,0),"") -> 0 | K10: =IFERROR(VLOOKUP(ROW()-6,data!$A$4:$U$5000,21,0),"") -> 5.032
A11: =IFERROR(VLOOKUP(ROW()-6,data!$A$4:$U$5000,4,0),"") -> 2019-09-07 | B11: =IFERROR(VLOOKUP(ROW()-6,data!$A$4:$U$5000,9,0),"") -> شبين | C11: =IFERROR(VLOOKUP(ROW()-6,data!$A$4:$U$5000,10,0),"") -> 100 | D11: =IFERROR(VLOOKUP(ROW()-6,data!$A$4:$U$5000,11,0),"") -> 0 | E11: =IFERROR(VLOOKUP(ROW()-6,data!$A$4:$U$5000,12,0),"") -> 0 | F11: =IFERROR(VLOOKUP(ROW()-6,data!$A$4:$U$5000,13,0),"") -> 0 | G11: =IFERROR(VLOOKUP(ROW()-6,data!$A$4:$U$5000,14,0),"") -> 0 | H11: =IFERROR(VLOOKUP(ROW()-6,data!$A$4:$U$5000,15,0),"") -> 0 | I11: =IFERROR(VLOOKUP(ROW()-6,data!$A$4:$U$5000,17,0),"") -> 0 | J11: =IFERROR(VLOOKUP(ROW()-6,data!$A$4:$U$5000,20,0),"") -> 0 | K11: =IFERROR(VLOOKUP(ROW()-6,data!$A$4:$U$5000,21,0),"") -> 5.641
A12: =IFERROR(VLOOKUP(ROW()-6,data!$A$4:$U$5000,4,0),"") -> 2019-09-08 | B12: =IFERROR(VLOOKUP(ROW()-6,data!$A$4:$U$5000,9,0),"") -> كفر الشيخ | C12: =IFERROR(VLOOKUP(ROW()-6,data!$A$4:$U$5000,10,0),"") -> 150 | D12: =IFERROR(VLOOKUP(ROW()-6,data!$A$4:$U$5000,11,0),"") -> 0 | E12: =IFERROR(VLOOKUP(ROW()-6,data!$A$4:$U$5000,12,0),"") -> 90 | F12: =IFERROR(VLOOKUP(ROW()-6,data!$A$4:$U$5000,13,0),"") -> 0 | G12: =IFERROR(VLOOKUP(ROW()-6,data!$A$4:$U$5000,14,0),"") -> 0 | H12: =IFERROR(VLOOKUP(ROW()-6,data!$A$4:$U$5000,15,0),"") -> 0 | I12: =IFERROR(VLOOKUP(ROW()-6,data!$A$4:$U$5000,17,0),"") -> 0 | J12: =IFERROR(VLOOKUP(ROW()-6,data!$A$4:$U$5000,20,0),"") -> 0 | K12: =IFERROR(VLOOKUP(ROW()-6,data!$A$4:$U$5000,21,0),"") -> 5.13
A13: =IFERROR(VLOOKUP(ROW()-6,data!$A$4:$U$5000,4,0),"") -> 2019-09-08 | B13: =IFERROR(VLOOKUP(ROW()-6,data!$A$4:$U$5000,9,0),"") -> كفر الشيخ | C13: =IFERROR(VLOOKUP(ROW()-6,data!$A$4:$U$5000,10,0),"") -> 150 | D13: =IFERROR(VLOOKUP(ROW()-6,data!$A$4:$U$5000,11,0),"") -> 0 | E13: =IFERROR(VLOOKUP(ROW()-6,data!$A$4:$U$5000,12,0),"") -> 0 | F13: =IFERROR(VLOOKUP(ROW()-6,data!$A$4:$U$5000,13,0),"") -> 0 | G13: =IFERROR(VLOOKUP(ROW()-6,data!$A$4:$U$5000,14,0),"") -> 0 | H13: =IFERROR(VLOOKUP(ROW()-6,data!$A$4:$U$5000,15,0),"") -> 0 | I13: =IFERROR(VLOOKUP(ROW()-6,data!$A$4:$U$5000,17,0),"") -> 0 | J13: =IFERROR(VLOOKUP(ROW()-6,data!$A$4:$U$5000,20,0),"") -> 0 | K13: =IFERROR(VLOOKUP(ROW()-6,data!$A$4:$U$5000,21,0),"") -> 0
A14: =IFERROR(VLOOKUP(ROW()-6,data!$A$4:$U$5000,4,0),"") -> 2019-09-09 | B14: =IFERROR(VLOOKUP(ROW()-6,data!$A$4:$U$5000,9,0),"") -> الراعي | C14: =IFERROR(VLOOKUP(ROW()-6,data!$A$4:$U$5000,10,0),"") -> 100 | D14: =IFERROR(VLOOKUP(ROW()-6,data!$A$4:$U$5000,11,0),"") -> 0 | E14: =IFERROR(VLOOKUP(ROW()-6,data!$A$4:$U$5000,12,0),"") -> 60 | F14: =IFERROR(VLOOKUP(ROW()-6,data!$A$4:$U$5000,13,0),"") -> 0 | G14: =IFERROR(VLOOKUP(ROW()-6,data!$A$4:$U$5000,14,0),"") -> 0 | H14: =IFERROR(VLOOKUP(ROW()-6,data!$A$4:$U$5000,15,0),"") -> 0 | I14: =IFERROR(VLOOKUP(ROW()-6,data!$A$4:$U$5000,17,0),"") -> 0 | J14: =IFERROR(VLOOKUP(ROW()-6,data!$A$4:$U$5000,20,0),"") -> 0 | K14: =IFERROR(VLOOKUP(ROW()-6,data!$A$4:$U$5000,21,0),"") -> 4.869
A15: =IFERROR(VLOOKUP(ROW()-6,data!$A$4:$U$5000,4,0),"") -> 2019-09-10 | B15: =IFERROR(VLOOKUP(ROW()-6,data!$A$4:$U$5000,9,0),"") -> الغردقة | C15: =IFERROR(VLOOKUP(ROW()-6,data!$A$4:$U$5000,10,0),"") -> 100 | D15: =IFERROR(VLOOKUP(ROW()-6,data!$A$4:$U$5000,11,0),"") -> 0 | E15: =IFERROR(VLOOKUP(ROW()-6,data!$A$4:$U$5000,12,0),"") -> 0 | F15: =IFERROR(VLOOKUP(ROW()-6,data!$A$4:$U$5000,13,0),"") -> 0 | G15: =IFERROR(VLOOKUP(ROW()-6,data!$A$4:$U$5000,14,0),"") -> 0 | H15: =IFERROR(VLOOKUP(ROW()-6,data!$A$4:$U$5000,15,0),"") -> 0 | I15: =IFERROR(VLOOKUP(ROW()-6,data!$A$4:$U$5000,17,0),"") -> 0 | J15: =IFERROR(VLOOKUP(ROW()-6,data!$A$4:$U$5000,20,0),"") -> 0 | K15: =IFERROR(VLOOKUP(ROW()-6,data!$A$4:$U$5000,21,0),"") -> 1.829
A16: =IFERROR(VLOOKUP(ROW()-6,data!$A$4:$U$5000,4,0),"") -> 2019-09-10 | B16: =IFERROR(VLOOKUP(ROW()-6,data!$A$4:$U$5000,9,0),"") -> اسكندريه | C16: =IFERROR(VLOOKUP(ROW()-6,data!$A$4:$U$5000,10,0),"") -> 0 | D16: =IFERROR(VLOOKUP(ROW()-6,data!$A$4:$U$5000,11,0),"") -> 0 | E16: =IFERROR(VLOOKUP(ROW()-6,data!$A$4:$U$5000,12,0),"") -> 0 | F16: =IFERROR(VLOOKUP(ROW()-6,data!$A$4:$U$5000,13,0),"") -> 0 | G16: =IFERROR(VLOOKUP(ROW()-6,data!$A$4:$U$5000,14,0),"") -> 0 | H16: =IFERROR(VLOOKUP(ROW()-6,data!$A$4:$U$5000,15,0),"") -> 0 | I16: =IFERROR(VLOOKUP(ROW()-6,data!$A$4:$U$5000,17,0),"") -> 0 | J16: =IFERROR(VLOOKUP(ROW()-6,data!$A$4:$U$5000,20,0),"") -> 205.56 | K16: =IFERROR(VLOOKUP(ROW()-6,data!$A$4:$U$5000,21,0),"") -> 5.139
A17: =IFERROR(VLOOKUP(ROW()-6,data!$A$4:$U$5000,4,0),"") -> 2019-09-12 | B17: =IFERROR(VLOOKUP(ROW()-6,data!$A$4:$U$5000,9,0),"") -> القاهره | C17: =IFERROR(VLOOKUP(ROW()-6,data!$A$4:$U$5000,10,0),"") -> 0 | D17: =IFERROR(VLOOKUP(ROW()-6,data!$A$4:$U$5000,11,0),"") -> 0 | E17: =IFERROR(VLOOKUP(ROW()-6,data!$A$4:$U$5000,12,0),"") -> 65 | F17: =IFERROR(VLOOKUP(ROW()-6,data!$A$4:$U$5000,13,0),"") -> 0 | G17: =IFERROR(VLOOKUP(ROW()-6,data!$A$4:$U$5000,14,0),"") -> 0 | H17: =IFERROR(VLOOKUP(ROW()-6,data!$A$4:$U$5000,15,0),"") -> 0 | I17: =IFERROR(VLOOKUP(ROW()-6,data!$A$4:$U$5000,17,0),"") -> 0 | J17: =IFERROR(VLOOKUP(ROW()-6,data!$A$4:$U$5000,20,0),"") -> 0 | K17: =IFERROR(VLOOKUP(ROW()-6,data!$A$4:$U$5000,21,0),"") -> 6.72
A18: =IFERROR(VLOOKUP(ROW()-6,data!$A$4:$U$5000,4,0),"") -> 2019-09-14 | B18: =IFERROR(VLOOKUP(ROW()-6,data!$A$4:$U$5000,9,0),"") -> العاشر | C18: =IFERROR(VLOOKUP(ROW()-6,data!$A$4:$U$5000,10,0),"") -> 100 | D18: =IFERROR(VLOOKUP(ROW()-6,data!$A$4:$U$5000,11,0),"") -> 0 | E18: =IFERROR(VLOOKUP(ROW()-6,data!$A$4:$U$5000,12,0),"") -> 0 | F18: =IFERROR(VLOOKUP(ROW()-6,data!$A$4:$U$5000,13,0),"") -> 0 | G18: =IFERROR(VLOOKUP(ROW()-6,data!$A$4:$U$5000,14,0),"") -> 0 | H18: =IFERROR(VLOOKUP(ROW()-6,data!$A$4:$U$5000,15,0),"") -> 0 | I18: =IFERROR(VLOOKUP(ROW()-6,data!$A$4:$U$5000,17,0),"") -> 0 | J18: =IFERROR(VLOOKUP(ROW()-6,data!$A$4:$U$5000,20,0),"") -> 324.88 | K18: =IFERROR(VLOOKUP(ROW()-6,data!$A$4:$U$5000,21,0),"") -> 8.122
A19: =IFERROR(VLOOKUP(ROW()-6,data!$A$4:$U$5000,4,0),"") -> 2019-09-15 | B19: =IFERROR(VLOOKUP(ROW()-6,data!$A$4:$U$5000,9,0),"") -> العاشر | C19: =IFERROR(VLOOKUP(ROW()-6,data!$A$4:$U$5000,10,0),"") -> 50 | D19: =IFERROR(VLOOKUP(ROW()-6,data!$A$4:$U$5000,11,0),"") -> 0 | E19: =IFERROR(VLOOKUP(ROW()-6,data!$A$4:$U$5000,12,0),"") -> 0 | F19: =IFERROR(VLOOKUP(ROW()-6,data!$A$4:$U$5000,13,0),"") -> 0 | G19: =IFERROR(VLOOKUP(ROW()-6,data!$A$4:$U$5000,14,0),"") -> 0 | H19: =IFERROR(VLOOKUP(ROW()-6,data!$A$4:$U$5000,15,0),"") -> 0 | I19: =IFERROR(VLOOKUP(ROW()-6,data!$A$4:$U$5000,17,0),"") -> 0 | J19: =IFERROR(VLOOKUP(ROW()-6,data!$A$4:$U$5000,20,0),"") -> 296.04 | K19: =IFERROR(VLOOKUP(ROW()-6,data!$A$4:$U$5000,21,0),"") -> 7.401
A20: =IFERROR(VLOOKUP(ROW()-6,data!$A$4:$U$5000,4,0),"") -> 2019-09-16 | B20: =IFERROR(VLOOKUP(ROW()-6,data!$A$4:$U$5000,9,0),"") -> اكتوبر | C20: =IFERROR(VLOOKUP(ROW()-6,data!$A$4:$U$5000,10,0),"") -> 100 | D20: =IFERROR(VLOOKUP(ROW()-6,data!$A$4:$U$5000,11,0),"") -> 0 | E20: =IFERROR(VLOOKUP(ROW()-6,data!$A$4:$U$5000,12,0),"") -> 0 | F20: =IFERROR(VLOOKUP(ROW()-6,data!$A$4:$U$5000,13,0),"") -> 0 | G20: =IFERROR(VLOOKUP(ROW()-6,data!$A$4:$U$5000,14,0),"") -> 0 | H20: =IFERROR(VLOOKUP(ROW()-6,data!$A$4:$U$5000,15,0),"") -> 0 | I20: =IFERROR(VLOOKUP(ROW()-6,data!$A$4:$U$5000,17,0),"") -> 0 | J20: =IFERROR(VLOOKUP(ROW()-6,data!$A$4:$U$5000,20,0),"") -> 860.88 | K20: =IFERROR(VLOOKUP(ROW()-6,data!$A$4:$U$5000,21,0),"") -> 7.174
A21: =IFERROR(VLOOKUP(ROW()-6,data!$A$4:$U$5000,4,0),"") -> 2019-09-17 | B21: =IFERROR(VLOOKUP(ROW()-6,data!$A$4:$U$5000,9,0),"") -> القاهره | C21: =IFERROR(VLOOKUP(ROW()-6,data!$A$4:$U$5000,10,0),"") -> 100 | D21: =IFERROR(VLOOKUP(ROW()-6,data!$A$4:$U$5000,11,0),"") -> 0 | E21: =IFERROR(VLOOKUP(ROW()-6,data!$A$4:$U$5000,12,0),"") -> 0 | F21: =IFERROR(VLOOKUP(ROW()-6,data!$A$4:$U$5000,13,0),"") -> 0 | G21: =IFERROR(VLOOKUP(ROW()-6,data!$A$4:$U$5000,14,0),"") -> 0 | H21: =IFERROR(VLOOKUP(ROW()-6,data!$A$4:$U$5000,15,0),"") -> 0 | I21: =IFERROR(VLOOKUP(ROW()-6,data!$A$4:$U$5000,17,0),"") -> 0 | J21: =IFERROR(VLOOKUP(ROW()-6,data!$A$4:$U$5000,20,0),"") -> 0 | K21: =IFERROR(VLOOKUP(ROW()-6,data!$A$4:$U$5000,21,0),"") -> 5.143
A22: =IFERROR(VLOOKUP(ROW()-6,data!$A$4:$U$5000,4,0),"") -> 2019-09-18 | B22: =IFERROR(VLOOKUP(ROW()-6,data!$A$4:$U$5000,9,0),"") -> العاشر | C22: =IFERROR(VLOOKUP(ROW()-6,data!$A$4:$U$5000,10,0),"") -> 0 | D22: =IFERROR(VLOOKUP(ROW()-6,data!$A$4:$U$5000,11,0),"") -> 0 | E22: =IFERROR(VLOOKUP(ROW()-6,data!$A$4:$U$5000,12,0),"") -> 0 | F22: =IFERROR(VLOOKUP(ROW()-6,data!$A$4:$U$5000,13,0),"") -> 0 | G22: =IFERROR(VLOOKUP(ROW()-6,data!$A$4:$U$5000,14,0),"") -> 0 | H22: =IFERROR(VLOOKUP(ROW()-6,data!$A$4:$U$5000,15,0),"") -> 0 | I22: =IFERROR(VLOOKUP(ROW()-6,data!$A$4:$U$5000,17,0),"") -> 0 | J22: =IFERROR(VLOOKUP(ROW()-6,data!$A$4:$U$5000,20,0),"") -> 205.56 | K22: =IFERROR(VLOOKUP(ROW()-6,data!$A$4:$U$5000,21,0),"") -> 5.139
A23: =IFERROR(VLOOKUP(ROW()-6,data!$A$4:$U$5000,4,0),"") -> 2019-09-21 | B23: =IFERROR(VLOOKUP(ROW()-6,data!$A$4:$U$5000,9,0),"") -> القاهره | C23: =IFERROR(VLOOKUP(ROW()-6,data!$A$4:$U$5000,10,0),"") -> 100 | D23: =IFERROR(VLOOKUP(ROW()-6,data!$A$4:$U$5000,11,0),"") -> 0 | E23: =IFERROR(VLOOKUP(ROW()-6,data!$A$4:$U$5000,12,0),"") -> 0 | F23: =IFERROR(VLOOKUP(ROW()-6,data!$A$4:$U$5000,13,0),"") -> 0 | G23: =IFERROR(VLOOKUP(ROW()-6,data!$A$4:$U$5000,14,0),"") -> 0 | H23: =IFERROR(VLOOKUP(ROW()-6,data!$A$4:$U$5000,15,0),"") -> 0 | I23: =IFERROR(VLOOKUP(ROW()-6,data!$A$4:$U$5000,17,0),"") -> 0 | J23: =IFERROR(VLOOKUP(ROW()-6,data!$A$4:$U$5000,20,0),"") -> 0 | K23: =IFERROR(VLOOKUP(ROW()-6,data!$A$4:$U$5000,21,0),"") -> 5.315
A24: =IFERROR(VLOOKUP(ROW()-6,data!$A$4:$U$5000,4,0),"") -> 2019-09-21 | B24: =IFERROR(VLOOKUP(ROW()-6,data!$A$4:$U$5000,9,0),"") -> القاهره | C24: =IFERROR(VLOOKUP(ROW()-6,data!$A$4:$U$5000,10,0),"") -> 100 | D24: =IFERROR(VLOOKUP(ROW()-6,data!$A$4:$U$5000,11,0),"") -> 0 | E24: =IFERROR(VLOOKUP(ROW()-6,data!$A$4:$U$5000,12,0),"") -> 0 | F24: =IFERROR(VLOOKUP(ROW()-6,data!$A$4:$U$5000,13,0),"") -> 0 | G24: =IFERROR(VLOOKUP(ROW()-6,data!$A$4:$U$5000,14,0),"") -> 0 | H24: =IFERROR(VLOOKUP(ROW()-6,data!$A$4:$U$5000,15,0),"") -> 0 | I24: =IFERROR(VLOOKUP(ROW()-6,data!$A$4:$U$5000,17,0),"") -> 0 | J24: =IFERROR(VLOOKUP(ROW()-6,data!$A$4:$U$5000,20,0),"") -> 0 | K24: =IFERROR(VLOOKUP(ROW()-6,data!$A$4:$U$5000,21,0),"") -> 5.33
A25: =IFERROR(VLOOKUP(ROW()-6,data!$A$4:$U$5000,4,0),"") -> 2019-09-22 | B25: =IFERROR(VLOOKUP(ROW()-6,data!$A$4:$U$5000,9,0),"") -> العامر | C25: =IFERROR(VLOOKUP(ROW()-6,data!$A$4:$U$5000,10,0),"") -> 100 | D25: =IFERROR(VLOOKUP(ROW()-6,data!$A$4:$U$5000,11,0),"") -> 0 | E25: =IFERROR(VLOOKUP(ROW()-6,data!$A$4:$U$5000,12,0),"") -> 0 | F25: =IFERROR(VLOOKUP(ROW()-6,data!$A$4:$U$5000,13,0),"") -> 0 | G25: =IFERROR(VLOOKUP(ROW()-6,data!$A$4:$U$5000,14,0),"") -> 0 | H25: =IFERROR(VLOOKUP(ROW()-6,data!$A$4:$U$5000,15,0),"") -> 0 | I25: =IFERROR(VLOOKUP(ROW()-6,data!$A$4:$U$5000,17,0),"") -> 0 | J25: =IFERROR(VLOOKUP(ROW()-6,data!$A$4:$U$5000,20,0),"") -> 0 | K25: =IFERROR(VLOOKUP(ROW()-6,data!$A$4:$U$5000,21,0),"") -> 6.168
A26: =IFERROR(VLOOKUP(ROW()-6,data!$A$4:$U$5000,4,0),"") -> 2019-09-23 | B26: =IFERROR(VLOOKUP(ROW()-6,data!$A$4:$U$5000,9,0),"") -> العاشر | C26: =IFERROR(VLOOKUP(ROW()-6,data!$A$4:$U$5000,10,0),"") -> 500 | D26: =IFERROR(VLOOKUP(ROW()-6,data!$A$4:$U$5000,11,0),"") -> 0 | E26: =IFERROR(VLOOKUP(ROW()-6,data!$A$4:$U$5000,12,0),"") -> 0 | F26: =IFERROR(VLOOKUP(ROW()-6,data!$A$4:$U$5000,13,0),"") -> 0 | G26: =IFERROR(VLOOKUP(ROW()-6,data!$A$4:$U$5000,14,0),"") -> 0 | H26: =IFERROR(VLOOKUP(ROW()-6,data!$A$4:$U$5000,15,0),"") -> 0 | I26: =IFERROR(VLOOKUP(ROW()-6,data!$A$4:$U$5000,17,0),"") -> 0 | J26: =IFERROR(VLOOKUP(ROW()-6,data!$A$4:$U$5000,20,0),"") -> 213.96 | K26: =IFERROR(VLOOKUP(ROW()-6,data!$A$4:$U$5000,21,0),"") -> 5.349
A27: =IFERROR(VLOOKUP(ROW()-6,data!$A$4:$U$5000,4,0),"") -> 2019-09-24 | B27: =IFERROR(VLOOKUP(ROW()-6,data!$A$4:$U$5000,9,0),"") -> العاشر | C27: =IFERROR(VLOOKUP(ROW()-6,data!$A$4:$U$5000,10,0),"") -> 0 | D27: =IFERROR(VLOOKUP(ROW()-6,data!$A$4:$U$5000,11,0),"") -> 0 | E27: =IFERROR(VLOOKUP(ROW()-6,data!$A$4:$U$5000,12,0),"") -> 0 | F27: =IFERROR(VLOOKUP(ROW()-6,data!$A$4:$U$5000,13,0),"") -> 0 | G27: =IFERROR(VLOOKUP(ROW()-6,data!$A$4:$U$5000,14,0),"") -> 0 | H27: =IFERROR(VLOOKUP(ROW()-6,data!$A$4:$U$5000,15,0),"") -> 0 | I27: =IFERROR(VLOOKUP(ROW()-6,data!$A$4:$U$5000,17,0),"") -> 0 | J27: =IFERROR(VLOOKUP(ROW()-6,data!$A$4:$U$5000,20,0),"") -> 200 | K27: =IFERROR(VLOOKUP(ROW()-6,data!$A$4:$U$5000,21,0),"") -> 0
A28: =IFERROR(VLOOKUP(ROW()-6,data!$A$4:$U$5000,4,0),"") -> 2019-09-24 | B28: =IFERROR(VLOOKUP(ROW()-6,data!$A$4:$U$5000,9,0),"") -> القاهره | C28: =IFERROR(VLOOKUP(ROW()-6,data!$A$4:$U$5000,10,0),"") -> 100 | D28: =IFERROR(VLOOKUP(ROW()-6,data!$A$4:$U$5000,11,0),"") -> 0 | E28: =IFERROR(VLOOKUP(ROW()-6,data!$A$4:$U$5000,12,0),"") -> 0 | F28: =IFERROR(VLOOKUP(ROW()-6,data!$A$4:$U$5000,13,0),"") -> 0 | G28: =IFERROR(VLOOKUP(ROW()-6,data!$A$4:$U$5000,14,0),"") -> 0 | H28: =IFERROR(VLOOKUP(ROW()-6,data!$A$4:$U$5000,15,0),"") -> 0 | I28: =IFERROR(VLOOKUP(ROW()-6,data!$A$4:$U$5000,17,0),"") -> 0 | J28: =IFERROR(VLOOKUP(ROW()-6,data!$A$4:$U$5000,20,0),"") -> 0 | K28: =IFERROR(VLOOKUP(ROW()-6,data!$A$4:$U$5000,21,0),"") -> 4.6
A29: =IFERROR(VLOOKUP(ROW()-6,data!$A$4:$U$5000,4,0),"") -> 2019-09-25 | B29: =IFERROR(VLOOKUP(ROW()-6,data!$A$4:$U$5000,9,0),"") -> القاهره | C29: =IFERROR(VLOOKUP(ROW()-6,data!$A$4:$U$5000,10,0),"") -> 100 | D29: =IFERROR(VLOOKUP(ROW()-6,data!$A$4:$U$5000,11,0),"") -> 0 | E29: =IFERROR(VLOOKUP(ROW()-6,data!$A$4:$U$5000,12,0),"") -> 75 | F29: =IFERROR(VLOOKUP(ROW()-6,data!$A$4:$U$5000,13,0),"") -> 0 | G29: =IFERROR(VLOOKUP(ROW()-6,data!$A$4:$U$5000,14,0),"") -> 0 | H29: =IFERROR(VLOOKUP(ROW()-6,data!$A$4:$U$5000,15,0),"") -> 0 | I29: =IFERROR(VLOOKUP(ROW()-6,data!$A$4:$U$5000,17,0),"") -> 0 | J29: =IFERROR(VLOOKUP(ROW()-6,data!$A$4:$U$5000,20,0),"") -> 0 | K29: =IFERROR(VLOOKUP(ROW()-6,data!$A$4:$U$5000,21,0),"") -> 3.772
A30: =IFERROR(VLOOKUP(ROW()-6,data!$A$4:$U$5000,4,0),"") -> 2019-09-28 | B30: =IFERROR(VLOOKUP(ROW()-6,data!$A$4:$U$5000,9,0),"") -> القاهره | C30: =IFERROR(VLOOKUP(ROW()-6,data!$A$4:$U$5000,10,0),"") -> 100 | D30: =IFERROR(VLOOKUP(ROW()-6,data!$A$4:$U$5000,11,0),"") -> 0 | E30: =IFERROR(VLOOKUP(ROW()-6,data!$A$4:$U$5000,12,0),"") -> 75 | F30: =IFERROR(VLOOKUP(ROW()-6,data!$A$4:$U$5000,13,0),"") -> 0 | G30: =IFERROR(VLOOKUP(ROW()-6,data!$A$4:$U$5000,14,0),"") -> 0 | H30: =IFERROR(VLOOKUP(ROW()-6,data!$A$4:$U$5000,15,0),"") -> 0 | I30: =IFERROR(VLOOKUP(ROW()-6,data!$A$4:$U$5000,17,0),"") -> 0 | J30: =IFERROR(VLOOKUP(ROW()-6,data!$A$4:$U$5000,20,0),"") -> 0 | K30: =IFERROR(VLOOKUP(ROW()-6,data!$A$4:$U$5000,21,0),"") -> 6.895
A31: =IFERROR(VLOOKUP(ROW()-6,data!$A$4:$U$5000,4,0),"") -> 2019-09-28 | B31: =IFERROR(VLOOKUP(ROW()-6,data!$A$4:$U$5000,9,0),"") -> القاهره | C31: =IFERROR(VLOOKUP(ROW()-6,data!$A$4:$U$5000,10,0),"") -> 100 | D31: =IFERROR(VLOOKUP(ROW()-6,data!$A$4:$U$5000,11,0),"") -> 0 | E31: =IFERROR(VLOOKUP(ROW()-6,data!$A$4:$U$5000,12,0),"") -> 0 | F31: =IFERROR(VLOOKUP(ROW()-6,data!$A$4:$U$5000,13,0),"") -> 0 | G31: =IFERROR(VLOOKUP(ROW()-6,data!$A$4:$U$5000,14,0),"") -> 0 | H31: =IFERROR(VLOOKUP(ROW()-6,data!$A$4:$U$5000,15,0),"") -> 0 | I31: =IFERROR(VLOOKUP(ROW()-6,data!$A$4:$U$5000,17,0),"") -> 0 | J31: =IFERROR(VLOOKUP(ROW()-6,data!$A$4:$U$5000,20,0),"") -> 0 | K31: =IFERROR(VLOOKUP(ROW()-6,data!$A$4:$U$5000,21,0),"") -> 0
A32: =IFERROR(VLOOKUP(ROW()-6,data!$A$4:$U$5000,4,0),"") -> 2019-09-28 | B32: =IFERROR(VLOOKUP(ROW()-6,data!$A$4:$U$5000,9,0),"") -> اكتوبر | C32: =IFERROR(VLOOKUP(ROW()-6,data!$A$4:$U$5000,10,0),"") -> 0 | D32: =IFERROR(VLOOKUP(ROW()-6,data!$A$4:$U$5000,11,0),"") -> 0 | E32: =IFERROR(VLOOKUP(ROW()-6,data!$A$4:$U$5000,12,0),"") -> 65 | F32: =IFERROR(VLOOKUP(ROW()-6,data!$A$4:$U$5000,13,0),"") -> 0 | G32: =IFERROR(VLOOKUP(ROW()-6,data!$A$4:$U$5000,14,0),"") -> 0 | H32: =IFERROR(VLOOKUP(ROW()-6,data!$A$4:$U$5000,15,0),"") -> 0 | I32: =IFERROR(VLOOKUP(ROW()-6,data!$A$4:$U$5000,17,0),"") -> 0 | J32: =IFERROR(VLOOKUP(ROW()-6,data!$A$4:$U$5000,20,0),"") -> 0 | K32: =IFERROR(VLOOKUP(ROW()-6,data!$A$4:$U$5000,21,0),"") -> 6.864
A33: =IFERROR(VLOOKUP(ROW()-6,data!$A$4:$U$5000,4,0),"") -> 2019-09-30 | B33: =IFERROR(VLOOKUP(ROW()-6,data!$A$4:$U$5000,9,0),"") -> القاهره | C33: =IFERROR(VLOOKUP(ROW()-6,data!$A$4:$U$5000,10,0),"") -> 0 | D33: =IFERROR(VLOOKUP(ROW()-6,data!$A$4:$U$5000,11,0),"") -> 0 | E33: =IFERROR(VLOOKUP(ROW()-6,data!$A$4:$U$5000,12,0),"") -> 75 | F33: =IFERROR(VLOOKUP(ROW()-6,data!$A$4:$U$5000,13,0),"") -> 0 | G33: =IFERROR(VLOOKUP(ROW()-6,data!$A$4:$U$5000,14,0),"") -> 0 | H33: =IFERROR(VLOOKUP(ROW()-6,data!$A$4:$U$5000,15,0),"") -> 0 | I33: =IFERROR(VLOOKUP(ROW()-6,data!$A$4:$U$5000,17,0),"") -> 0 | J33: =IFERROR(VLOOKUP(ROW()-6,data!$A$4:$U$5000,20,0),"") -> 0 | K33: =IFERROR(VLOOKUP(ROW()-6,data!$A$4:$U$5000,21,0),"") -> 4.65
A34: =IFERROR(VLOOKUP(ROW()-6,data!$A$4:$U$5000,4,0),"") -> 2019-09-30 | B34: =IFERROR(VLOOKUP(ROW()-6,data!$A$4:$U$5000,9,0),"") -> اكتوبر | C34: =IFERROR(VLOOKUP(ROW()-6,data!$A$4:$U$5000,10,0),"") -> 0 | D34: =IFERROR(VLOOKUP(ROW()-6,data!$A$4:$U$5000,11,0),"") -> 0 | E34: =IFERROR(VLOOKUP(ROW()-6,data!$A$4:$U$5000,12,0),"") -> 0 | F34: =IFERROR(VLOOKUP(ROW()-6,data!$A$4:$U$5000,13,0),"") -> 0 | G34: =IFERROR(VLOOKUP(ROW()-6,data!$A$4:$U$5000,14,0),"") -> 0 | H34: =IFERROR(VLOOKUP(ROW()-6,data!$A$4:$U$5000,15,0),"") -> 0 | I34: =IFERROR(VLOOKUP(ROW()-6,data!$A$4:$U$5000,17,0),"") -> 0 | J34: =IFERROR(VLOOKUP(ROW()-6,data!$A$4:$U$5000,20,0),"") -> 0 | K34: =IFERROR(VLOOKUP(ROW()-6,data!$A$4:$U$5000,21,0),"") -> 5.5
A35: =IFERROR(VLOOKUP(ROW()-6,data!$A$4:$U$5000,4,0),"") -> 2019-10-01 | B35: =IFERROR(VLOOKUP(ROW()-6,data!$A$4:$U$5000,9,0),"") -> العاشر | C35: =IFERROR(VLOOKUP(ROW()-6,data!$A$4:$U$5000,10,0),"") -> 0 | D35: =IFERROR(VLOOKUP(ROW()-6,data!$A$4:$U$5000,11,0),"") -> 0 | E35: =IFERROR(VLOOKUP(ROW()-6,data!$A$4:$U$5000,12,0),"") -> 0 | F35: =IFERROR(VLOOKUP(ROW()-6,data!$A$4:$U$5000,13,0),"") -> 0 | G35: =IFERROR(VLOOKUP(ROW()-6,data!$A$4:$U$5000,14,0),"") -> 0 | H35: =IFERROR(VLOOKUP(ROW()-6,data!$A$4:$U$5000,15,0),"") -> 0 | I35: =IFERROR(VLOOKUP(ROW()-6,data!$A$4:$U$5000,17,0),"") -> 0 | J35: =IFERROR(VLOOKUP(ROW()-6,data!$A$4:$U$5000,20,0),"") -> 298.76 | K35: =IFERROR(VLOOKUP(ROW()-6,data!$A$4:$U$5000,21,0),"") -> 7.469
A36: =IFERROR(VLOOKUP(ROW()-6,data!$A$4:$U$5000,4,0),"") -> 2019-10-02 | B36: =IFERROR(VLOOKUP(ROW()-6,data!$A$4:$U$5000,9,0),"") -> القاهره | C36: =IFERROR(VLOOKUP(ROW()-6,data!$A$4:$U$5000,10,0),"") -> 100 | D36: =IFERROR(VLOOKUP(ROW()-6,data!$A$4:$U$5000,11,0),"") -> 0 | E36: =IFERROR(VLOOKUP(ROW()-6,data!$A$4:$U$5000,12,0),"") -> 0 | F36: =IFERROR(VLOOKUP(ROW()-6,data!$A$4:$U$5000,13,0),"") -> 0 | G36: =IFERROR(VLOOKUP(ROW()-6,data!$A$4:$U$5000,14,0),"") -> 0 | H36: =IFERROR(VLOOKUP(ROW()-6,data!$A$4:$U$5000,15,0),"") -> 0 | I36: =IFERROR(VLOOKUP(ROW()-6,data!$A$4:$U$5000,17,0),"") -> 0 | J36: =IFERROR(VLOOKUP(ROW()-6,data!$A$4:$U$5000,20,0),"") -> 0 | K36: =IFERROR(VLOOKUP(ROW()-6,data!$A$4:$U$5000,21,0),"") -> 2.545
A37: =IFERROR(VLOOKUP(ROW()-6,data!$A$4:$U$5000,4,0),"") -> 2019-10-05 | B37: =IFERROR(VLOOKUP(ROW()-6,data!$A$4:$U$5000,9,0),"") -> اكتوبر | C37: =IFERROR(VLOOKUP(ROW()-6,data!$A$4:$U$5000,10,0),"") -> 100 | D37: =IFERROR(VLOOKUP(ROW()-6,data!$A$4:$U$5000,11,0),"") -> 0 | E37: =IFERROR(VLOOKUP(ROW()-6,data!$A$4:$U$5000,12,0),"") -> 0 | F37: =IFERROR(VLOOKUP(ROW()-6,data!$A$4:$U$5000,13,0),"") -> 0 | G37: =IFERROR(VLOOKUP(ROW()-6,data!$A$4:$U$5000,14,0),"") -> 0 | H37: =IFERROR(VLOOKUP(ROW()-6,data!$A$4:$U$5000,15,0),"") -> 0 | I37: =IFERROR(VLOOKUP(ROW()-6,data!$A$4:$U$5000,17,0),"") -> 0 | J37: =IFERROR(VLOOKUP(ROW()-6,data!$A$4:$U$5000,20,0),"") -> 0 | K37: =IFERROR(VLOOKUP(ROW()-6,data!$A$4:$U$5000,21,0),"") -> 3.917
A38: =IFERROR(VLOOKUP(ROW()-6,data!$A$4:$U$5000,4,0),"") -> 2019-10-06 | B38: =IFERROR(VLOOKUP(ROW()-6,data!$A$4:$U$5000,9,0),"") -> القليوبيه | C38: =IFERROR(VLOOKUP(ROW()-6,data!$A$4:$U$5000,10,0),"") -> 100 | D38: =IFERROR(VLOOKUP(ROW()-6,data!$A$4:$U$5000,11,0),"") -> 0 | E38: =IFERROR(VLOOKUP(ROW()-6,data!$A$4:$U$5000,12,0),"") -> 0 | F38: =IFERROR(VLOOKUP(ROW()-6,data!$A$4:$U$5000,13,0),"") -> 0 | G38: =IFERROR(VLOOKUP(ROW()-6,data!$A$4:$U$5000,14,0),"") -> 0 | H38: =IFERROR(VLOOKUP(ROW()-6,data!$A$4:$U$5000,15,0),"") -> 0 | I38: =IFERROR(VLOOKUP(ROW()-6,data!$A$4:$U$5000,17,0),"") -> 0 | J38: =IFERROR(VLOOKUP(ROW()-6,data!$A$4:$U$5000,20,0),"") -> 771.87 | K38: =IFERROR(VLOOKUP(ROW()-6,data!$A$4:$U$5000,21,0),"") -> 7.017
A39: =IFERROR(VLOOKUP(ROW()-6,data!$A$4:$U$5000,4,0),"") -> 2019-10-07 | B39: =IFERROR(VLOOKUP(ROW()-6,data!$A$4:$U$5000,9,0),"") -> اكتوبر | C39: =IFERROR(VLOOKUP(ROW()-6,data!$A$4:$U$5000,10,0),"") -> 100 | D39: =IFERROR(VLOOKUP(ROW()-6,data!$A$4:$U$5000,11,0),"") -> 0 | E39: =IFERROR(VLOOKUP(ROW()-6,data!$A$4:$U$5000,12,0),"") -> 75 | F39: =IFERROR(VLOOKUP(ROW()-6,data!$A$4:$U$5000,13,0),"") -> 0 | G39: =IFERROR(VLOOKUP(ROW()-6,data!$A$4:$U$5000,14,0),"") -> 0 | H39: =IFERROR(VLOOKUP(ROW()-6,data!$A$4:$U$5000,15,0),"") -> 0 | I39: =IFERROR(VLOOKUP(ROW()-6,data!$A$4:$U$5000,17,0),"") -> 0 | J39: =IFERROR(VLOOKUP(ROW()-6,data!$A$4:$U$5000,20,0),"") -> 600 | K39: =IFERROR(VLOOKUP(ROW()-6,data!$A$4:$U$5000,21,0),"") -> 4.447
A40: =IFERROR(VLOOKUP(ROW()-6,data!$A$4:$U$5000,4,0),"") -> 2019-10-08 | B40: =IFERROR(VLOOKUP(ROW()-6,data!$A$4:$U$5000,9,0),"") -> اكتوبر | C40: =IFERROR(VLOOKUP(ROW()-6,data!$A$4:$U$5000,10,0),"") -> 100 | D40: =IFERROR(VLOOKUP(ROW()-6,data!$A$4:$U$5000,11,0),"") -> 0 | E40: =IFERROR(VLOOKUP(ROW()-6,data!$A$4:$U$5000,12,0),"") -> 75 | F40: =IFERROR(VLOOKUP(ROW()-6,data!$A$4:$U$5000,13,0),"") -> 0 | G40: =IFERROR(VLOOKUP(ROW()-6,data!$A$4:$U$5000,14,0),"") -> 0 | H40: =IFERROR(VLOOKUP(ROW()-6,data!$A$4:$U$5000,15,0),"") -> 0 | I40: =IFERROR(VLOOKUP(ROW()-6,data!$A$4:$U$5000,17,0),"") -> 0 | J40: =IFERROR(VLOOKUP(ROW()-6,data!$A$4:$U$5000,20,0),"") -> 600 | K40: =IFERROR(VLOOKUP(ROW()-6,data!$A$4:$U$5000,21,0),"") -> 2.516
A41: =IFERROR(VLOOKUP(ROW()-6,data!$A$4:$U$5000,4,0),"") -> 2019-10-09 | B41: =IFERROR(VLOOKUP(ROW()-6,data!$A$4:$U$5000,9,0),"") -> العاشر | C41: =IFERROR(VLOOKUP(ROW()-6,data!$A$4:$U$5000,10,0),"") -> 0 | D41: =IFERROR(VLOOKUP(ROW()-6,data!$A$4:$U$5000,11,0),"") -> 0 | E41: =IFERROR(VLOOKUP(ROW()-6,data!$A$4:$U$5000,12,0),"") -> 65 | F41: =IFERROR(VLOOKUP(ROW()-6,data!$A$4:$U$5000,13,0),"") -> 0 | G41: =IFERROR(VLOOKUP(ROW()-6,data!$A$4:$U$5000,14,0),"") -> 0 | H41: =IFERROR(VLOOKUP(ROW()-6,data!$A$4:$U$5000,15,0),"") -> 0 | I41: =IFERROR(VLOOKUP(ROW()-6,data!$A$4:$U$5000,17,0),"") -> 0 | J41: =IFERROR(VLOOKUP(ROW()-6,data!$A$4:$U$5000,20,0),"") -> 200 | K41: =IFERROR(VLOOKUP(ROW()-6,data!$A$4:$U$5000,21,0),"") -> 4.936
A42: =IFERROR(VLOOKUP(ROW()-6,data!$A$4:$U$5000,4,0),"") -> 2019-10-13 | B42: =IFERROR(VLOOKUP(ROW()-6,data!$A$4:$U$5000,9,0),"") -> القاهره | C42: =IFERROR(VLOOKUP(ROW()-6,data!$A$4:$U$5000,10,0),"") -> 100 | D42: =IFERROR(VLOOKUP(ROW()-6,data!$A$4:$U$5000,11,0),"") -> 0 | E42: =IFERROR(VLOOKUP(ROW()-6,data!$A$4:$U$5000,12,0),"") -> 65 | F42: =IFERROR(VLOOKUP(ROW()-6,data!$A$4:$U$5000,13,0),"") -> 0 | G42: =IFERROR(VLOOKUP(ROW()-6,data!$A$4:$U$5000,14,0),"") -> 0 | H42: =IFERROR(VLOOKUP(ROW()-6,data!$A$4:$U$5000,15,0),"") -> 0 | I42: =IFERROR(VLOOKUP(ROW()-6,data!$A$4:$U$5000,17,0),"") -> 0 | J42: =IFERROR(VLOOKUP(ROW()-6,data!$A$4:$U$5000,20,0),"") -> 731.9 | K42: =IFERROR(VLOOKUP(ROW()-6,data!$A$4:$U$5000,21,0),"") -> 7.319
A43: =IFERROR(VLOOKUP(ROW()-6,data!$A$4:$U$5000,4,0),"") -> 2019-10-14 | B43: =IFERROR(VLOOKUP(ROW()-6,data!$A$4:$U$5000,9,0),"") -> العاشر | C43: =IFERROR(VLOOKUP(ROW()-6,data!$A$4:$U$5000,10,0),"") -> 100 | D43: =IFERROR(VLOOKUP(ROW()-6,data!$A$4:$U$5000,11,0),"") -> 0 | E43: =IFERROR(VLOOKUP(ROW()-6,data!$A$4:$U$5000,12,0),"") -> 0 | F43: =IFERROR(VLOOKUP(ROW()-6,data!$A$4:$U$5000,13,0),"") -> 0 | G43: =IFERROR(VLOOKUP(ROW()-6,data!$A$4:$U$5000,14,0),"") -> 0 | H43: =IFERROR(VLOOKUP(ROW()-6,data!$A$4:$U$5000,15,0),"") -> 0 | I43: =IFERROR(VLOOKUP(ROW()-6,data!$A$4:$U$5000,17,0),"") -> 0 | J43: =IFERROR(VLOOKUP(ROW()-6,data!$A$4:$U$5000,20,0),"") -> 200 | K43: =IFERROR(VLOOKUP(ROW()-6,data!$A$4:$U$5000,21,0),"") -> 4.21
A44: =IFERROR(VLOOKUP(ROW()-6,data!$A$4:$U$5000,4,0),"") -> 2019-10-15 | B44: =IFERROR(VLOOKUP(ROW()-6,data!$A$4:$U$5000,9,0),"") -> اكتوبر | C44: =IFERROR(VLOOKUP(ROW()-6,data!$A$4:$U$5000,10,0),"") -> 100 | D44: =IFERROR(VLOOKUP(ROW()-6,data!$A$4:$U$5000,11,0),"") -> 0 | E44: =IFERROR(VLOOKUP(ROW()-6,data!$A$4:$U$5000,12,0),"") -> 65 | F44: =IFERROR(VLOOKUP(ROW()-6,data!$A$4:$U$5000,13,0),"") -> 0 | G44: =IFERROR(VLOOKUP(ROW()-6,data!$A$4:$U$5000,14,0),"") -> 0 | H44: =IFERROR(VLOOKUP(ROW()-6,data!$A$4:$U$5000,15,0),"") -> 0 | I44: =IFERROR(VLOOKUP(ROW()-6,data!$A$4:$U$5000,17,0),"") -> 0 | J44: =IFERROR(VLOOKUP(ROW()-6,data!$A$4:$U$5000,20,0),"") -> 600 | K44: =IFERROR(VLOOKUP(ROW()-6,data!$A$4:$U$5000,21,0),"") -> 2.182
A45: =IFERROR(VLOOKUP(ROW()-6,data!$A$4:$U$5000,4,0),"") ->  | B45: =IFERROR(VLOOKUP(ROW()-6,data!$A$4:$U$5000,9,0),"") ->  | C45: =IFERROR(VLOOKUP(ROW()-6,data!$A$4:$U$5000,10,0),"") ->  | D45: =IFERROR(VLOOKUP(ROW()-6,data!$A$4:$U$5000,11,0),"") ->  | E45: =IFERROR(VLOOKUP(ROW()-6,data!$A$4:$U$5000,12,0),"") ->  | F45: =IFERROR(VLOOKUP(ROW()-6,data!$A$4:$U$5000,13,0),"") ->  | G45: =IFERROR(VLOOKUP(ROW()-6,data!$A$4:$U$5000,14,0),"") ->  | H45: =IFERROR(VLOOKUP(ROW()-6,data!$A$4:$U$5000,15,0),"") ->  | I45: =IFERROR(VLOOKUP(ROW()-6,data!$A$4:$U$5000,17,0),"") ->  | J45: =IFERROR(VLOOKUP(ROW()-6,data!$A$4:$U$5000,20,0),"") ->  | K45: =IFERROR(VLOOKUP(ROW()-6,data!$A$4:$U$5000,21,0),"") -> 
A46: =IFERROR(VLOOKUP(ROW()-6,data!$A$4:$U$5000,4,0),"") ->  | B46: =IFERROR(VLOOKUP(ROW()-6,data!$A$4:$U$5000,9,0),"") ->  | C46: =IFERROR(VLOOKUP(ROW()-6,data!$A$4:$U$5000,10,0),"") ->  | D46: =IFERROR(VLOOKUP(ROW()-6,data!$A$4:$U$5000,11,0),"") ->  | E46: =IFERROR(VLOOKUP(ROW()-6,data!$A$4:$U$5000,12,0),"") ->  | F46: =IFERROR(VLOOKUP(ROW()-6,data!$A$4:$U$5000,13,0),"") ->  | G46: =IFERROR(VLOOKUP(ROW()-6,data!$A$4:$U$5000,14,0),"") ->  | H46: =IFERROR(VLOOKUP(ROW()-6,data!$A$4:$U$5000,15,0),"") ->  | I46: =IFERROR(VLOOKUP(ROW()-6,data!$A$4:$U$5000,17,0),"") ->  | J46: =IFERROR(VLOOKUP(ROW()-6,data!$A$4:$U$5000,20,0),"") ->  | K46: =IFERROR(VLOOKUP(ROW()-6,data!$A$4:$U$5000,21,0),"") -> 
A47: =IFERROR(VLOOKUP(ROW()-6,data!$A$4:$U$5000,4,0),"") ->  | B47: =IFERROR(VLOOKUP(ROW()-6,data!$A$4:$U$5000,9,0),"") ->  | C47: =IFERROR(VLOOKUP(ROW()-6,data!$A$4:$U$5000,10,0),"") ->  | D47: =IFERROR(VLOOKUP(ROW()-6,data!$A$4:$U$5000,11,0),"") ->  | E47: =IFERROR(VLOOKUP(ROW()-6,data!$A$4:$U$5000,12,0),"") ->  | F47: =IFERROR(VLOOKUP(ROW()-6,data!$A$4:$U$5000,13,0),"") ->  | G47: =IFERROR(VLOOKUP(ROW()-6,data!$A$4:$U$5000,14,0),"") ->  | H47: =IFERROR(VLOOKUP(ROW()-6,data!$A$4:$U$5000,15,0),"") ->  | I47: =IFERROR(VLOOKUP(ROW()-6,data!$A$4:$U$5000,17,0),"") ->  | J47: =IFERROR(VLOOKUP(ROW()-6,data!$A$4:$U$5000,20,0),"") ->  | K47: =IFERROR(VLOOKUP(ROW()-6,data!$A$4:$U$5000,21,0),"") -> 
A48: =IFERROR(VLOOKUP(ROW()-6,data!$A$4:$U$5000,4,0),"") ->  | B48: =IFERROR(VLOOKUP(ROW()-6,data!$A$4:$U$5000,9,0),"") ->  | C48: =IFERROR(VLOOKUP(ROW()-6,data!$A$4:$U$5000,10,0),"") ->  | D48: =IFERROR(VLOOKUP(ROW()-6,data!$A$4:$U$5000,11,0),"") ->  | E48: =IFERROR(VLOOKUP(ROW()-6,data!$A$4:$U$5000,12,0),"") ->  | F48: =IFERROR(VLOOKUP(ROW()-6,data!$A$4:$U$5000,13,0),"") ->  | G48: =IFERROR(VLOOKUP(ROW()-6,data!$A$4:$U$5000,14,0),"") ->  | H48: =IFERROR(VLOOKUP(ROW()-6,data!$A$4:$U$5000,15,0),"") ->  | I48: =IFERROR(VLOOKUP(ROW()-6,data!$A$4:$U$5000,17,0),"") ->  | J48: =IFERROR(VLOOKUP(ROW()-6,data!$A$4:$U$5000,20,0),"") ->  | K48: =IFERROR(VLOOKUP(ROW()-6,data!$A$4:$U$5000,21,0),"") -> 
A49: =IFERROR(VLOOKUP(ROW()-6,data!$A$4:$U$5000,4,0),"") ->  | B49: =IFERROR(VLOOKUP(ROW()-6,data!$A$4:$U$5000,9,0),"") ->  | C49: =IFERROR(VLOOKUP(ROW()-6,data!$A$4:$U$5000,10,0),"") ->  | D49: =IFERROR(VLOOKUP(ROW()-6,data!$A$4:$U$5000,11,0),"") ->  | E49: =IFERROR(VLOOKUP(ROW()-6,data!$A$4:$U$5000,12,0),"") ->  | F49: =IFERROR(VLOOKUP(ROW()-6,data!$A$4:$U$5000,13,0),"") ->  | G49: =IFERROR(VLOOKUP(ROW()-6,data!$A$4:$U$5000,14,0),"") ->  | H49: =IFERROR(VLOOKUP(ROW()-6,data!$A$4:$U$5000,15,0),"") ->  | I49: =IFERROR(VLOOKUP(ROW()-6,data!$A$4:$U$5000,17,0),"") ->  | J49: =IFERROR(VLOOKUP(ROW()-6,data!$A$4:$U$5000,20,0),"") ->  | K49: =IFERROR(VLOOKUP(ROW()-6,data!$A$4:$U$5000,21,0),"") -> 
A50: =IFERROR(VLOOKUP(ROW()-6,data!$A$4:$U$5000,4,0),"") ->  | B50: =IFERROR(VLOOKUP(ROW()-6,data!$A$4:$U$5000,9,0),"") ->  | C50: =IFERROR(VLOOKUP(ROW()-6,data!$A$4:$U$5000,10,0),"") ->  | D50: =IFERROR(VLOOKUP(ROW()-6,data!$A$4:$U$5000,11,0),"") ->  | E50: =IFERROR(VLOOKUP(ROW()-6,data!$A$4:$U$5000,12,0),"") ->  | F50: =IFERROR(VLOOKUP(ROW()-6,data!$A$4:$U$5000,13,0),"") ->  | G50: =IFERROR(VLOOKUP(ROW()-6,data!$A$4:$U$5000,14,0),"") ->  | H50: =IFERROR(VLOOKUP(ROW()-6,data!$A$4:$U$5000,15,0),"") ->  | I50: =IFERROR(VLOOKUP(ROW()-6,data!$A$4:$U$5000,17,0),"") ->  | J50: =IFERROR(VLOOKUP(ROW()-6,data!$A$4:$U$5000,20,0),"") ->  | K50: =IFERROR(VLOOKUP(ROW()-6,data!$A$4:$U$5000,21,0),"") -> 
A51: =IFERROR(VLOOKUP(ROW()-6,data!$A$4:$U$5000,4,0),"") ->  | B51: =IFERROR(VLOOKUP(ROW()-6,data!$A$4:$U$5000,9,0),"") ->  | C51: =IFERROR(VLOOKUP(ROW()-6,data!$A$4:$U$5000,10,0),"") ->  | D51: =IFERROR(VLOOKUP(ROW()-6,data!$A$4:$U$5000,11,0),"") ->  | E51: =IFERROR(VLOOKUP(ROW()-6,data!$A$4:$U$5000,12,0),"") ->  | F51: =IFERROR(VLOOKUP(ROW()-6,data!$A$4:$U$5000,13,0),"") ->  | G51: =IFERROR(VLOOKUP(ROW()-6,data!$A$4:$U$5000,14,0),"") ->  | H51: =IFERROR(VLOOKUP(ROW()-6,data!$A$4:$U$5000,15,0),"") ->  | I51: =IFERROR(VLOOKUP(ROW()-6,data!$A$4:$U$5000,17,0),"") ->  | J51: =IFERROR(VLOOKUP(ROW()-6,data!$A$4:$U$5000,20,0),"") ->  | K51: =IFERROR(VLOOKUP(ROW()-6,data!$A$4:$U$5000,21,0),"") -> 
A52: =IFERROR(VLOOKUP(ROW()-6,data!$A$4:$U$5000,4,0),"") ->  | B52: =IFERROR(VLOOKUP(ROW()-6,data!$A$4:$U$5000,9,0),"") ->  | C52: =IFERROR(VLOOKUP(ROW()-6,data!$A$4:$U$5000,10,0),"") ->  | D52: =IFERROR(VLOOKUP(ROW()-6,data!$A$4:$U$5000,11,0),"") ->  | E52: =IFERROR(VLOOKUP(ROW()-6,data!$A$4:$U$5000,12,0),"") ->  | F52: =IFERROR(VLOOKUP(ROW()-6,data!$A$4:$U$5000,13,0),"") ->  | G52: =IFERROR(VLOOKUP(ROW()-6,data!$A$4:$U$5000,14,0),"") ->  | H52: =IFERROR(VLOOKUP(ROW()-6,data!$A$4:$U$5000,15,0),"") ->  | I52: =IFERROR(VLOOKUP(ROW()-6,data!$A$4:$U$5000,17,0),"") ->  | J52: =IFERROR(VLOOKUP(ROW()-6,data!$A$4:$U$5000,20,0),"") ->  | K52: =IFERROR(VLOOKUP(ROW()-6,data!$A$4:$U$5000,21,0),"") -> 
A53: =IFERROR(VLOOKUP(ROW()-6,data!$A$4:$U$5000,4,0),"") ->  | B53: =IFERROR(VLOOKUP(ROW()-6,data!$A$4:$U$5000,9,0),"") ->  | C53: =IFERROR(VLOOKUP(ROW()-6,data!$A$4:$U$5000,10,0),"") ->  | D53: =IFERROR(VLOOKUP(ROW()-6,data!$A$4:$U$5000,11,0),"") ->  | E53: =IFERROR(VLOOKUP(ROW()-6,data!$A$4:$U$5000,12,0),"") ->  | F53: =IFERROR(VLOOKUP(ROW()-6,data!$A$4:$U$5000,13,0),"") ->  | G53: =IFERROR(VLOOKUP(ROW()-6,data!$A$4:$U$5000,14,0),"") ->  | H53: =IFERROR(VLOOKUP(ROW()-6,data!$A$4:$U$5000,15,0),"") ->  | I53: =IFERROR(VLOOKUP(ROW()-6,data!$A$4:$U$5000,17,0),"") ->  | J53: =IFERROR(VLOOKUP(ROW()-6,data!$A$4:$U$5000,20,0),"") ->  | K53: =IFERROR(VLOOKUP(ROW()-6,data!$A$4:$U$5000,21,0),"") -> 
A54: =IFERROR(VLOOKUP(ROW()-6,data!$A$4:$U$5000,4,0),"") ->  | B54: =IFERROR(VLOOKUP(ROW()-6,data!$A$4:$U$5000,9,0),"") ->  | C54: =IFERROR(VLOOKUP(ROW()-6,data!$A$4:$U$5000,10,0),"") ->  | D54: =IFERROR(VLOOKUP(ROW()-6,data!$A$4:$U$5000,11,0),"") ->  | E54: =IFERROR(VLOOKUP(ROW()-6,data!$A$4:$U$5000,12,0),"") ->  | F54: =IFERROR(VLOOKUP(ROW()-6,data!$A$4:$U$5000,13,0),"") ->  | G54: =IFERROR(VLOOKUP(ROW()-6,data!$A$4:$U$5000,14,0),"") ->  | H54: =IFERROR(VLOOKUP(ROW()-6,data!$A$4:$U$5000,15,0),"") ->  | I54: =IFERROR(VLOOKUP(ROW()-6,data!$A$4:$U$5000,17,0),"") ->  | J54: =IFERROR(VLOOKUP(ROW()-6,data!$A$4:$U$5000,20,0),"") ->  | K54: =IFERROR(VLOOKUP(ROW()-6,data!$A$4:$U$5000,21,0),"") -> 
A55: =IFERROR(VLOOKUP(ROW()-6,data!$A$4:$U$5000,4,0),"") ->  | B55: =IFERROR(VLOOKUP(ROW()-6,data!$A$4:$U$5000,9,0),"") ->  | C55: =IFERROR(VLOOKUP(ROW()-6,data!$A$4:$U$5000,10,0),"") ->  | D55: =IFERROR(VLOOKUP(ROW()-6,data!$A$4:$U$5000,11,0),"") ->  | E55: =IFERROR(VLOOKUP(ROW()-6,data!$A$4:$U$5000,12,0),"") ->  | F55: =IFERROR(VLOOKUP(ROW()-6,data!$A$4:$U$5000,13,0),"") ->  | G55: =IFERROR(VLOOKUP(ROW()-6,data!$A$4:$U$5000,14,0),"") ->  | H55: =IFERROR(VLOOKUP(ROW()-6,data!$A$4:$U$5000,15,0),"") ->  | I55: =IFERROR(VLOOKUP(ROW()-6,data!$A$4:$U$5000,17,0),"") ->  | J55: =IFERROR(VLOOKUP(ROW()-6,data!$A$4:$U$5000,20,0),"") ->  | K55: =IFERROR(VLOOKUP(ROW()-6,data!$A$4:$U$5000,21,0),"") -> 
A56: =IFERROR(VLOOKUP(ROW()-6,data!$A$4:$U$5000,4,0),"") ->  | B56: =IFERROR(VLOOKUP(ROW()-6,data!$A$4:$U$5000,9,0),"") ->  | C56: =IFERROR(VLOOKUP(ROW()-6,data!$A$4:$U$5000,10,0),"") ->  | D56: =IFERROR(VLOOKUP(ROW()-6,data!$A$4:$U$5000,11,0),"") ->  | E56: =IFERROR(VLOOKUP(ROW()-6,data!$A$4:$U$5000,12,0),"") ->  | F56: =IFERROR(VLOOKUP(ROW()-6,data!$A$4:$U$5000,13,0),"") ->  | G56: =IFERROR(VLOOKUP(ROW()-6,data!$A$4:$U$5000,14,0),"") ->  | H56: =IFERROR(VLOOKUP(ROW()-6,data!$A$4:$U$5000,15,0),"") ->  | I56: =IFERROR(VLOOKUP(ROW()-6,data!$A$4:$U$5000,17,0),"") ->  | J56: =IFERROR(VLOOKUP(ROW()-6,data!$A$4:$U$5000,20,0),"") ->  | K56: =IFERROR(VLOOKUP(ROW()-6,data!$A$4:$U$5000,21,0),"") -> 
A57: =IFERROR(VLOOKUP(ROW()-6,data!$A$4:$U$5000,4,0),"") ->  | B57: =IFERROR(VLOOKUP(ROW()-6,data!$A$4:$U$5000,9,0),"") ->  | C57: =IFERROR(VLOOKUP(ROW()-6,data!$A$4:$U$5000,10,0),"") ->  | D57: =IFERROR(VLOOKUP(ROW()-6,data!$A$4:$U$5000,11,0),"") ->  | E57: =IFERROR(VLOOKUP(ROW()-6,data!$A$4:$U$5000,12,0),"") ->  | F57: =IFERROR(VLOOKUP(ROW()-6,data!$A$4:$U$5000,13,0),"") ->  | G57: =IFERROR(VLOOKUP(ROW()-6,data!$A$4:$U$5000,14,0),"") ->  | H57: =IFERROR(VLOOKUP(ROW()-6,data!$A$4:$U$5000,15,0),"") ->  | I57: =IFERROR(VLOOKUP(ROW()-6,data!$A$4:$U$5000,17,0),"") ->  | J57: =IFERROR(VLOOKUP(ROW()-6,data!$A$4:$U$5000,20,0),"") ->  | K57: =IFERROR(VLOOKUP(ROW()-6,data!$A$4:$U$5000,21,0),"") -> 
A58: =IFERROR(VLOOKUP(ROW()-6,data!$A$4:$U$5000,4,0),"") ->  | B58: =IFERROR(VLOOKUP(ROW()-6,data!$A$4:$U$5000,9,0),"") ->  | C58: =IFERROR(VLOOKUP(ROW()-6,data!$A$4:$U$5000,10,0),"") ->  | D58: =IFERROR(VLOOKUP(ROW()-6,data!$A$4:$U$5000,11,0),"") ->  | E58: =IFERROR(VLOOKUP(ROW()-6,data!$A$4:$U$5000,12,0),"") ->  | F58: =IFERROR(VLOOKUP(ROW()-6,data!$A$4:$U$5000,13,0),"") ->  | G58: =IFERROR(VLOOKUP(ROW()-6,data!$A$4:$U$5000,14,0),"") ->  | H58: =IFERROR(VLOOKUP(ROW()-6,data!$A$4:$U$5000,15,0),"") ->  | I58: =IFERROR(VLOOKUP(ROW()-6,data!$A$4:$U$5000,17,0),"") ->  | J58: =IFERROR(VLOOKUP(ROW()-6,data!$A$4:$U$5000,20,0),"") ->  | K58: =IFERROR(VLOOKUP(ROW()-6,data!$A$4:$U$5000,21,0),"") -> 
A59: =IFERROR(VLOOKUP(ROW()-6,data!$A$4:$U$5000,4,0),"") ->  | B59: =IFERROR(VLOOKUP(ROW()-6,data!$A$4:$U$5000,9,0),"") ->  | C59: =IFERROR(VLOOKUP(ROW()-6,data!$A$4:$U$5000,10,0),"") ->  | D59: =IFERROR(VLOOKUP(ROW()-6,data!$A$4:$U$5000,11,0),"") ->  | E59: =IFERROR(VLOOKUP(ROW()-6,data!$A$4:$U$5000,12,0),"") ->  | F59: =IFERROR(VLOOKUP(ROW()-6,data!$A$4:$U$5000,13,0),"") ->  | G59: =IFERROR(VLOOKUP(ROW()-6,data!$A$4:$U$5000,14,0),"") ->  | H59: =IFERROR(VLOOKUP(ROW()-6,data!$A$4:$U$5000,15,0),"") ->  | I59: =IFERROR(VLOOKUP(ROW()-6,data!$A$4:$U$5000,17,0),"") ->  | J59: =IFERROR(VLOOKUP(ROW()-6,data!$A$4:$U$5000,20,0),"") ->  | K59: =IFERROR(VLOOKUP(ROW()-6,data!$A$4:$U$5000,21,0),"") -> 
A60: =IFERROR(VLOOKUP(ROW()-6,data!$A$4:$U$5000,4,0),"") ->  | B60: =IFERROR(VLOOKUP(ROW()-6,data!$A$4:$U$5000,9,0),"") ->  | C60: =IFERROR(VLOOKUP(ROW()-6,data!$A$4:$U$5000,10,0),"") ->  | D60: =IFERROR(VLOOKUP(ROW()-6,data!$A$4:$U$5000,11,0),"") ->  | E60: =IFERROR(VLOOKUP(ROW()-6,data!$A$4:$U$5000,12,0),"") ->  | F60: =IFERROR(VLOOKUP(ROW()-6,data!$A$4:$U$5000,13,0),"") ->  | G60: =IFERROR(VLOOKUP(ROW()-6,data!$A$4:$U$5000,14,0),"") ->  | H60: =IFERROR(VLOOKUP(ROW()-6,data!$A$4:$U$5000,15,0),"") ->  | I60: =IFERROR(VLOOKUP(ROW()-6,data!$A$4:$U$5000,17,0),"") ->  | J60: =IFERROR(VLOOKUP(ROW()-6,data!$A$4:$U$5000,20,0),"") ->  | K60: =IFERROR(VLOOKUP(ROW()-6,data!$A$4:$U$5000,21,0),"") -> 
A61: =IFERROR(VLOOKUP(ROW()-6,data!$A$4:$U$5000,4,0),"") ->  | B61: =IFERROR(VLOOKUP(ROW()-6,data!$A$4:$U$5000,9,0),"") ->  | C61: =IFERROR(VLOOKUP(ROW()-6,data!$A$4:$U$5000,10,0),"") ->  | D61: =IFERROR(VLOOKUP(ROW()-6,data!$A$4:$U$5000,11,0),"") ->  | E61: =IFERROR(VLOOKUP(ROW()-6,data!$A$4:$U$5000,12,0),"") ->  | F61: =IFERROR(VLOOKUP(ROW()-6,data!$A$4:$U$5000,13,0),"") ->  | G61: =IFERROR(VLOOKUP(ROW()-6,data!$A$4:$U$5000,14,0),"") ->  | H61: =IFERROR(VLOOKUP(ROW()-6,data!$A$4:$U$5000,15,0),"") ->  | I61: =IFERROR(VLOOKUP(ROW()-6,data!$A$4:$U$5000,17,0),"") ->  | J61: =IFERROR(VLOOKUP(ROW()-6,data!$A$4:$U$5000,20,0),"") ->  | K61: =IFERROR(VLOOKUP(ROW()-6,data!$A$4:$U$5000,21,0),"") -> 
A62: =IFERROR(VLOOKUP(ROW()-6,data!$A$4:$U$5000,4,0),"") ->  | B62: =IFERROR(VLOOKUP(ROW()-6,data!$A$4:$U$5000,9,0),"") ->  | C62: =IFERROR(VLOOKUP(ROW()-6,data!$A$4:$U$5000,10,0),"") ->  | D62: =IFERROR(VLOOKUP(ROW()-6,data!$A$4:$U$5000,11,0),"") ->  | E62: =IFERROR(VLOOKUP(ROW()-6,data!$A$4:$U$5000,12,0),"") ->  | F62: =IFERROR(VLOOKUP(ROW()-6,data!$A$4:$U$5000,13,0),"") ->  | G62: =IFERROR(VLOOKUP(ROW()-6,data!$A$4:$U$5000,14,0),"") ->  | H62: =IFERROR(VLOOKUP(ROW()-6,data!$A$4:$U$5000,15,0),"") ->  | I62: =IFERROR(VLOOKUP(ROW()-6,data!$A$4:$U$5000,17,0),"") ->  | J62: =IFERROR(VLOOKUP(ROW()-6,data!$A$4:$U$5000,20,0),"") ->  | K62: =IFERROR(VLOOKUP(ROW()-6,data!$A$4:$U$5000,21,0),"") -> 
A63: =IFERROR(VLOOKUP(ROW()-6,data!$A$4:$U$5000,4,0),"") ->  | B63: =IFERROR(VLOOKUP(ROW()-6,data!$A$4:$U$5000,9,0),"") ->  | C63: =IFERROR(VLOOKUP(ROW()-6,data!$A$4:$U$5000,10,0),"") ->  | D63: =IFERROR(VLOOKUP(ROW()-6,data!$A$4:$U$5000,11,0),"") ->  | E63: =IFERROR(VLOOKUP(ROW()-6,data!$A$4:$U$5000,12,0),"") ->  | F63: =IFERROR(VLOOKUP(ROW()-6,data!$A$4:$U$5000,13,0),"") ->  | G63: =IFERROR(VLOOKUP(ROW()-6,data!$A$4:$U$5000,14,0),"") ->  | H63: =IFERROR(VLOOKUP(ROW()-6,data!$A$4:$U$5000,15,0),"") ->  | I63: =IFERROR(VLOOKUP(ROW()-6,data!$A$4:$U$5000,17,0),"") ->  | J63: =IFERROR(VLOOKUP(ROW()-6,data!$A$4:$U$5000,20,0),"") ->  | K63: =IFERROR(VLOOKUP(ROW()-6,data!$A$4:$U$5000,21,0),"") -> 
A64: =IFERROR(VLOOKUP(ROW()-6,data!$A$4:$U$5000,4,0),"") ->  | B64: =IFERROR(VLOOKUP(ROW()-6,data!$A$4:$U$5000,9,0),"") ->  | C64: =IFERROR(VLOOKUP(ROW()-6,data!$A$4:$U$5000,10,0),"") ->  | D64: =IFERROR(VLOOKUP(ROW()-6,data!$A$4:$U$5000,11,0),"") ->  | E64: =IFERROR(VLOOKUP(ROW()-6,data!$A$4:$U$5000,12,0),"") ->  | F64: =IFERROR(VLOOKUP(ROW()-6,data!$A$4:$U$5000,13,0),"") ->  | G64: =IFERROR(VLOOKUP(ROW()-6,data!$A$4:$U$5000,14,0),"") ->  | H64: =IFERROR(VLOOKUP(ROW()-6,data!$A$4:$U$5000,15,0),"") ->  | I64: =IFERROR(VLOOKUP(ROW()-6,data!$A$4:$U$5000,17,0),"") ->  | J64: =IFERROR(VLOOKUP(ROW()-6,data!$A$4:$U$5000,20,0),"") ->  | K64: =IFERROR(VLOOKUP(ROW()-6,data!$A$4:$U$5000,21,0),"") -> 
A65: =IFERROR(VLOOKUP(ROW()-6,data!$A$4:$U$5000,4,0),"") ->  | B65: =IFERROR(VLOOKUP(ROW()-6,data!$A$4:$U$5000,9,0),"") ->  | C65: =IFERROR(VLOOKUP(ROW()-6,data!$A$4:$U$5000,10,0),"") ->  | D65: =IFERROR(VLOOKUP(ROW()-6,data!$A$4:$U$5000,11,0),"") ->  | E65: =IFERROR(VLOOKUP(ROW()-6,data!$A$4:$U$5000,12,0),"") ->  | F65: =IFERROR(VLOOKUP(ROW()-6,data!$A$4:$U$5000,13,0),"") ->  | G65: =IFERROR(VLOOKUP(ROW()-6,data!$A$4:$U$5000,14,0),"") ->  | H65: =IFERROR(VLOOKUP(ROW()-6,data!$A$4:$U$5000,15,0),"") ->  | I65: =IFERROR(VLOOKUP(ROW()-6,data!$A$4:$U$5000,17,0),"") ->  | J65: =IFERROR(VLOOKUP(ROW()-6,data!$A$4:$U$5000,20,0),"") ->  | K65: =IFERROR(VLOOKUP(ROW()-6,data!$A$4:$U$5000,21,0),"") -> 
A66: =IFERROR(VLOOKUP(ROW()-6,data!$A$4:$U$5000,4,0),"") ->  | B66: =IFERROR(VLOOKUP(ROW()-6,data!$A$4:$U$5000,9,0),"") ->  | C66: =IFERROR(VLOOKUP(ROW()-6,data!$A$4:$U$5000,10,0),"") ->  | D66: =IFERROR(VLOOKUP(ROW()-6,data!$A$4:$U$5000,11,0),"") ->  | E66: =IFERROR(VLOOKUP(ROW()-6,data!$A$4:$U$5000,12,0),"") ->  | F66: =IFERROR(VLOOKUP(ROW()-6,data!$A$4:$U$5000,13,0),"") ->  | G66: =IFERROR(VLOOKUP(ROW()-6,data!$A$4:$U$5000,14,0),"") ->  | H66: =IFERROR(VLOOKUP(ROW()-6,data!$A$4:$U$5000,15,0),"") ->  | I66: =IFERROR(VLOOKUP(ROW()-6,data!$A$4:$U$5000,17,0),"") ->  | J66: =IFERROR(VLOOKUP(ROW()-6,data!$A$4:$U$5000,20,0),"") ->  | K66: =IFERROR(VLOOKUP(ROW()-6,data!$A$4:$U$5000,21,0),"") -> 
A67: =IFERROR(VLOOKUP(ROW()-6,data!$A$4:$U$5000,4,0),"") ->  | B67: =IFERROR(VLOOKUP(ROW()-6,data!$A$4:$U$5000,9,0),"") ->  | C67: =IFERROR(VLOOKUP(ROW()-6,data!$A$4:$U$5000,10,0),"") ->  | D67: =IFERROR(VLOOKUP(ROW()-6,data!$A$4:$U$5000,11,0),"") ->  | E67: =IFERROR(VLOOKUP(ROW()-6,data!$A$4:$U$5000,12,0),"") ->  | F67: =IFERROR(VLOOKUP(ROW()-6,data!$A$4:$U$5000,13,0),"") ->  | G67: =IFERROR(VLOOKUP(ROW()-6,data!$A$4:$U$5000,14,0),"") ->  | H67: =IFERROR(VLOOKUP(ROW()-6,data!$A$4:$U$5000,15,0),"") ->  | I67: =IFERROR(VLOOKUP(ROW()-6,data!$A$4:$U$5000,17,0),"") ->  | J67: =IFERROR(VLOOKUP(ROW()-6,data!$A$4:$U$5000,20,0),"") ->  | K67: =IFERROR(VLOOKUP(ROW()-6,data!$A$4:$U$5000,21,0),"") -> 
A68: =IFERROR(VLOOKUP(ROW()-6,data!$A$4:$U$5000,4,0),"") ->  | B68: =IFERROR(VLOOKUP(ROW()-6,data!$A$4:$U$5000,9,0),"") ->  | C68: =IFERROR(VLOOKUP(ROW()-6,data!$A$4:$U$5000,10,0),"") ->  | D68: =IFERROR(VLOOKUP(ROW()-6,data!$A$4:$U$5000,11,0),"") ->  | E68: =IFERROR(VLOOKUP(ROW()-6,data!$A$4:$U$5000,12,0),"") ->  | F68: =IFERROR(VLOOKUP(ROW()-6,data!$A$4:$U$5000,13,0),"") ->  | G68: =IFERROR(VLOOKUP(ROW()-6,data!$A$4:$U$5000,14,0),"") ->  | H68: =IFERROR(VLOOKUP(ROW()-6,data!$A$4:$U$5000,15,0),"") ->  | I68: =IFERROR(VLOOKUP(ROW()-6,data!$A$4:$U$5000,17,0),"") ->  | J68: =IFERROR(VLOOKUP(ROW()-6,data!$A$4:$U$5000,20,0),"") ->  | K68: =IFERROR(VLOOKUP(ROW()-6,data!$A$4:$U$5000,21,0),"") -> 
A69: =IFERROR(VLOOKUP(ROW()-6,data!$A$4:$U$5000,4,0),"") ->  | B69: =IFERROR(VLOOKUP(ROW()-6,data!$A$4:$U$5000,9,0),"") ->  | C69: =IFERROR(VLOOKUP(ROW()-6,data!$A$4:$U$5000,10,0),"") ->  | D69: =IFERROR(VLOOKUP(ROW()-6,data!$A$4:$U$5000,11,0),"") ->  | E69: =IFERROR(VLOOKUP(ROW()-6,data!$A$4:$U$5000,12,0),"") ->  | F69: =IFERROR(VLOOKUP(ROW()-6,data!$A$4:$U$5000,13,0),"") ->  | G69: =IFERROR(VLOOKUP(ROW()-6,data!$A$4:$U$5000,14,0),"") ->  | H69: =IFERROR(VLOOKUP(ROW()-6,data!$A$4:$U$5000,15,0),"") ->  | I69: =IFERROR(VLOOKUP(ROW()-6,data!$A$4:$U$5000,17,0),"") ->  | J69: =IFERROR(VLOOKUP(ROW()-6,data!$A$4:$U$5000,20,0),"") ->  | K69: =IFERROR(VLOOKUP(ROW()-6,data!$A$4:$U$5000,21,0),"") -> 
A70: =IFERROR(VLOOKUP(ROW()-6,data!$A$4:$U$5000,4,0),"") ->  | B70: =IFERROR(VLOOKUP(ROW()-6,data!$A$4:$U$5000,9,0),"") ->  | C70: =IFERROR(VLOOKUP(ROW()-6,data!$A$4:$U$5000,10,0),"") ->  | D70: =IFERROR(VLOOKUP(ROW()-6,data!$A$4:$U$5000,11,0),"") ->  | E70: =IFERROR(VLOOKUP(ROW()-6,data!$A$4:$U$5000,12,0),"") ->  | F70: =IFERROR(VLOOKUP(ROW()-6,data!$A$4:$U$5000,13,0),"") ->  | G70: =IFERROR(VLOOKUP(ROW()-6,data!$A$4:$U$5000,14,0),"") ->  | H70: =IFERROR(VLOOKUP(ROW()-6,data!$A$4:$U$5000,15,0),"") ->  | I70: =IFERROR(VLOOKUP(ROW()-6,data!$A$4:$U$5000,17,0),"") ->  | J70: =IFERROR(VLOOKUP(ROW()-6,data!$A$4:$U$5000,20,0),"") ->  | K70: =IFERROR(VLOOKUP(ROW()-6,data!$A$4:$U$5000,21,0),"") -> 
A71: =IFERROR(VLOOKUP(ROW()-6,data!$A$4:$U$5000,4,0),"") ->  | B71: =IFERROR(VLOOKUP(ROW()-6,data!$A$4:$U$5000,9,0),"") ->  | C71: =IFERROR(VLOOKUP(ROW()-6,data!$A$4:$U$5000,10,0),"") ->  | D71: =IFERROR(VLOOKUP(ROW()-6,data!$A$4:$U$5000,11,0),"") ->  | E71: =IFERROR(VLOOKUP(ROW()-6,data!$A$4:$U$5000,12,0),"") ->  | F71: =IFERROR(VLOOKUP(ROW()-6,data!$A$4:$U$5000,13,0),"") ->  | G71: =IFERROR(VLOOKUP(ROW()-6,data!$A$4:$U$5000,14,0),"") ->  | H71: =IFERROR(VLOOKUP(ROW()-6,data!$A$4:$U$5000,15,0),"") ->  | I71: =IFERROR(VLOOKUP(ROW()-6,data!$A$4:$U$5000,17,0),"") ->  | J71: =IFERROR(VLOOKUP(ROW()-6,data!$A$4:$U$5000,20,0),"") ->  | K71: =IFERROR(VLOOKUP(ROW()-6,data!$A$4:$U$5000,21,0),"") -> 
A72: =IFERROR(VLOOKUP(ROW()-6,data!$A$4:$U$5000,4,0),"") ->  | B72: =IFERROR(VLOOKUP(ROW()-6,data!$A$4:$U$5000,9,0),"") ->  | C72: =IFERROR(VLOOKUP(ROW()-6,data!$A$4:$U$5000,10,0),"") ->  | D72: =IFERROR(VLOOKUP(ROW()-6,data!$A$4:$U$5000,11,0),"") ->  | E72: =IFERROR(VLOOKUP(ROW()-6,data!$A$4:$U$5000,12,0),"") ->  | F72: =IFERROR(VLOOKUP(ROW()-6,data!$A$4:$U$5000,13,0),"") ->  | G72: =IFERROR(VLOOKUP(ROW()-6,data!$A$4:$U$5000,14,0),"") ->  | H72: =IFERROR(VLOOKUP(ROW()-6,data!$A$4:$U$5000,15,0),"") ->  | I72: =IFERROR(VLOOKUP(ROW()-6,data!$A$4:$U$5000,17,0),"") ->  | J72: =IFERROR(VLOOKUP(ROW()-6,data!$A$4:$U$5000,20,0),"") ->  | K72: =IFERROR(VLOOKUP(ROW()-6,data!$A$4:$U$5000,21,0),"") -> 
A73: =IFERROR(VLOOKUP(ROW()-6,data!$A$4:$U$5000,4,0),"") ->  | B73: =IFERROR(VLOOKUP(ROW()-6,data!$A$4:$U$5000,9,0),"") ->  | C73: =IFERROR(VLOOKUP(ROW()-6,data!$A$4:$U$5000,10,0),"") ->  | D73: =IFERROR(VLOOKUP(ROW()-6,data!$A$4:$U$5000,11,0),"") ->  | E73: =IFERROR(VLOOKUP(ROW()-6,data!$A$4:$U$5000,12,0),"") ->  | F73: =IFERROR(VLOOKUP(ROW()-6,data!$A$4:$U$5000,13,0),"") ->  | G73: =IFERROR(VLOOKUP(ROW()-6,data!$A$4:$U$5000,14,0),"") ->  | H73: =IFERROR(VLOOKUP(ROW()-6,data!$A$4:$U$5000,15,0),"") ->  | I73: =IFERROR(VLOOKUP(ROW()-6,data!$A$4:$U$5000,17,0),"") ->  | J73: =IFERROR(VLOOKUP(ROW()-6,data!$A$4:$U$5000,20,0),"") ->  | K73: =IFERROR(VLOOKUP(ROW()-6,data!$A$4:$U$5000,21,0),"") -> 
A74: =IFERROR(VLOOKUP(ROW()-6,data!$A$4:$U$5000,4,0),"") ->  | B74: =IFERROR(VLOOKUP(ROW()-6,data!$A$4:$U$5000,9,0),"") ->  | C74: =IFERROR(VLOOKUP(ROW()-6,data!$A$4:$U$5000,10,0),"") ->  | D74: =IFERROR(VLOOKUP(ROW()-6,data!$A$4:$U$5000,11,0),"") ->  | E74: =IFERROR(VLOOKUP(ROW()-6,data!$A$4:$U$5000,12,0),"") ->  | F74: =IFERROR(VLOOKUP(ROW()-6,data!$A$4:$U$5000,13,0),"") ->  | G74: =IFERROR(VLOOKUP(ROW()-6,data!$A$4:$U$5000,14,0),"") ->  | H74: =IFERROR(VLOOKUP(ROW()-6,data!$A$4:$U$5000,15,0),"") ->  | I74: =IFERROR(VLOOKUP(ROW()-6,data!$A$4:$U$5000,17,0),"") ->  | J74: =IFERROR(VLOOKUP(ROW()-6,data!$A$4:$U$5000,20,0),"") ->  | K74: =IFERROR(VLOOKUP(ROW()-6,data!$A$4:$U$5000,21,0),"") -> 
A75: =IFERROR(VLOOKUP(ROW()-6,data!$A$4:$U$5000,4,0),"") ->  | B75: =IFERROR(VLOOKUP(ROW()-6,data!$A$4:$U$5000,9,0),"") ->  | C75: =IFERROR(VLOOKUP(ROW()-6,data!$A$4:$U$5000,10,0),"") ->  | D75: =IFERROR(VLOOKUP(ROW()-6,data!$A$4:$U$5000,11,0),"") ->  | E75: =IFERROR(VLOOKUP(ROW()-6,data!$A$4:$U$5000,12,0),"") ->  | F75: =IFERROR(VLOOKUP(ROW()-6,data!$A$4:$U$5000,13,0),"") ->  | G75: =IFERROR(VLOOKUP(ROW()-6,data!$A$4:$U$5000,14,0),"") ->  | H75: =IFERROR(VLOOKUP(ROW()-6,data!$A$4:$U$5000,15,0),"") ->  | I75: =IFERROR(VLOOKUP(ROW()-6,data!$A$4:$U$5000,17,0),"") ->  | J75: =IFERROR(VLOOKUP(ROW()-6,data!$A$4:$U$5000,20,0),"") ->  | K75: =IFERROR(VLOOKUP(ROW()-6,data!$A$4:$U$5000,21,0),"") -> 
A76: =IFERROR(VLOOKUP(ROW()-6,data!$A$4:$U$5000,4,0),"") ->  | B76: =IFERROR(VLOOKUP(ROW()-6,data!$A$4:$U$5000,9,0),"") ->  | C76: =IFERROR(VLOOKUP(ROW()-6,data!$A$4:$U$5000,10,0),"") ->  | D76: =IFERROR(VLOOKUP(ROW()-6,data!$A$4:$U$5000,11,0),"") ->  | E76: =IFERROR(VLOOKUP(ROW()-6,data!$A$4:$U$5000,12,0),"") ->  | F76: =IFERROR(VLOOKUP(ROW()-6,data!$A$4:$U$5000,13,0),"") ->  | G76: =IFERROR(VLOOKUP(ROW()-6,data!$A$4:$U$5000,14,0),"") ->  | H76: =IFERROR(VLOOKUP(ROW()-6,data!$A$4:$U$5000,15,0),"") ->  | I76: =IFERROR(VLOOKUP(ROW()-6,data!$A$4:$U$5000,17,0),"") ->  | J76: =IFERROR(VLOOKUP(ROW()-6,data!$A$4:$U$5000,20,0),"") ->  | K76: =IFERROR(VLOOKUP(ROW()-6,data!$A$4:$U$5000,21,0),"") -> 
A77: =IFERROR(VLOOKUP(ROW()-6,data!$A$4:$U$5000,4,0),"") ->  | B77: =IFERROR(VLOOKUP(ROW()-6,data!$A$4:$U$5000,9,0),"") ->  | C77: =IFERROR(VLOOKUP(ROW()-6,data!$A$4:$U$5000,10,0),"") ->  | D77: =IFERROR(VLOOKUP(ROW()-6,data!$A$4:$U$5000,11,0),"") ->  | E77: =IFERROR(VLOOKUP(ROW()-6,data!$A$4:$U$5000,12,0),"") ->  | F77: =IFERROR(VLOOKUP(ROW()-6,data!$A$4:$U$5000,13,0),"") ->  | G77: =IFERROR(VLOOKUP(ROW()-6,data!$A$4:$U$5000,14,0),"") ->  | H77: =IFERROR(VLOOKUP(ROW()-6,data!$A$4:$U$5000,15,0),"") ->  | I77: =IFERROR(VLOOKUP(ROW()-6,data!$A$4:$U$5000,17,0),"") ->  | J77: =IFERROR(VLOOKUP(ROW()-6,data!$A$4:$U$5000,20,0),"") ->  | K77: =IFERROR(VLOOKUP(ROW()-6,data!$A$4:$U$5000,21,0),"") -> 
A78: =IFERROR(VLOOKUP(ROW()-6,data!$A$4:$U$5000,4,0),"") ->  | B78: =IFERROR(VLOOKUP(ROW()-6,data!$A$4:$U$5000,9,0),"") ->  | C78: =IFERROR(VLOOKUP(ROW()-6,data!$A$4:$U$5000,10,0),"") ->  | D78: =IFERROR(VLOOKUP(ROW()-6,data!$A$4:$U$5000,11,0),"") ->  | E78: =IFERROR(VLOOKUP(ROW()-6,data!$A$4:$U$5000,12,0),"") ->  | F78: =IFERROR(VLOOKUP(ROW()-6,data!$A$4:$U$5000,13,0),"") ->  | G78: =IFERROR(VLOOKUP(ROW()-6,data!$A$4:$U$5000,14,0),"") ->  | H78: =IFERROR(VLOOKUP(ROW()-6,data!$A$4:$U$5000,15,0),"") ->  | I78: =IFERROR(VLOOKUP(ROW()-6,data!$A$4:$U$5000,17,0),"") ->  | J78: =IFERROR(VLOOKUP(ROW()-6,data!$A$4:$U$5000,20,0),"") ->  | K78: =IFERROR(VLOOKUP(ROW()-6,data!$A$4:$U$5000,21,0),"") -> 
A79: =IFERROR(VLOOKUP(ROW()-6,data!$A$4:$U$5000,4,0),"") ->  | B79: =IFERROR(VLOOKUP(ROW()-6,data!$A$4:$U$5000,9,0),"") ->  | C79: =IFERROR(VLOOKUP(ROW()-6,data!$A$4:$U$5000,10,0),"") ->  | D79: =IFERROR(VLOOKUP(ROW()-6,data!$A$4:$U$5000,11,0),"") ->  | E79: =IFERROR(VLOOKUP(ROW()-6,data!$A$4:$U$5000,12,0),"") ->  | F79: =IFERROR(VLOOKUP(ROW()-6,data!$A$4:$U$5000,13,0),"") ->  | G79: =IFERROR(VLOOKUP(ROW()-6,data!$A$4:$U$5000,14,0),"") ->  | H79: =IFERROR(VLOOKUP(ROW()-6,data!$A$4:$U$5000,15,0),"") ->  | I79: =IFERROR(VLOOKUP(ROW()-6,data!$A$4:$U$5000,17,0),"") ->  | J79: =IFERROR(VLOOKUP(ROW()-6,data!$A$4:$U$5000,20,0),"") ->  | K79: =IFERROR(VLOOKUP(ROW()-6,data!$A$4:$U$5000,21,0),"") -> 
A80: =IFERROR(VLOOKUP(ROW()-6,data!$A$4:$U$5000,4,0),"") ->  | B80: =IFERROR(VLOOKUP(ROW()-6,data!$A$4:$U$5000,9,0),"") ->  | C80: =IFERROR(VLOOKUP(ROW()-6,data!$A$4:$U$5000,10,0),"") ->  | D80: =IFERROR(VLOOKUP(ROW()-6,data!$A$4:$U$5000,11,0),"") ->  | E80: =IFERROR(VLOOKUP(ROW()-6,data!$A$4:$U$5000,12,0),"") ->  | F80: =IFERROR(VLOOKUP(ROW()-6,data!$A$4:$U$5000,13,0),"") ->  | G80: =IFERROR(VLOOKUP(ROW()-6,data!$A$4:$U$5000,14,0),"") ->  | H80: =IFERROR(VLOOKUP(ROW()-6,data!$A$4:$U$5000,15,0),"") ->  | I80: =IFERROR(VLOOKUP(ROW()-6,data!$A$4:$U$5000,17,0),"") ->  | J80: =IFERROR(VLOOKUP(ROW()-6,data!$A$4:$U$5000,20,0),"") ->  | K80: =IFERROR(VLOOKUP(ROW()-6,data!$A$4:$U$5000,21,0),"") -> 
A81: =IFERROR(VLOOKUP(ROW()-6,data!$A$4:$U$5000,4,0),"") ->  | B81: =IFERROR(VLOOKUP(ROW()-6,data!$A$4:$U$5000,9,0),"") ->  | C81: =IFERROR(VLOOKUP(ROW()-6,data!$A$4:$U$5000,10,0),"") ->  | D81: =IFERROR(VLOOKUP(ROW()-6,data!$A$4:$U$5000,11,0),"") ->  | E81: =IFERROR(VLOOKUP(ROW()-6,data!$A$4:$U$5000,12,0),"") ->  | F81: =IFERROR(VLOOKUP(ROW()-6,data!$A$4:$U$5000,13,0),"") ->  | G81: =IFERROR(VLOOKUP(ROW()-6,data!$A$4:$U$5000,14,0),"") ->  | H81: =IFERROR(VLOOKUP(ROW()-6,data!$A$4:$U$5000,15,0),"") ->  | I81: =IFERROR(VLOOKUP(ROW()-6,data!$A$4:$U$5000,17,0),"") ->  | J81: =IFERROR(VLOOKUP(ROW()-6,data!$A$4:$U$5000,20,0),"") ->  | K81: =IFERROR(VLOOKUP(ROW()-6,data!$A$4:$U$5000,21,0),"") -> 
A82: =IFERROR(VLOOKUP(ROW()-6,data!$A$4:$U$5000,4,0),"") ->  | B82: =IFERROR(VLOOKUP(ROW()-6,data!$A$4:$U$5000,9,0),"") ->  | C82: =IFERROR(VLOOKUP(ROW()-6,data!$A$4:$U$5000,10,0),"") ->  | D82: =IFERROR(VLOOKUP(ROW()-6,data!$A$4:$U$5000,11,0),"") ->  | E82: =IFERROR(VLOOKUP(ROW()-6,data!$A$4:$U$5000,12,0),"") ->  | F82: =IFERROR(VLOOKUP(ROW()-6,data!$A$4:$U$5000,13,0),"") ->  | G82: =IFERROR(VLOOKUP(ROW()-6,data!$A$4:$U$5000,14,0),"") ->  | H82: =IFERROR(VLOOKUP(ROW()-6,data!$A$4:$U$5000,15,0),"") ->  | I82: =IFERROR(VLOOKUP(ROW()-6,data!$A$4:$U$5000,17,0),"") ->  | J82: =IFERROR(VLOOKUP(ROW()-6,data!$A$4:$U$5000,20,0),"") ->  | K82: =IFERROR(VLOOKUP(ROW()-6,data!$A$4:$U$5000,21,0),"") -> 
A83: =IFERROR(VLOOKUP(ROW()-6,data!$A$4:$U$5000,4,0),"") ->  | B83: =IFERROR(VLOOKUP(ROW()-6,data!$A$4:$U$5000,9,0),"") ->  | C83: =IFERROR(VLOOKUP(ROW()-6,data!$A$4:$U$5000,10,0),"") ->  | D83: =IFERROR(VLOOKUP(ROW()-6,data!$A$4:$U$5000,11,0),"") ->  | E83: =IFERROR(VLOOKUP(ROW()-6,data!$A$4:$U$5000,12,0),"") ->  | F83: =IFERROR(VLOOKUP(ROW()-6,data!$A$4:$U$5000,13,0),"") ->  | G83: =IFERROR(VLOOKUP(ROW()-6,data!$A$4:$U$5000,14,0),"") ->  | H83: =IFERROR(VLOOKUP(ROW()-6,data!$A$4:$U$5000,15,0),"") ->  | I83: =IFERROR(VLOOKUP(ROW()-6,data!$A$4:$U$5000,17,0),"") ->  | J83: =IFERROR(VLOOKUP(ROW()-6,data!$A$4:$U$5000,20,0),"") ->  | K83: =IFERROR(VLOOKUP(ROW()-6,data!$A$4:$U$5000,21,0),"") -> 
A84: =IFERROR(VLOOKUP(ROW()-6,data!$A$4:$U$5000,4,0),"") ->  | B84: =IFERROR(VLOOKUP(ROW()-6,data!$A$4:$U$5000,9,0),"") ->  | C84: =IFERROR(VLOOKUP(ROW()-6,data!$A$4:$U$5000,10,0),"") ->  | D84: =IFERROR(VLOOKUP(ROW()-6,data!$A$4:$U$5000,11,0),"") ->  | E84: =IFERROR(VLOOKUP(ROW()-6,data!$A$4:$U$5000,12,0),"") ->  | F84: =IFERROR(VLOOKUP(ROW()-6,data!$A$4:$U$5000,13,0),"") ->  | G84: =IFERROR(VLOOKUP(ROW()-6,data!$A$4:$U$5000,14,0),"") ->  | H84: =IFERROR(VLOOKUP(ROW()-6,data!$A$4:$U$5000,15,0),"") ->  | I84: =IFERROR(VLOOKUP(ROW()-6,data!$A$4:$U$5000,17,0),"") ->  | J84: =IFERROR(VLOOKUP(ROW()-6,data!$A$4:$U$5000,20,0),"") ->  | K84: =IFERROR(VLOOKUP(ROW()-6,data!$A$4:$U$5000,21,0),"") -> 
A85: =IFERROR(VLOOKUP(ROW()-6,data!$A$4:$U$5000,4,0),"") ->  | B85: =IFERROR(VLOOKUP(ROW()-6,data!$A$4:$U$5000,9,0),"") ->  | C85: =IFERROR(VLOOKUP(ROW()-6,data!$A$4:$U$5000,10,0),"") ->  | D85: =IFERROR(VLOOKUP(ROW()-6,data!$A$4:$U$5000,11,0),"") ->  | E85: =IFERROR(VLOOKUP(ROW()-6,data!$A$4:$U$5000,12,0),"") ->  | F85: =IFERROR(VLOOKUP(ROW()-6,data!$A$4:$U$5000,13,0),"") ->  | G85: =IFERROR(VLOOKUP(ROW()-6,data!$A$4:$U$5000,14,0),"") ->  | H85: =IFERROR(VLOOKUP(ROW()-6,data!$A$4:$U$5000,15,0),"") ->  | I85: =IFERROR(VLOOKUP(ROW()-6,data!$A$4:$U$5000,17,0),"") ->  | J85: =IFERROR(VLOOKUP(ROW()-6,data!$A$4:$U$5000,20,0),"") ->  | K85: =IFERROR(VLOOKUP(ROW()-6,data!$A$4:$U$5000,21,0),"") -> 
A86: =IFERROR(VLOOKUP(ROW()-6,data!$A$4:$U$5000,4,0),"") ->  | B86: =IFERROR(VLOOKUP(ROW()-6,data!$A$4:$U$5000,9,0),"") ->  | C86: =IFERROR(VLOOKUP(ROW()-6,data!$A$4:$U$5000,10,0),"") ->  | D86: =IFERROR(VLOOKUP(ROW()-6,data!$A$4:$U$5000,11,0),"") ->  | E86: =IFERROR(VLOOKUP(ROW()-6,data!$A$4:$U$5000,12,0),"") ->  | F86: =IFERROR(VLOOKUP(ROW()-6,data!$A$4:$U$5000,13,0),"") ->  | G86: =IFERROR(VLOOKUP(ROW()-6,data!$A$4:$U$5000,14,0),"") ->  | H86: =IFERROR(VLOOKUP(ROW()-6,data!$A$4:$U$5000,15,0),"") ->  | I86: =IFERROR(VLOOKUP(ROW()-6,data!$A$4:$U$5000,17,0),"") ->  | J86: =IFERROR(VLOOKUP(ROW()-6,data!$A$4:$U$5000,20,0),"") ->  | K86: =IFERROR(VLOOKUP(ROW()-6,data!$A$4:$U$5000,21,0),"") -> 
A87: =IFERROR(VLOOKUP(ROW()-6,data!$A$4:$U$5000,4,0),"") ->  | B87: =IFERROR(VLOOKUP(ROW()-6,data!$A$4:$U$5000,9,0),"") ->  | C87: =IFERROR(VLOOKUP(ROW()-6,data!$A$4:$U$5000,10,0),"") ->  | D87: =IFERROR(VLOOKUP(ROW()-6,data!$A$4:$U$5000,11,0),"") ->  | E87: =IFERROR(VLOOKUP(ROW()-6,data!$A$4:$U$5000,12,0),"") ->  | F87: =IFERROR(VLOOKUP(ROW()-6,data!$A$4:$U$5000,13,0),"") ->  | G87: =IFERROR(VLOOKUP(ROW()-6,data!$A$4:$U$5000,14,0),"") ->  | H87: =IFERROR(VLOOKUP(ROW()-6,data!$A$4:$U$5000,15,0),"") ->  | I87: =IFERROR(VLOOKUP(ROW()-6,data!$A$4:$U$5000,17,0),"") ->  | J87: =IFERROR(VLOOKUP(ROW()-6,data!$A$4:$U$5000,20,0),"") ->  | K87: =IFERROR(VLOOKUP(ROW()-6,data!$A$4:$U$5000,21,0),"") -> 
A88: =IFERROR(VLOOKUP(ROW()-6,data!$A$4:$U$5000,4,0),"") ->  | B88: =IFERROR(VLOOKUP(ROW()-6,data!$A$4:$U$5000,9,0),"") ->  | C88: =IFERROR(VLOOKUP(ROW()-6,data!$A$4:$U$5000,10,0),"") ->  | D88: =IFERROR(VLOOKUP(ROW()-6,data!$A$4:$U$5000,11,0),"") ->  | E88: =IFERROR(VLOOKUP(ROW()-6,data!$A$4:$U$5000,12,0),"") ->  | F88: =IFERROR(VLOOKUP(ROW()-6,data!$A$4:$U$5000,13,0),"") ->  | G88: =IFERROR(VLOOKUP(ROW()-6,data!$A$4:$U$5000,14,0),"") ->  | H88: =IFERROR(VLOOKUP(ROW()-6,data!$A$4:$U$5000,15,0),"") ->  | I88: =IFERROR(VLOOKUP(ROW()-6,data!$A$4:$U$5000,17,0),"") ->  | J88: =IFERROR(VLOOKUP(ROW()-6,data!$A$4:$U$5000,20,0),"") ->  | K88: =IFERROR(VLOOKUP(ROW()-6,data!$A$4:$U$5000,21,0),"") -> 
A89: =IFERROR(VLOOKUP(ROW()-6,data!$A$4:$U$5000,4,0),"") ->  | B89: =IFERROR(VLOOKUP(ROW()-6,data!$A$4:$U$5000,9,0),"") ->  | C89: =IFERROR(VLOOKUP(ROW()-6,data!$A$4:$U$5000,10,0),"") ->  | D89: =IFERROR(VLOOKUP(ROW()-6,data!$A$4:$U$5000,11,0),"") ->  | E89: =IFERROR(VLOOKUP(ROW()-6,data!$A$4:$U$5000,12,0),"") ->  | F89: =IFERROR(VLOOKUP(ROW()-6,data!$A$4:$U$5000,13,0),"") ->  | G89: =IFERROR(VLOOKUP(ROW()-6,data!$A$4:$U$5000,14,0),"") ->  | H89: =IFERROR(VLOOKUP(ROW()-6,data!$A$4:$U$5000,15,0),"") ->  | I89: =IFERROR(VLOOKUP(ROW()-6,data!$A$4:$U$5000,17,0),"") ->  | J89: =IFERROR(VLOOKUP(ROW()-6,data!$A$4:$U$5000,20,0),"") ->  | K89: =IFERROR(VLOOKUP(ROW()-6,data!$A$4:$U$5000,21,0),"") -> 
A90: =IFERROR(VLOOKUP(ROW()-6,data!$A$4:$U$5000,4,0),"") ->  | B90: =IFERROR(VLOOKUP(ROW()-6,data!$A$4:$U$5000,9,0),"") ->  | C90: =IFERROR(VLOOKUP(ROW()-6,data!$A$4:$U$5000,10,0),"") ->  | D90: =IFERROR(VLOOKUP(ROW()-6,data!$A$4:$U$5000,11,0),"") ->  | E90: =IFERROR(VLOOKUP(ROW()-6,data!$A$4:$U$5000,12,0),"") ->  | F90: =IFERROR(VLOOKUP(ROW()-6,data!$A$4:$U$5000,13,0),"") ->  | G90: =IFERROR(VLOOKUP(ROW()-6,data!$A$4:$U$5000,14,0),"") ->  | H90: =IFERROR(VLOOKUP(ROW()-6,data!$A$4:$U$5000,15,0),"") ->  | I90: =IFERROR(VLOOKUP(ROW()-6,data!$A$4:$U$5000,17,0),"") ->  | J90: =IFERROR(VLOOKUP(ROW()-6,data!$A$4:$U$5000,20,0),"") ->  | K90: =IFERROR(VLOOKUP(ROW()-6,data!$A$4:$U$5000,21,0),"") -> 
A91: =IFERROR(VLOOKUP(ROW()-6,data!$A$4:$U$5000,4,0),"") ->  | B91: =IFERROR(VLOOKUP(ROW()-6,data!$A$4:$U$5000,9,0),"") ->  | C91: =IFERROR(VLOOKUP(ROW()-6,data!$A$4:$U$5000,10,0),"") ->  | D91: =IFERROR(VLOOKUP(ROW()-6,data!$A$4:$U$5000,11,0),"") ->  | E91: =IFERROR(VLOOKUP(ROW()-6,data!$A$4:$U$5000,12,0),"") ->  | F91: =IFERROR(VLOOKUP(ROW()-6,data!$A$4:$U$5000,13,0),"") ->  | G91: =IFERROR(VLOOKUP(ROW()-6,data!$A$4:$U$5000,14,0),"") ->  | H91: =IFERROR(VLOOKUP(ROW()-6,data!$A$4:$U$5000,15,0),"") ->  | I91: =IFERROR(VLOOKUP(ROW()-6,data!$A$4:$U$5000,17,0),"") ->  | J91: =IFERROR(VLOOKUP(ROW()-6,data!$A$4:$U$5000,20,0),"") ->  | K91: =IFERROR(VLOOKUP(ROW()-6,data!$A$4:$U$5000,21,0),"") -> 
A92: =IFERROR(VLOOKUP(ROW()-6,data!$A$4:$U$5000,4,0),"") ->  | B92: =IFERROR(VLOOKUP(ROW()-6,data!$A$4:$U$5000,9,0),"") ->  | C92: =IFERROR(VLOOKUP(ROW()-6,data!$A$4:$U$5000,10,0),"") ->  | D92: =IFERROR(VLOOKUP(ROW()-6,data!$A$4:$U$5000,11,0),"") ->  | E92: =IFERROR(VLOOKUP(ROW()-6,data!$A$4:$U$5000,12,0),"") ->  | F92: =IFERROR(VLOOKUP(ROW()-6,data!$A$4:$U$5000,13,0),"") ->  | G92: =IFERROR(VLOOKUP(ROW()-6,data!$A$4:$U$5000,14,0),"") ->  | H92: =IFERROR(VLOOKUP(ROW()-6,data!$A$4:$U$5000,15,0),"") ->  | I92: =IFERROR(VLOOKUP(ROW()-6,data!$A$4:$U$5000,17,0),"") ->  | J92: =IFERROR(VLOOKUP(ROW()-6,data!$A$4:$U$5000,20,0),"") ->  | K92: =IFERROR(VLOOKUP(ROW()-6,data!$A$4:$U$5000,21,0),"") -> 
A93: =IFERROR(VLOOKUP(ROW()-6,data!$A$4:$U$5000,4,0),"") ->  | B93: =IFERROR(VLOOKUP(ROW()-6,data!$A$4:$U$5000,9,0),"") ->  | C93: =IFERROR(VLOOKUP(ROW()-6,data!$A$4:$U$5000,10,0),"") ->  | D93: =IFERROR(VLOOKUP(ROW()-6,data!$A$4:$U$5000,11,0),"") ->  | E93: =IFERROR(VLOOKUP(ROW()-6,data!$A$4:$U$5000,12,0),"") ->  | F93: =IFERROR(VLOOKUP(ROW()-6,data!$A$4:$U$5000,13,0),"") ->  | G93: =IFERROR(VLOOKUP(ROW()-6,data!$A$4:$U$5000,14,0),"") ->  | H93: =IFERROR(VLOOKUP(ROW()-6,data!$A$4:$U$5000,15,0),"") ->  | I93: =IFERROR(VLOOKUP(ROW()-6,data!$A$4:$U$5000,17,0),"") ->  | J93: =IFERROR(VLOOKUP(ROW()-6,data!$A$4:$U$5000,20,0),"") ->  | K93: =IFERROR(VLOOKUP(ROW()-6,data!$A$4:$U$5000,21,0),"") -> 
A94: =IFERROR(VLOOKUP(ROW()-6,data!$A$4:$U$5000,4,0),"") ->  | B94: =IFERROR(VLOOKUP(ROW()-6,data!$A$4:$U$5000,9,0),"") ->  | C94: =IFERROR(VLOOKUP(ROW()-6,data!$A$4:$U$5000,10,0),"") ->  | D94: =IFERROR(VLOOKUP(ROW()-6,data!$A$4:$U$5000,11,0),"") ->  | E94: =IFERROR(VLOOKUP(ROW()-6,data!$A$4:$U$5000,12,0),"") ->  | F94: =IFERROR(VLOOKUP(ROW()-6,data!$A$4:$U$5000,13,0),"") ->  | G94: =IFERROR(VLOOKUP(ROW()-6,data!$A$4:$U$5000,14,0),"") ->  | H94: =IFERROR(VLOOKUP(ROW()-6,data!$A$4:$U$5000,15,0),"") ->  | I94: =IFERROR(VLOOKUP(ROW()-6,data!$A$4:$U$5000,17,0),"") ->  | J94: =IFERROR(VLOOKUP(ROW()-6,data!$A$4:$U$5000,20,0),"") ->  | K94: =IFERROR(VLOOKUP(ROW()-6,data!$A$4:$U$5000,21,0),"") -> 
A95: =IFERROR(VLOOKUP(ROW()-6,data!$A$4:$U$5000,4,0),"") ->  | B95: =IFERROR(VLOOKUP(ROW()-6,data!$A$4:$U$5000,9,0),"") ->  | C95: =IFERROR(VLOOKUP(ROW()-6,data!$A$4:$U$5000,10,0),"") ->  | D95: =IFERROR(VLOOKUP(ROW()-6,data!$A$4:$U$5000,11,0),"") ->  | E95: =IFERROR(VLOOKUP(ROW()-6,data!$A$4:$U$5000,12,0),"") ->  | F95: =IFERROR(VLOOKUP(ROW()-6,data!$A$4:$U$5000,13,0),"") ->  | G95: =IFERROR(VLOOKUP(ROW()-6,data!$A$4:$U$5000,14,0),"") ->  | H95: =IFERROR(VLOOKUP(ROW()-6,data!$A$4:$U$5000,15,0),"") ->  | I95: =IFERROR(VLOOKUP(ROW()-6,data!$A$4:$U$5000,17,0),"") ->  | J95: =IFERROR(VLOOKUP(ROW()-6,data!$A$4:$U$5000,20,0),"") ->  | K95: =IFERROR(VLOOKUP(ROW()-6,data!$A$4:$U$5000,21,0),"") -> 
A96: =IFERROR(VLOOKUP(ROW()-6,data!$A$4:$U$5000,4,0),"") ->  | B96: =IFERROR(VLOOKUP(ROW()-6,data!$A$4:$U$5000,9,0),"") ->  | C96: =IFERROR(VLOOKUP(ROW()-6,data!$A$4:$U$5000,10,0),"") ->  | D96: =IFERROR(VLOOKUP(ROW()-6,data!$A$4:$U$5000,11,0),"") ->  | E96: =IFERROR(VLOOKUP(ROW()-6,data!$A$4:$U$5000,12,0),"") ->  | F96: =IFERROR(VLOOKUP(ROW()-6,data!$A$4:$U$5000,13,0),"") ->  | G96: =IFERROR(VLOOKUP(ROW()-6,data!$A$4:$U$5000,14,0),"") ->  | H96: =IFERROR(VLOOKUP(ROW()-6,data!$A$4:$U$5000,15,0),"") ->  | I96: =IFERROR(VLOOKUP(ROW()-6,data!$A$4:$U$5000,17,0),"") ->  | J96: =IFERROR(VLOOKUP(ROW()-6,data!$A$4:$U$5000,20,0),"") ->  | K96: =IFERROR(VLOOKUP(ROW()-6,data!$A$4:$U$5000,21,0),"") -> 
A97: =IFERROR(VLOOKUP(ROW()-6,data!$A$4:$U$5000,4,0),"") ->  | B97: =IFERROR(VLOOKUP(ROW()-6,data!$A$4:$U$5000,9,0),"") ->  | C97: =IFERROR(VLOOKUP(ROW()-6,data!$A$4:$U$5000,10,0),"") ->  | D97: =IFERROR(VLOOKUP(ROW()-6,data!$A$4:$U$5000,11,0),"") ->  | E97: =IFERROR(VLOOKUP(ROW()-6,data!$A$4:$U$5000,12,0),"") ->  | F97: =IFERROR(VLOOKUP(ROW()-6,data!$A$4:$U$5000,13,0),"") ->  | G97: =IFERROR(VLOOKUP(ROW()-6,data!$A$4:$U$5000,14,0),"") ->  | H97: =IFERROR(VLOOKUP(ROW()-6,data!$A$4:$U$5000,15,0),"") ->  | I97: =IFERROR(VLOOKUP(ROW()-6,data!$A$4:$U$5000,17,0),"") ->  | J97: =IFERROR(VLOOKUP(ROW()-6,data!$A$4:$U$5000,20,0),"") ->  | K97: =IFERROR(VLOOKUP(ROW()-6,data!$A$4:$U$5000,21,0),"") -> 
A98: =IFERROR(VLOOKUP(ROW()-6,data!$A$4:$U$5000,4,0),"") ->  | B98: =IFERROR(VLOOKUP(ROW()-6,data!$A$4:$U$5000,9,0),"") ->  | C98: =IFERROR(VLOOKUP(ROW()-6,data!$A$4:$U$5000,10,0),"") ->  | D98: =IFERROR(VLOOKUP(ROW()-6,data!$A$4:$U$5000,11,0),"") ->  | E98: =IFERROR(VLOOKUP(ROW()-6,data!$A$4:$U$5000,12,0),"") ->  | F98: =IFERROR(VLOOKUP(ROW()-6,data!$A$4:$U$5000,13,0),"") ->  | G98: =IFERROR(VLOOKUP(ROW()-6,data!$A$4:$U$5000,14,0),"") ->  | H98: =IFERROR(VLOOKUP(ROW()-6,data!$A$4:$U$5000,15,0),"") ->  | I98: =IFERROR(VLOOKUP(ROW()-6,data!$A$4:$U$5000,17,0),"") ->  | J98: =IFERROR(VLOOKUP(ROW()-6,data!$A$4:$U$5000,20,0),"") ->  | K98: =IFERROR(VLOOKUP(ROW()-6,data!$A$4:$U$5000,21,0),"") -> 
A99: =IFERROR(VLOOKUP(ROW()-6,data!$A$4:$U$5000,4,0),"") ->  | B99: =IFERROR(VLOOKUP(ROW()-6,data!$A$4:$U$5000,9,0),"") ->  | C99: =IFERROR(VLOOKUP(ROW()-6,data!$A$4:$U$5000,10,0),"") ->  | D99: =IFERROR(VLOOKUP(ROW()-6,data!$A$4:$U$5000,11,0),"") ->  | E99: =IFERROR(VLOOKUP(ROW()-6,data!$A$4:$U$5000,12,0),"") ->  | F99: =IFERROR(VLOOKUP(ROW()-6,data!$A$4:$U$5000,13,0),"") ->  | G99: =IFERROR(VLOOKUP(ROW()-6,data!$A$4:$U$5000,14,0),"") ->  | H99: =IFERROR(VLOOKUP(ROW()-6,data!$A$4:$U$5000,15,0),"") ->  | I99: =IFERROR(VLOOKUP(ROW()-6,data!$A$4:$U$5000,17,0),"") ->  | J99: =IFERROR(VLOOKUP(ROW()-6,data!$A$4:$U$5000,20,0),"") ->  | K99: =IFERROR(VLOOKUP(ROW()-6,data!$A$4:$U$5000,21,0),"") -> 
A100: =IFERROR(VLOOKUP(ROW()-6,data!$A$4:$U$5000,4,0),"") ->  | B100: =IFERROR(VLOOKUP(ROW()-6,data!$A$4:$U$5000,9,0),"") ->  | C100: =IFERROR(VLOOKUP(ROW()-6,data!$A$4:$U$5000,10,0),"") ->  | D100: =IFERROR(VLOOKUP(ROW()-6,data!$A$4:$U$5000,11,0),"") ->  | E100: =IFERROR(VLOOKUP(ROW()-6,data!$A$4:$U$5000,12,0),"") ->  | F100: =IFERROR(VLOOKUP(ROW()-6,data!$A$4:$U$5000,13,0),"") ->  | G100: =IFERROR(VLOOKUP(ROW()-6,data!$A$4:$U$5000,14,0),"") ->  | H100: =IFERROR(VLOOKUP(ROW()-6,data!$A$4:$U$5000,15,0),"") ->  | I100: =IFERROR(VLOOKUP(ROW()-6,data!$A$4:$U$5000,17,0),"") ->  | J100: =IFERROR(VLOOKUP(ROW()-6,data!$A$4:$U$5000,20,0),"") ->  | K100: =IFERROR(VLOOKUP(ROW()-6,data!$A$4:$U$5000,21,0),"") -> 
A101: =IFERROR(VLOOKUP(ROW()-6,data!$A$4:$U$5000,4,0),"") ->  | B101: =IFERROR(VLOOKUP(ROW()-6,data!$A$4:$U$5000,9,0),"") ->  | C101: =IFERROR(VLOOKUP(ROW()-6,data!$A$4:$U$5000,10,0),"") ->  | D101: =IFERROR(VLOOKUP(ROW()-6,data!$A$4:$U$5000,11,0),"") ->  | E101: =IFERROR(VLOOKUP(ROW()-6,data!$A$4:$U$5000,12,0),"") ->  | F101: =IFERROR(VLOOKUP(ROW()-6,data!$A$4:$U$5000,13,0),"") ->  | G101: =IFERROR(VLOOKUP(ROW()-6,data!$A$4:$U$5000,14,0),"") ->  | H101: =IFERROR(VLOOKUP(ROW()-6,data!$A$4:$U$5000,15,0),"") ->  | I101: =IFERROR(VLOOKUP(ROW()-6,data!$A$4:$U$5000,17,0),"") ->  | J101: =IFERROR(VLOOKUP(ROW()-6,data!$A$4:$U$5000,20,0),"") ->  | K101: =IFERROR(VLOOKUP(ROW()-6,data!$A$4:$U$5000,21,0),"") -> 
A102: =IFERROR(VLOOKUP(ROW()-6,data!$A$4:$U$5000,4,0),"") ->  | B102: =IFERROR(VLOOKUP(ROW()-6,data!$A$4:$U$5000,9,0),"") ->  | C102: =IFERROR(VLOOKUP(ROW()-6,data!$A$4:$U$5000,10,0),"") ->  | D102: =IFERROR(VLOOKUP(ROW()-6,data!$A$4:$U$5000,11,0),"") ->  | E102: =IFERROR(VLOOKUP(ROW()-6,data!$A$4:$U$5000,12,0),"") ->  | F102: =IFERROR(VLOOKUP(ROW()-6,data!$A$4:$U$5000,13,0),"") ->  | G102: =IFERROR(VLOOKUP(ROW()-6,data!$A$4:$U$5000,14,0),"") ->  | H102: =IFERROR(VLOOKUP(ROW()-6,data!$A$4:$U$5000,15,0),"") ->  | I102: =IFERROR(VLOOKUP(ROW()-6,data!$A$4:$U$5000,17,0),"") ->  | J102: =IFERROR(VLOOKUP(ROW()-6,data!$A$4:$U$5000,20,0),"") ->  | K102: =IFERROR(VLOOKUP(ROW()-6,data!$A$4:$U$5000,21,0),"") -> 
